Departmental Family,Entity,Date,Expense type,Expense area,Supplier,Transaction Number,Amount,Description
Department for Education,NATIONAL COLLEGE FOR TEACHING AND LEADERSHIP AGENCY,01/06/2016,Grants,Delivery Directorate,THE BRILLIANT CLUB,4000238750,608669.00,Grants to educational establishments or not for profit organisations including other businesses
Department for Education,STANDARDS AND TESTING AGENCY,01/06/2016,Programme costs,Test Operations Division,WILLIAMS LEA,4000238751,214743.13,Funding to deliver policies (excluding consultancy) paid to third parties via a service delivery contract
Department for Education,DEPARTMENT FOR EDUCATION,01/06/2016,Grants,Children's Services Special Educational Needs Group,THE FAMILY FUND TRUST,4000238762,2397000.00,Grants to educational establishments or not for profit organisations including other businesses
Department for Education,DEPARTMENT FOR EDUCATION,01/06/2016,Programme costs,"Children's Services, Equalities and Communication Safeguarding Group",LEICESTERSHIRE COUNTY COUNCIL,4000238765,175000.00,Funding to deliver policies (excluding consultancy) paid to third parties via a service delivery contract
Department for Education,DEPARTMENT FOR EDUCATION,01/06/2016,Programme costs,Adoption and Children in Care Division,FOSTERTALK LTD,4000238768,26772.09,Funding to deliver policies (excluding consultancy) paid to third parties via a service delivery contract
Department for Education,DEPARTMENT FOR EDUCATION,01/06/2016,Programme costs,Teachers and Teaching Group,CAPITA LIFE & PENSIONS SERVICES LTD,4000238780,165123.66,Funding to deliver policies (excluding consultancy) paid to third parties via a service delivery contract
Department for Education,DEPARTMENT FOR EDUCATION,01/06/2016,Professional Services Consultancy and Contingent Labour,Finance and Commercial Group,HM TREASURY,4000238786,395443.00,"Fees / expenses of professionals such as auditors, accountants, lawyers, etc. engaged to provide advice or opinion on how to affect something"
Department for Education,DEPARTMENT FOR EDUCATION,01/06/2016,Programme costs,Systems and Accountability Group,RESEARCH MACHINES PLC,4000238804,499724.40,Funding to deliver policies (excluding consultancy) paid to third parties via a service delivery contract
Department for Education,STANDARDS AND TESTING AGENCY,01/06/2016,ICT,Test Operations Division,ECHO MANAGED SERVICES LTD,4000238903,127574.49,Telecoms facilities and services - telecom rentals
Department for Education,DEPARTMENT FOR EDUCATION,01/06/2016,Professional Services Other,Post 16 and Disadvantage Group,SKILLS FUNDING AGENCY,4000238788,71359.20,"Fees / expenses of professionals, for example to implement advice or changes"
Department for Education,NATIONAL COLLEGE FOR TEACHING AND LEADERSHIP AGENCY,01/06/2016,Professional Services Other,Delivery Directorate,TEACHING LEADERS,4000238818,398358.00,"Fees / expenses of professionals, for example to implement advice or changes"
Department for Education,DEPARTMENT FOR EDUCATION,02/06/2016,Travel,Finance and Commercial Group,REDFERN TRAVEL LTD,1100128,372243.96,"Staff business travel including air, coach, ferry, rail, taxi and car hire"
Department for Education,DEPARTMENT FOR EDUCATION,02/06/2016,Grants,Government Equalities Office,EQUALITY & HUMAN RIGHTS COMMISSION,2100046,1676530.00,Current grants paid to organisations including arms length bodies and educational establishments
Department for Education,DEPARTMENT FOR EDUCATION,02/06/2016,Grants,Adoption and Children in Care Division,LONDON BOROUGH OF MERTON COUNCIL,4000238942,70000.00,Grants to local authorities / other establishments within aggregate external funding or aggregate exchequer grant
Department for Education,NATIONAL COLLEGE FOR TEACHING AND LEADERSHIP AGENCY,02/06/2016,Grants,Delivery Directorate,SUFFOLK COUNTY COUNCIL,4000238943,1066.67,Grants to educational establishments or not for profit organisations including other businesses
Department for Education,NATIONAL COLLEGE FOR TEACHING AND LEADERSHIP AGENCY,02/06/2016,Grants,Operations Directorate,SUFFOLK COUNTY COUNCIL,4000238943,44280.00,Grants to educational establishments or not for profit organisations including other businesses
Department for Education,DEPARTMENT FOR EDUCATION,02/06/2016,Grants,Adoption and Children in Care Division,LONDON BOROUGH OF EALING COUNCIL,4000238944,43000.00,Grants to local authorities / other establishments within aggregate external funding or aggregate exchequer grant
Department for Education,DEPARTMENT FOR EDUCATION,02/06/2016,Grants,Adoption and Children in Care Division,LONDON BOROUGH OF BRENT,4000238945,27000.00,Grants to local authorities / other establishments within aggregate external funding or aggregate exchequer grant
Department for Education,NATIONAL COLLEGE FOR TEACHING AND LEADERSHIP AGENCY,02/06/2016,Grants,Operations Directorate,PADDINGTON ACADEMY,4000238946,42660.00,Grants to educational establishments or not for profit organisations including other businesses
Department for Education,NATIONAL COLLEGE FOR TEACHING AND LEADERSHIP AGENCY,02/06/2016,Grants,Operations Directorate,OXFORD BROOKES UNIVERSITY,4000238947,46800.00,Grants to educational establishments or not for profit organisations including other businesses
Department for Education,NATIONAL COLLEGE FOR TEACHING AND LEADERSHIP AGENCY,02/06/2016,Grants,Operations Directorate,OXFORD BROOKES UNIVERSITY,4000238947,2241.80,Grants to educational establishments or not for profit organisations including other businesses
Department for Education,NATIONAL COLLEGE FOR TEACHING AND LEADERSHIP AGENCY,02/06/2016,Grants,Delivery Directorate,OXFORD BROOKES UNIVERSITY,4000238947,6720.00,Grants to educational establishments or not for profit organisations including other businesses
Department for Education,NATIONAL COLLEGE FOR TEACHING AND LEADERSHIP AGENCY,02/06/2016,Grants,Operations Directorate,THE MORLEY ACADEMY,4000238948,64530.00,Grants to educational establishments or not for profit organisations including other businesses
Department for Education,NATIONAL COLLEGE FOR TEACHING AND LEADERSHIP AGENCY,02/06/2016,Grants,Delivery Directorate,ST MARYS UNIVERSITY COLLEGE,4000238950,40302.88,Grants to educational establishments or not for profit organisations including other businesses
Department for Education,NATIONAL COLLEGE FOR TEACHING AND LEADERSHIP AGENCY,02/06/2016,Grants,Operations Directorate,ST MARYS UNIVERSITY COLLEGE,4000238950,215280.00,Grants to educational establishments or not for profit organisations including other businesses
Department for Education,NATIONAL COLLEGE FOR TEACHING AND LEADERSHIP AGENCY,02/06/2016,Grants,Operations Directorate,ST MARYS UNIVERSITY COLLEGE,4000238950,47645.00,Grants to educational establishments or not for profit organisations including other businesses
Department for Education,NATIONAL COLLEGE FOR TEACHING AND LEADERSHIP AGENCY,02/06/2016,Grants,Operations Directorate,UNIVERSITY OF NORTHAMPTON,4000238951,25920.00,Grants to educational establishments or not for profit organisations including other businesses
Department for Education,NATIONAL COLLEGE FOR TEACHING AND LEADERSHIP AGENCY,02/06/2016,Grants,Delivery Directorate,UNIVERSITY OF NORTHAMPTON,4000238951,25260.00,Grants to educational establishments or not for profit organisations including other businesses
Department for Education,DEPARTMENT FOR EDUCATION,02/06/2016,Programme costs,Children's Services Special Educational Needs Group,MOTT MACDONALD LTD,4000238952,188347.60,Funding to deliver policies (excluding consultancy) paid to third parties via a service delivery contract
Department for Education,DEPARTMENT FOR EDUCATION,02/06/2016,Programme costs,Early Years Group,MOTT MACDONALD LTD,4000238952,33600.00,Funding to deliver policies (excluding consultancy) paid to third parties via a service delivery contract
Department for Education,NATIONAL COLLEGE FOR TEACHING AND LEADERSHIP AGENCY,02/06/2016,Grants,Delivery Directorate,THE UNIVERSITY OF MANCHESTER,4000238953,3600.00,Grants to educational establishments or not for profit organisations including other businesses
Department for Education,NATIONAL COLLEGE FOR TEACHING AND LEADERSHIP AGENCY,02/06/2016,Grants,Operations Directorate,THE UNIVERSITY OF MANCHESTER,4000238953,307530.00,Grants to educational establishments or not for profit organisations including other businesses
Department for Education,NATIONAL COLLEGE FOR TEACHING AND LEADERSHIP AGENCY,02/06/2016,Grants,Operations Directorate,THE UNIVERSITY OF MANCHESTER,4000238953,5964.00,Grants to educational establishments or not for profit organisations including other businesses
Department for Education,NATIONAL COLLEGE FOR TEACHING AND LEADERSHIP AGENCY,02/06/2016,Grants,Operations Directorate,UNIVERSITY OF LEICESTER,4000238954,176850.00,Grants to educational establishments or not for profit organisations including other businesses
Department for Education,NATIONAL COLLEGE FOR TEACHING AND LEADERSHIP AGENCY,02/06/2016,Grants,Operations Directorate,UNIVERSITY OF EXETER,4000238955,322920.00,Grants to educational establishments or not for profit organisations including other businesses
Department for Education,NATIONAL COLLEGE FOR TEACHING AND LEADERSHIP AGENCY,02/06/2016,Grants,Operations Directorate,LEEDS CITY COUNCIL,4000238956,32310.00,Grants to educational establishments or not for profit organisations including other businesses
Department for Education,NATIONAL COLLEGE FOR TEACHING AND LEADERSHIP AGENCY,02/06/2016,Grants,Delivery Directorate,THE UNIVERSITY OF READING,4000238959,35333.31,Grants to educational establishments or not for profit organisations including other businesses
Department for Education,NATIONAL COLLEGE FOR TEACHING AND LEADERSHIP AGENCY,02/06/2016,Grants,Operations Directorate,THE UNIVERSITY OF READING,4000238959,205830.00,Grants to educational establishments or not for profit organisations including other businesses
Department for Education,NATIONAL COLLEGE FOR TEACHING AND LEADERSHIP AGENCY,02/06/2016,Grants,Operations Directorate,THE UNIVERSITY OF READING,4000238959,9320.00,Grants to educational establishments or not for profit organisations including other businesses
Department for Education,NATIONAL COLLEGE FOR TEACHING AND LEADERSHIP AGENCY,02/06/2016,Grants,Delivery Directorate,THE UNIVERSITY OF READING,4000238959,25110.00,Grants to educational establishments or not for profit organisations including other businesses
Department for Education,NATIONAL COLLEGE FOR TEACHING AND LEADERSHIP AGENCY,02/06/2016,Grants,Delivery Directorate,UNIVERSITY OF SOUTHAMPTON,4000238961,26039.93,Grants to educational establishments or not for profit organisations including other businesses
Department for Education,NATIONAL COLLEGE FOR TEACHING AND LEADERSHIP AGENCY,02/06/2016,Grants,Operations Directorate,UNIVERSITY OF SOUTHAMPTON,4000238961,195300.00,Grants to educational establishments or not for profit organisations including other businesses
Department for Education,NATIONAL COLLEGE FOR TEACHING AND LEADERSHIP AGENCY,02/06/2016,Grants,Operations Directorate,UNIVERSITY OF SOUTHAMPTON,4000238961,5660.60,Grants to educational establishments or not for profit organisations including other businesses
Department for Education,NATIONAL COLLEGE FOR TEACHING AND LEADERSHIP AGENCY,02/06/2016,Grants,Operations Directorate,UNIVERSITY OF WINCHESTER,4000238962,52200.00,Grants to educational establishments or not for profit organisations including other businesses
Department for Education,NATIONAL COLLEGE FOR TEACHING AND LEADERSHIP AGENCY,02/06/2016,Grants,Delivery Directorate,UNIVERSITY OF WINCHESTER,4000238962,25380.00,Grants to educational establishments or not for profit organisations including other businesses
Department for Education,DEPARTMENT FOR EDUCATION,02/06/2016,Programme costs,Children in Care Division,NATIONAL DAY NURSERIES ASSOCIATION,4000238966,62374.45,Funding to deliver policies (excluding consultancy) paid to third parties via a service delivery contract
Department for Education,NATIONAL COLLEGE FOR TEACHING AND LEADERSHIP AGENCY,02/06/2016,Grants,Operations Directorate,THE ARTHUR TERRY SCHOOL SCITT,4000238968,31320.00,Grants to educational establishments or not for profit organisations including other businesses
Department for Education,NATIONAL COLLEGE FOR TEACHING AND LEADERSHIP AGENCY,02/06/2016,Grants,Delivery Directorate,UNIVERSITY OF HULL,4000238971,25067.05,Grants to educational establishments or not for profit organisations including other businesses
Department for Education,NATIONAL COLLEGE FOR TEACHING AND LEADERSHIP AGENCY,02/06/2016,Grants,Operations Directorate,UNIVERSITY OF HULL,4000238971,3213.00,Grants to educational establishments or not for profit organisations including other businesses
Department for Education,NATIONAL COLLEGE FOR TEACHING AND LEADERSHIP AGENCY,02/06/2016,Grants,Operations Directorate,UNIVERSITY OF HULL,4000238971,192150.00,Grants to educational establishments or not for profit organisations including other businesses
Department for Education,NATIONAL COLLEGE FOR TEACHING AND LEADERSHIP AGENCY,02/06/2016,Grants,Delivery Directorate,UNIVERSITY OF HULL,4000238971,6300.00,Grants to educational establishments or not for profit organisations including other businesses
Department for Education,NATIONAL COLLEGE FOR TEACHING AND LEADERSHIP AGENCY,02/06/2016,Grants,Operations Directorate,UNIVERSITY OF BRISTOL,4000238972,243720.00,Grants to educational establishments or not for profit organisations including other businesses
Department for Education,NATIONAL COLLEGE FOR TEACHING AND LEADERSHIP AGENCY,02/06/2016,Grants,Delivery Directorate,LONDON METROPOLITAN UNIVERSITY,4000238974,30800.00,Grants to educational establishments or not for profit organisations including other businesses
Department for Education,NATIONAL COLLEGE FOR TEACHING AND LEADERSHIP AGENCY,02/06/2016,Grants,Operations Directorate,LONDON METROPOLITAN UNIVERSITY,4000238974,132210.00,Grants to educational establishments or not for profit organisations including other businesses
Department for Education,NATIONAL COLLEGE FOR TEACHING AND LEADERSHIP AGENCY,02/06/2016,Grants,Operations Directorate,LONDON METROPOLITAN UNIVERSITY,4000238974,39340.00,Grants to educational establishments or not for profit organisations including other businesses
Department for Education,NATIONAL COLLEGE FOR TEACHING AND LEADERSHIP AGENCY,02/06/2016,Grants,Delivery Directorate,LONDON METROPOLITAN UNIVERSITY,4000238974,4480.00,Grants to educational establishments or not for profit organisations including other businesses
Department for Education,NATIONAL COLLEGE FOR TEACHING AND LEADERSHIP AGENCY,02/06/2016,Grants,Operations Directorate,KENT & MEDWAY TRAINING,4000238980,60570.00,Grants to educational establishments or not for profit organisations including other businesses
Department for Education,NATIONAL COLLEGE FOR TEACHING AND LEADERSHIP AGENCY,02/06/2016,Grants,Operations Directorate,SOUTH WEST TEACHER TRAINING,4000238984,26730.00,Grants to educational establishments or not for profit organisations including other businesses
Department for Education,NATIONAL COLLEGE FOR TEACHING AND LEADERSHIP AGENCY,02/06/2016,Grants,Delivery Directorate,MANCHESTER METROPOLITAN UNIVERSITY,4000238985,43200.00,Grants to educational establishments or not for profit organisations including other businesses
Department for Education,NATIONAL COLLEGE FOR TEACHING AND LEADERSHIP AGENCY,02/06/2016,Grants,Operations Directorate,MANCHESTER METROPOLITAN UNIVERSITY,4000238985,546840.00,Grants to educational establishments or not for profit organisations including other businesses
Department for Education,NATIONAL COLLEGE FOR TEACHING AND LEADERSHIP AGENCY,02/06/2016,Grants,Delivery Directorate,MANCHESTER METROPOLITAN UNIVERSITY,4000238985,23940.00,Grants to educational establishments or not for profit organisations including other businesses
Department for Education,NATIONAL COLLEGE FOR TEACHING AND LEADERSHIP AGENCY,02/06/2016,Grants,Delivery Directorate,NOTTINGHAM TRENT UNIVERSITY,4000238987,6628.57,Grants to educational establishments or not for profit organisations including other businesses
Department for Education,NATIONAL COLLEGE FOR TEACHING AND LEADERSHIP AGENCY,02/06/2016,Grants,Operations Directorate,NOTTINGHAM TRENT UNIVERSITY,4000238987,129600.00,Grants to educational establishments or not for profit organisations including other businesses
Department for Education,NATIONAL COLLEGE FOR TEACHING AND LEADERSHIP AGENCY,02/06/2016,Grants,Operations Directorate,NOTTINGHAM TRENT UNIVERSITY,4000238987,1910.00,Grants to educational establishments or not for profit organisations including other businesses
Department for Education,NATIONAL COLLEGE FOR TEACHING AND LEADERSHIP AGENCY,02/06/2016,Grants,Operations Directorate,NOTTINGHAM TRENT UNIVERSITY,4000238987,2695.00,Grants to educational establishments or not for profit organisations including other businesses
Department for Education,NATIONAL COLLEGE FOR TEACHING AND LEADERSHIP AGENCY,02/06/2016,Grants,Delivery Directorate,NOTTINGHAM TRENT UNIVERSITY,4000238987,7560.00,Grants to educational establishments or not for profit organisations including other businesses
Department for Education,NATIONAL COLLEGE FOR TEACHING AND LEADERSHIP AGENCY,02/06/2016,Grants,Delivery Directorate,UNIVERSITY OF WORCESTER,4000238988,1600.00,Grants to educational establishments or not for profit organisations including other businesses
Department for Education,NATIONAL COLLEGE FOR TEACHING AND LEADERSHIP AGENCY,02/06/2016,Grants,Operations Directorate,UNIVERSITY OF WORCESTER,4000238988,170280.00,Grants to educational establishments or not for profit organisations including other businesses
Department for Education,NATIONAL COLLEGE FOR TEACHING AND LEADERSHIP AGENCY,02/06/2016,Grants,Delivery Directorate,UNIVERSITY OF WORCESTER,4000238988,12280.00,Grants to educational establishments or not for profit organisations including other businesses
Department for Education,NATIONAL COLLEGE FOR TEACHING AND LEADERSHIP AGENCY,02/06/2016,Grants,Operations Directorate,UNIVERSITY OF HERTFORDSHIRE,4000238989,111420.00,Grants to educational establishments or not for profit organisations including other businesses
Department for Education,NATIONAL COLLEGE FOR TEACHING AND LEADERSHIP AGENCY,02/06/2016,Grants,Operations Directorate,UNIVERSITY OF NORTHUMBRIA,4000238990,88020.00,Grants to educational establishments or not for profit organisations including other businesses
Department for Education,NATIONAL COLLEGE FOR TEACHING AND LEADERSHIP AGENCY,02/06/2016,Grants,Delivery Directorate,UNIVERSITY OF NORTHUMBRIA,4000238990,18450.00,Grants to educational establishments or not for profit organisations including other businesses
Department for Education,NATIONAL COLLEGE FOR TEACHING AND LEADERSHIP AGENCY,02/06/2016,Grants,Delivery Directorate,UNIVERSITY OF EAST LONDON,4000238991,28440.00,Grants to educational establishments or not for profit organisations including other businesses
Department for Education,NATIONAL COLLEGE FOR TEACHING AND LEADERSHIP AGENCY,02/06/2016,Grants,Operations Directorate,UNIVERSITY OF EAST LONDON,4000238991,307800.00,Grants to educational establishments or not for profit organisations including other businesses
Department for Education,DEPARTMENT FOR EDUCATION,02/06/2016,Grants,Academies Regional Delivery Group,ST JAMES & EMMANUEL TRUST,4000238993,70000.00,Grants to educational establishments or not for profit organisations including other businesses
Department for Education,NATIONAL COLLEGE FOR TEACHING AND LEADERSHIP AGENCY,02/06/2016,Grants,Delivery Directorate,UNIVERSITY OF ROEHAMPTON,4000238994,4480.00,Grants to educational establishments or not for profit organisations including other businesses
Department for Education,NATIONAL COLLEGE FOR TEACHING AND LEADERSHIP AGENCY,02/06/2016,Grants,Operations Directorate,UNIVERSITY OF ROEHAMPTON,4000238994,177300.00,Grants to educational establishments or not for profit organisations including other businesses
Department for Education,NATIONAL COLLEGE FOR TEACHING AND LEADERSHIP AGENCY,02/06/2016,Grants,Operations Directorate,SHOTTON HALL SCITT,4000238997,68670.00,Grants to educational establishments or not for profit organisations including other businesses
Department for Education,NATIONAL COLLEGE FOR TEACHING AND LEADERSHIP AGENCY,02/06/2016,Grants,Operations Directorate,KING EDWARDS CONSORTIUM,4000239000,26280.00,Grants to educational establishments or not for profit organisations including other businesses
Department for Education,NATIONAL COLLEGE FOR TEACHING AND LEADERSHIP AGENCY,02/06/2016,Grants,Delivery Directorate,UNIVERSITY OF OXFORD,4000239004,1066.67,Grants to educational establishments or not for profit organisations including other businesses
Department for Education,NATIONAL COLLEGE FOR TEACHING AND LEADERSHIP AGENCY,02/06/2016,Grants,Operations Directorate,UNIVERSITY OF OXFORD,4000239004,235080.00,Grants to educational establishments or not for profit organisations including other businesses
Department for Education,NATIONAL COLLEGE FOR TEACHING AND LEADERSHIP AGENCY,02/06/2016,Grants,Operations Directorate,YORK ST JOHN UNIVERSITY,4000239005,75600.00,Grants to educational establishments or not for profit organisations including other businesses
Department for Education,NATIONAL COLLEGE FOR TEACHING AND LEADERSHIP AGENCY,02/06/2016,Programme costs,Delivery Directorate,UNIVERSITY OF BRIGHTON,4000239006,114769.50,Funding to deliver policies (excluding consultancy) paid to third parties via a service delivery contract
Department for Education,NATIONAL COLLEGE FOR TEACHING AND LEADERSHIP AGENCY,02/06/2016,Grants,Operations Directorate,SUTTON SCITT,4000239011,45990.00,Grants to educational establishments or not for profit organisations including other businesses
Department for Education,NATIONAL COLLEGE FOR TEACHING AND LEADERSHIP AGENCY,02/06/2016,Grants,Operations Directorate,MIDDLESEX UNIVERSITY,4000239020,126540.00,Grants to educational establishments or not for profit organisations including other businesses
Department for Education,NATIONAL COLLEGE FOR TEACHING AND LEADERSHIP AGENCY,02/06/2016,Grants,Delivery Directorate,MIDDLESEX UNIVERSITY,4000239020,44070.00,Grants to educational establishments or not for profit organisations including other businesses
Department for Education,NATIONAL COLLEGE FOR TEACHING AND LEADERSHIP AGENCY,02/06/2016,Grants,Delivery Directorate,PILGRIM SCITT,4000239023,1200.00,Grants to educational establishments or not for profit organisations including other businesses
Department for Education,NATIONAL COLLEGE FOR TEACHING AND LEADERSHIP AGENCY,02/06/2016,Grants,Operations Directorate,PILGRIM SCITT,4000239023,26190.00,Grants to educational establishments or not for profit organisations including other businesses
Department for Education,NATIONAL COLLEGE FOR TEACHING AND LEADERSHIP AGENCY,02/06/2016,Grants,Operations Directorate,UCL INSTITUTE OF EDUCATION,4000239027,695160.00,Grants to educational establishments or not for profit organisations including other businesses
Department for Education,NATIONAL COLLEGE FOR TEACHING AND LEADERSHIP AGENCY,02/06/2016,Grants,Operations Directorate,UCL INSTITUTE OF EDUCATION,4000239027,49346.00,Grants to educational establishments or not for profit organisations including other businesses
Department for Education,NATIONAL COLLEGE FOR TEACHING AND LEADERSHIP AGENCY,02/06/2016,Grants,Delivery Directorate,UCL INSTITUTE OF EDUCATION,4000239027,17430.00,Grants to educational establishments or not for profit organisations including other businesses
Department for Education,NATIONAL COLLEGE FOR TEACHING AND LEADERSHIP AGENCY,02/06/2016,Grants,Delivery Directorate,PENINSULA TEACHER TRAINING CORNWALL SCITT,4000239029,2400.00,Grants to educational establishments or not for profit organisations including other businesses
Department for Education,NATIONAL COLLEGE FOR TEACHING AND LEADERSHIP AGENCY,02/06/2016,Grants,Operations Directorate,PENINSULA TEACHER TRAINING CORNWALL SCITT,4000239029,25650.00,Grants to educational establishments or not for profit organisations including other businesses
Department for Education,NATIONAL COLLEGE FOR TEACHING AND LEADERSHIP AGENCY,02/06/2016,Grants,Operations Directorate,PENINSULA TEACHER TRAINING CORNWALL SCITT,4000239029,5620.00,Grants to educational establishments or not for profit organisations including other businesses
Department for Education,NATIONAL COLLEGE FOR TEACHING AND LEADERSHIP AGENCY,02/06/2016,Grants,Delivery Directorate,UNIVERSITY OF CHICHESTER,4000239031,9200.00,Grants to educational establishments or not for profit organisations including other businesses
Department for Education,NATIONAL COLLEGE FOR TEACHING AND LEADERSHIP AGENCY,02/06/2016,Grants,Operations Directorate,UNIVERSITY OF CHICHESTER,4000239031,112410.00,Grants to educational establishments or not for profit organisations including other businesses
Department for Education,NATIONAL COLLEGE FOR TEACHING AND LEADERSHIP AGENCY,02/06/2016,Grants,Operations Directorate,UNIVERSITY OF CHICHESTER,4000239031,2810.00,Grants to educational establishments or not for profit organisations including other businesses
Department for Education,NATIONAL COLLEGE FOR TEACHING AND LEADERSHIP AGENCY,02/06/2016,Grants,Delivery Directorate,UNIVERSITY OF CHICHESTER,4000239031,11340.00,Grants to educational establishments or not for profit organisations including other businesses
Department for Education,NATIONAL COLLEGE FOR TEACHING AND LEADERSHIP AGENCY,02/06/2016,Grants,Delivery Directorate,UNIVERSITY OF CHESTER,4000239032,3400.00,Grants to educational establishments or not for profit organisations including other businesses
Department for Education,NATIONAL COLLEGE FOR TEACHING AND LEADERSHIP AGENCY,02/06/2016,Grants,Operations Directorate,UNIVERSITY OF CHESTER,4000239032,213120.00,Grants to educational establishments or not for profit organisations including other businesses
Department for Education,NATIONAL COLLEGE FOR TEACHING AND LEADERSHIP AGENCY,02/06/2016,Grants,Delivery Directorate,UNIVERSITY OF CHESTER,4000239032,3780.00,Grants to educational establishments or not for profit organisations including other businesses
Department for Education,NATIONAL COLLEGE FOR TEACHING AND LEADERSHIP AGENCY,02/06/2016,Grants,Delivery Directorate,UNIVERSITY OF CUMBRIA,4000239033,8200.00,Grants to educational establishments or not for profit organisations including other businesses
Department for Education,NATIONAL COLLEGE FOR TEACHING AND LEADERSHIP AGENCY,02/06/2016,Grants,Operations Directorate,UNIVERSITY OF CUMBRIA,4000239033,183.60,Grants to educational establishments or not for profit organisations including other businesses
Department for Education,NATIONAL COLLEGE FOR TEACHING AND LEADERSHIP AGENCY,02/06/2016,Grants,Operations Directorate,UNIVERSITY OF CUMBRIA,4000239033,358110.00,Grants to educational establishments or not for profit organisations including other businesses
Department for Education,NATIONAL COLLEGE FOR TEACHING AND LEADERSHIP AGENCY,02/06/2016,Grants,Operations Directorate,UNIVERSITY OF CUMBRIA,4000239033,1910.00,Grants to educational establishments or not for profit organisations including other businesses
Department for Education,NATIONAL COLLEGE FOR TEACHING AND LEADERSHIP AGENCY,02/06/2016,Grants,Operations Directorate,MINSTHORPE COMMUNITY COLLEGE,4000239034,31500.00,Grants to educational establishments or not for profit organisations including other businesses
Department for Education,DEPARTMENT FOR EDUCATION,02/06/2016,ICT,Information Technology Group,SKILLS FUNDING AGENCY,4000239035,56004.00,ICT Services
Department for Education,DEPARTMENT FOR EDUCATION,02/06/2016,ICT,Information Technology Investment Programme,SKILLS FUNDING AGENCY,4000239035,512496.00,ICT Services
Department for Education,NATIONAL COLLEGE FOR TEACHING AND LEADERSHIP AGENCY,02/06/2016,Grants,Operations Directorate,NORTH BEDS SCITT CONSORTIUM,4000239036,44550.00,Grants to educational establishments or not for profit organisations including other businesses
Department for Education,NATIONAL COLLEGE FOR TEACHING AND LEADERSHIP AGENCY,02/06/2016,Grants,Delivery Directorate,NEWMAN COLLEGE,4000239037,9923.79,Grants to educational establishments or not for profit organisations including other businesses
Department for Education,NATIONAL COLLEGE FOR TEACHING AND LEADERSHIP AGENCY,02/06/2016,Grants,Operations Directorate,NEWMAN COLLEGE,4000239037,150660.00,Grants to educational establishments or not for profit organisations including other businesses
Department for Education,NATIONAL COLLEGE FOR TEACHING AND LEADERSHIP AGENCY,02/06/2016,Grants,Operations Directorate,NEWMAN COLLEGE,4000239037,26055.00,Grants to educational establishments or not for profit organisations including other businesses
Department for Education,NATIONAL COLLEGE FOR TEACHING AND LEADERSHIP AGENCY,02/06/2016,Grants,Delivery Directorate,NEWMAN COLLEGE,4000239037,10440.00,Grants to educational establishments or not for profit organisations including other businesses
Department for Education,NATIONAL COLLEGE FOR TEACHING AND LEADERSHIP AGENCY,02/06/2016,Grants,Delivery Directorate,NOTTINGHAMSHIRE TORCH SCITT,4000239045,3200.00,Grants to educational establishments or not for profit organisations including other businesses
Department for Education,NATIONAL COLLEGE FOR TEACHING AND LEADERSHIP AGENCY,02/06/2016,Grants,Operations Directorate,NOTTINGHAMSHIRE TORCH SCITT,4000239045,23220.00,Grants to educational establishments or not for profit organisations including other businesses
Department for Education,NATIONAL COLLEGE FOR TEACHING AND LEADERSHIP AGENCY,02/06/2016,Grants,Operations Directorate,NOTTINGHAMSHIRE TORCH SCITT,4000239045,4720.00,Grants to educational establishments or not for profit organisations including other businesses
Department for Education,NATIONAL COLLEGE FOR TEACHING AND LEADERSHIP AGENCY,02/06/2016,Grants,Delivery Directorate,UNIVERSITY OF GREENWICH,4000239047,18026.67,Grants to educational establishments or not for profit organisations including other businesses
Department for Education,NATIONAL COLLEGE FOR TEACHING AND LEADERSHIP AGENCY,02/06/2016,Grants,Operations Directorate,UNIVERSITY OF GREENWICH,4000239047,194580.00,Grants to educational establishments or not for profit organisations including other businesses
Department for Education,NATIONAL COLLEGE FOR TEACHING AND LEADERSHIP AGENCY,02/06/2016,Grants,Operations Directorate,UNIVERSITY OF GREENWICH,4000239047,13155.00,Grants to educational establishments or not for profit organisations including other businesses
Department for Education,NATIONAL COLLEGE FOR TEACHING AND LEADERSHIP AGENCY,02/06/2016,Grants,Operations Directorate,UNIVERSITY OF GREENWICH,4000239047,17160.00,Grants to educational establishments or not for profit organisations including other businesses
Department for Education,NATIONAL COLLEGE FOR TEACHING AND LEADERSHIP AGENCY,02/06/2016,Grants,Delivery Directorate,UNIVERSITY OF GREENWICH,4000239047,10900.00,Grants to educational establishments or not for profit organisations including other businesses
Department for Education,DEPARTMENT FOR EDUCATION,02/06/2016,Grants,Adoption and Children in Care Division,NOTTINGHAM CITY COUNCIL,4000239050,27000.00,Grants to local authorities / other establishments within aggregate external funding or aggregate exchequer grant
Department for Education,DEPARTMENT FOR EDUCATION,02/06/2016,Grants,Adoption and Children in Care Division,SOUTHEND ON SEA BOROUGH COUNCIL,4000239051,86000.00,Grants to local authorities / other establishments within aggregate external funding or aggregate exchequer grant
Department for Education,NATIONAL COLLEGE FOR TEACHING AND LEADERSHIP AGENCY,02/06/2016,Grants,Operations Directorate,THE KIRKLEES PARTNERSHIP,4000239053,25560.00,Grants to educational establishments or not for profit organisations including other businesses
Department for Education,NATIONAL COLLEGE FOR TEACHING AND LEADERSHIP AGENCY,02/06/2016,Grants,Operations Directorate,THE COLLEGE OF ST MARK & ST JOHN,4000239054,48510.00,Grants to educational establishments or not for profit organisations including other businesses
Department for Education,NATIONAL COLLEGE FOR TEACHING AND LEADERSHIP AGENCY,02/06/2016,Grants,Operations Directorate,THE COLLEGE OF ST MARK & ST JOHN,4000239054,61820.00,Grants to educational establishments or not for profit organisations including other businesses
Department for Education,NATIONAL COLLEGE FOR TEACHING AND LEADERSHIP AGENCY,02/06/2016,Grants,Delivery Directorate,THE COLLEGE OF ST MARK & ST JOHN,4000239054,18540.00,Grants to educational establishments or not for profit organisations including other businesses
Department for Education,NATIONAL COLLEGE FOR TEACHING AND LEADERSHIP AGENCY,02/06/2016,Grants,Operations Directorate,SHEFFIELD HALLAM UNIVERSITY,4000239055,359820.00,Grants to educational establishments or not for profit organisations including other businesses
Department for Education,NATIONAL COLLEGE FOR TEACHING AND LEADERSHIP AGENCY,02/06/2016,Grants,Operations Directorate,SHEFFIELD HALLAM UNIVERSITY,4000239055,10227.80,Grants to educational establishments or not for profit organisations including other businesses
Department for Education,NATIONAL COLLEGE FOR TEACHING AND LEADERSHIP AGENCY,02/06/2016,Grants,Delivery Directorate,SHEFFIELD HALLAM UNIVERSITY,4000239055,20880.00,Grants to educational establishments or not for profit organisations including other businesses
Department for Education,NATIONAL COLLEGE FOR TEACHING AND LEADERSHIP AGENCY,02/06/2016,Grants,Delivery Directorate,UNIVERSITY OF BRIGHTON,4000239056,20380.93,Grants to educational establishments or not for profit organisations including other businesses
Department for Education,NATIONAL COLLEGE FOR TEACHING AND LEADERSHIP AGENCY,02/06/2016,Grants,Operations Directorate,UNIVERSITY OF BRIGHTON,4000239056,35280.00,Grants to educational establishments or not for profit organisations including other businesses
Department for Education,NATIONAL COLLEGE FOR TEACHING AND LEADERSHIP AGENCY,02/06/2016,Grants,Delivery Directorate,LINCOLNSHIRE TEACHING SCHOOL ALLIANCE,4000239057,5200.01,Grants to educational establishments or not for profit organisations including other businesses
Department for Education,NATIONAL COLLEGE FOR TEACHING AND LEADERSHIP AGENCY,02/06/2016,Grants,Operations Directorate,LINCOLNSHIRE TEACHING SCHOOL ALLIANCE,4000239057,27540.00,Grants to educational establishments or not for profit organisations including other businesses
Department for Education,NATIONAL COLLEGE FOR TEACHING AND LEADERSHIP AGENCY,02/06/2016,Grants,Operations Directorate,LINCOLNSHIRE TEACHING SCHOOL ALLIANCE,4000239057,3705.00,Grants to educational establishments or not for profit organisations including other businesses
Department for Education,NATIONAL COLLEGE FOR TEACHING AND LEADERSHIP AGENCY,02/06/2016,Grants,Operations Directorate,SWINDON SCITT,4000239058,28980.00,Grants to educational establishments or not for profit organisations including other businesses
Department for Education,DEPARTMENT FOR EDUCATION,02/06/2016,Grants,Adoption and Children in Care Division,PLYMOUTH CITY COUNCIL,4000239063,86000.00,Grants to local authorities / other establishments within aggregate external funding or aggregate exchequer grant
Department for Education,DEPARTMENT FOR EDUCATION,02/06/2016,Grants,Adoption and Children in Care Division,SWINDON BOROUGH COUNCIL,4000239065,27000.00,Grants to local authorities / other establishments within aggregate external funding or aggregate exchequer grant
Department for Education,DEPARTMENT FOR EDUCATION,02/06/2016,Grants,Adoption and Children in Care Division,WILTSHIRE COUNCIL,4000239066,97000.00,Grants to local authorities / other establishments within aggregate external funding or aggregate exchequer grant
Department for Education,NATIONAL COLLEGE FOR TEACHING AND LEADERSHIP AGENCY,02/06/2016,Grants,Operations Directorate,UNIVERSITY OF BRIGHTON,4000239067,179.45,Grants to educational establishments or not for profit organisations including other businesses
Department for Education,NATIONAL COLLEGE FOR TEACHING AND LEADERSHIP AGENCY,02/06/2016,Grants,Operations Directorate,UNIVERSITY OF BRIGHTON,4000239067,231660.00,Grants to educational establishments or not for profit organisations including other businesses
Department for Education,NATIONAL COLLEGE FOR TEACHING AND LEADERSHIP AGENCY,02/06/2016,Grants,Operations Directorate,UNIVERSITY OF BRIGHTON,4000239067,3630.00,Grants to educational establishments or not for profit organisations including other businesses
Department for Education,NATIONAL COLLEGE FOR TEACHING AND LEADERSHIP AGENCY,02/06/2016,Grants,Delivery Directorate,UNIVERSITY OF BRIGHTON,4000239067,18900.00,Grants to educational establishments or not for profit organisations including other businesses
Department for Education,NATIONAL COLLEGE FOR TEACHING AND LEADERSHIP AGENCY,02/06/2016,Grants,Delivery Directorate,UNIVERSITY OF NOTTINGHAM,4000239068,1066.67,Grants to educational establishments or not for profit organisations including other businesses
Department for Education,NATIONAL COLLEGE FOR TEACHING AND LEADERSHIP AGENCY,02/06/2016,Grants,Operations Directorate,UNIVERSITY OF NOTTINGHAM,4000239068,272880.00,Grants to educational establishments or not for profit organisations including other businesses
Department for Education,NATIONAL COLLEGE FOR TEACHING AND LEADERSHIP AGENCY,02/06/2016,Grants,Operations Directorate,THE OAKS SCITT,4000239073,72180.00,Grants to educational establishments or not for profit organisations including other businesses
Department for Education,DEPARTMENT FOR EDUCATION,02/06/2016,Grants,Adoption and Children in Care Division,SOUTHAMPTON CITY COUNCIL,4000239075,260000.00,Grants to local authorities / other establishments within aggregate external funding or aggregate exchequer grant
Department for Education,DEPARTMENT FOR EDUCATION,02/06/2016,Grants,Adoption and Children in Care Division,LUTON BOROUGH COUNCIL,4000239078,97000.00,Grants to local authorities / other establishments within aggregate external funding or aggregate exchequer grant
Department for Education,NATIONAL COLLEGE FOR TEACHING AND LEADERSHIP AGENCY,02/06/2016,Grants,Operations Directorate,UNIVERSITY OF WARWICK,4000239089,200700.00,Grants to educational establishments or not for profit organisations including other businesses
Department for Education,NATIONAL COLLEGE FOR TEACHING AND LEADERSHIP AGENCY,02/06/2016,Grants,Operations Directorate,UNIVERSITY OF WARWICK,4000239089,14425.40,Grants to educational establishments or not for profit organisations including other businesses
Department for Education,NATIONAL COLLEGE FOR TEACHING AND LEADERSHIP AGENCY,02/06/2016,Grants,Delivery Directorate,UNIVERSITY OF WARWICK,4000239089,19910.00,Grants to educational establishments or not for profit organisations including other businesses
Department for Education,NATIONAL COLLEGE FOR TEACHING AND LEADERSHIP AGENCY,02/06/2016,Grants,Operations Directorate,NEWCASTLE COLLEGE GROUP,4000239092,47300.00,Grants to educational establishments or not for profit organisations including other businesses
Department for Education,NATIONAL COLLEGE FOR TEACHING AND LEADERSHIP AGENCY,02/06/2016,Grants,Operations Directorate,UNIVERSITY OF BOLTON,4000239093,101340.00,Grants to educational establishments or not for profit organisations including other businesses
Department for Education,NATIONAL COLLEGE FOR TEACHING AND LEADERSHIP AGENCY,02/06/2016,Grants,Operations Directorate,UNIVERSITY OF BEDFORDSHIRE,4000239096,1709.10,Grants to educational establishments or not for profit organisations including other businesses
Department for Education,NATIONAL COLLEGE FOR TEACHING AND LEADERSHIP AGENCY,02/06/2016,Grants,Operations Directorate,UNIVERSITY OF BEDFORDSHIRE,4000239096,62730.00,Grants to educational establishments or not for profit organisations including other businesses
Department for Education,NATIONAL COLLEGE FOR TEACHING AND LEADERSHIP AGENCY,02/06/2016,Grants,Delivery Directorate,UNIVERSITY OF BEDFORDSHIRE,4000239096,36540.00,Grants to educational establishments or not for profit organisations including other businesses
Department for Education,NATIONAL COLLEGE FOR TEACHING AND LEADERSHIP AGENCY,02/06/2016,Grants,Operations Directorate,LOUGHBOROUGH UNIVERSITY ENTERPRISE LTD,4000239097,26550.00,Grants to educational establishments or not for profit organisations including other businesses
Department for Education,NATIONAL COLLEGE FOR TEACHING AND LEADERSHIP AGENCY,02/06/2016,Grants,Operations Directorate,NOTLEY HIGH SCHOOL & BRAINTREE SIXTH FORM,4000239099,37800.00,Grants to educational establishments or not for profit organisations including other businesses
Department for Education,NATIONAL COLLEGE FOR TEACHING AND LEADERSHIP AGENCY,02/06/2016,Grants,Delivery Directorate,LIVERPOOL HOPE UNIVERSITY,4000239100,8800.00,Grants to educational establishments or not for profit organisations including other businesses
Department for Education,NATIONAL COLLEGE FOR TEACHING AND LEADERSHIP AGENCY,02/06/2016,Grants,Operations Directorate,LIVERPOOL HOPE UNIVERSITY,4000239100,1101.60,Grants to educational establishments or not for profit organisations including other businesses
Department for Education,NATIONAL COLLEGE FOR TEACHING AND LEADERSHIP AGENCY,02/06/2016,Grants,Operations Directorate,LIVERPOOL HOPE UNIVERSITY,4000239100,281250.00,Grants to educational establishments or not for profit organisations including other businesses
Department for Education,NATIONAL COLLEGE FOR TEACHING AND LEADERSHIP AGENCY,02/06/2016,Grants,Operations Directorate,KINGSTON UNIVERSITY,4000239102,119430.00,Grants to educational establishments or not for profit organisations including other businesses
Department for Education,NATIONAL COLLEGE FOR TEACHING AND LEADERSHIP AGENCY,02/06/2016,Grants,Delivery Directorate,KINGSTON UNIVERSITY,4000239102,23940.00,Grants to educational establishments or not for profit organisations including other businesses
Department for Education,NATIONAL COLLEGE FOR TEACHING AND LEADERSHIP AGENCY,02/06/2016,Grants,Operations Directorate,LEICESTERSHIRE SECONDARY SCITT,4000239106,34650.00,Grants to educational establishments or not for profit organisations including other businesses
Department for Education,NATIONAL COLLEGE FOR TEACHING AND LEADERSHIP AGENCY,02/06/2016,Grants,Operations Directorate,UNIVERSITY OF GLOUCESTERSHIRE,4000239111,68040.00,Grants to educational establishments or not for profit organisations including other businesses
Department for Education,NATIONAL COLLEGE FOR TEACHING AND LEADERSHIP AGENCY,02/06/2016,Grants,Delivery Directorate,UNIVERSITY OF GLOUCESTERSHIRE,4000239111,28980.00,Grants to educational establishments or not for profit organisations including other businesses
Department for Education,NATIONAL COLLEGE FOR TEACHING AND LEADERSHIP AGENCY,02/06/2016,Grants,Delivery Directorate,UNIVERSITY OF SHEFFIELD,4000239113,1386.67,Grants to educational establishments or not for profit organisations including other businesses
Department for Education,NATIONAL COLLEGE FOR TEACHING AND LEADERSHIP AGENCY,02/06/2016,Grants,Operations Directorate,UNIVERSITY OF SHEFFIELD,4000239113,154440.00,Grants to educational establishments or not for profit organisations including other businesses
Department for Education,NATIONAL COLLEGE FOR TEACHING AND LEADERSHIP AGENCY,02/06/2016,Grants,Operations Directorate,UNIVERSITY OF SHEFFIELD,4000239113,3705.00,Grants to educational establishments or not for profit organisations including other businesses
Department for Education,NATIONAL COLLEGE FOR TEACHING AND LEADERSHIP AGENCY,02/06/2016,Grants,Delivery Directorate,NOTRE DAME HIGH SCHOOL,4000239114,800.00,Grants to educational establishments or not for profit organisations including other businesses
Department for Education,NATIONAL COLLEGE FOR TEACHING AND LEADERSHIP AGENCY,02/06/2016,Grants,Operations Directorate,NOTRE DAME HIGH SCHOOL,4000239114,33300.00,Grants to educational establishments or not for profit organisations including other businesses
Department for Education,NATIONAL COLLEGE FOR TEACHING AND LEADERSHIP AGENCY,02/06/2016,Grants,Operations Directorate,NOTRE DAME HIGH SCHOOL,4000239114,1910.00,Grants to educational establishments or not for profit organisations including other businesses
Department for Education,NATIONAL COLLEGE FOR TEACHING AND LEADERSHIP AGENCY,02/06/2016,Grants,Operations Directorate,UNIVERSITY OF PLYMOUTH,4000239118,81720.00,Grants to educational establishments or not for profit organisations including other businesses
Department for Education,NATIONAL COLLEGE FOR TEACHING AND LEADERSHIP AGENCY,02/06/2016,Grants,Delivery Directorate,UNIVERSITY OF PLYMOUTH,4000239118,21870.00,Grants to educational establishments or not for profit organisations including other businesses
Department for Education,NATIONAL COLLEGE FOR TEACHING AND LEADERSHIP AGENCY,02/06/2016,Grants,Delivery Directorate,UNIVERSITY OF SUSSEX,4000239119,136837.60,Grants to educational establishments or not for profit organisations including other businesses
Department for Education,NATIONAL COLLEGE FOR TEACHING AND LEADERSHIP AGENCY,02/06/2016,Grants,Operations Directorate,UNIVERSITY OF SUSSEX,4000239119,264870.00,Grants to educational establishments or not for profit organisations including other businesses
Department for Education,NATIONAL COLLEGE FOR TEACHING AND LEADERSHIP AGENCY,02/06/2016,Grants,Operations Directorate,UNIVERSITY OF SUSSEX,4000239119,117365.00,Grants to educational establishments or not for profit organisations including other businesses
Department for Education,NATIONAL COLLEGE FOR TEACHING AND LEADERSHIP AGENCY,02/06/2016,Grants,Delivery Directorate,UNIVERSITY OF SUSSEX,4000239119,15570.00,Grants to educational establishments or not for profit organisations including other businesses
Department for Education,NATIONAL COLLEGE FOR TEACHING AND LEADERSHIP AGENCY,02/06/2016,Grants,Delivery Directorate,THORNDEN SCHOOL,4000239120,7733.33,Grants to educational establishments or not for profit organisations including other businesses
Department for Education,NATIONAL COLLEGE FOR TEACHING AND LEADERSHIP AGENCY,02/06/2016,Grants,Operations Directorate,THORNDEN SCHOOL,4000239120,12510.00,Grants to educational establishments or not for profit organisations including other businesses
Department for Education,NATIONAL COLLEGE FOR TEACHING AND LEADERSHIP AGENCY,02/06/2016,Grants,Operations Directorate,THORNDEN SCHOOL,4000239120,14820.00,Grants to educational establishments or not for profit organisations including other businesses
Department for Education,NATIONAL COLLEGE FOR TEACHING AND LEADERSHIP AGENCY,02/06/2016,Grants,Operations Directorate,KINGS COLLEGE GUILDFORD,4000239122,317160.00,Grants to educational establishments or not for profit organisations including other businesses
Department for Education,NATIONAL COLLEGE FOR TEACHING AND LEADERSHIP AGENCY,02/06/2016,Grants,Operations Directorate,UNIVERSITY OF THE WEST OF ENGLAND,4000239129,157590.00,Grants to educational establishments or not for profit organisations including other businesses
Department for Education,NATIONAL COLLEGE FOR TEACHING AND LEADERSHIP AGENCY,02/06/2016,Grants,Delivery Directorate,UNIVERSITY OF THE WEST OF ENGLAND,4000239129,10080.00,Grants to educational establishments or not for profit organisations including other businesses
Department for Education,NATIONAL COLLEGE FOR TEACHING AND LEADERSHIP AGENCY,02/06/2016,Grants,Operations Directorate,UNIVERSITY OF PORTSMOUTH,4000239131,140040.00,Grants to educational establishments or not for profit organisations including other businesses
Department for Education,NATIONAL COLLEGE FOR TEACHING AND LEADERSHIP AGENCY,02/06/2016,Grants,Operations Directorate,UNIVERSITY OF PORTSMOUTH,4000239131,1430.00,Grants to educational establishments or not for profit organisations including other businesses
Department for Education,NATIONAL COLLEGE FOR TEACHING AND LEADERSHIP AGENCY,02/06/2016,Grants,Delivery Directorate,UNIVERSITY OF PORTSMOUTH,4000239131,10080.00,Grants to educational establishments or not for profit organisations including other businesses
Department for Education,NATIONAL COLLEGE FOR TEACHING AND LEADERSHIP AGENCY,02/06/2016,Grants,Operations Directorate,UNIVERSITY OF YORK,4000239134,171720.00,Grants to educational establishments or not for profit organisations including other businesses
Department for Education,NATIONAL COLLEGE FOR TEACHING AND LEADERSHIP AGENCY,02/06/2016,Grants,Delivery Directorate,UNIVERSITY OF EAST ANGLIA,4000239136,1000.00,Grants to educational establishments or not for profit organisations including other businesses
Department for Education,NATIONAL COLLEGE FOR TEACHING AND LEADERSHIP AGENCY,02/06/2016,Grants,Operations Directorate,UNIVERSITY OF EAST ANGLIA,4000239136,212940.00,Grants to educational establishments or not for profit organisations including other businesses
Department for Education,NATIONAL COLLEGE FOR TEACHING AND LEADERSHIP AGENCY,02/06/2016,Grants,Operations Directorate,UNIVERSITY OF EAST ANGLIA,4000239136,3942.50,Grants to educational establishments or not for profit organisations including other businesses
Department for Education,NATIONAL COLLEGE FOR TEACHING AND LEADERSHIP AGENCY,02/06/2016,Grants,Operations Directorate,UNIVERSITY OF DERBY,4000239138,2295.00,Grants to educational establishments or not for profit organisations including other businesses
Department for Education,NATIONAL COLLEGE FOR TEACHING AND LEADERSHIP AGENCY,02/06/2016,Grants,Operations Directorate,UNIVERSITY OF DERBY,4000239138,112600.00,Grants to educational establishments or not for profit organisations including other businesses
Department for Education,NATIONAL COLLEGE FOR TEACHING AND LEADERSHIP AGENCY,02/06/2016,Grants,Operations Directorate,UNIVERSITY OF DERBY,4000239138,332.20,Grants to educational establishments or not for profit organisations including other businesses
Department for Education,NATIONAL COLLEGE FOR TEACHING AND LEADERSHIP AGENCY,02/06/2016,Grants,Delivery Directorate,UNIVERSITY OF DERBY,4000239138,19890.00,Grants to educational establishments or not for profit organisations including other businesses
Department for Education,NATIONAL COLLEGE FOR TEACHING AND LEADERSHIP AGENCY,02/06/2016,Grants,Operations Directorate,STAFFORDSHIRE UNIVERSITY,4000239139,41220.00,Grants to educational establishments or not for profit organisations including other businesses
Department for Education,NATIONAL COLLEGE FOR TEACHING AND LEADERSHIP AGENCY,02/06/2016,Grants,Operations Directorate,STAFFORDSHIRE UNIVERSITY,4000239139,26740.00,Grants to educational establishments or not for profit organisations including other businesses
Department for Education,NATIONAL COLLEGE FOR TEACHING AND LEADERSHIP AGENCY,02/06/2016,Grants,Operations Directorate,STAFFORDSHIRE UNIVERSITY,4000239139,5940.00,Grants to educational establishments or not for profit organisations including other businesses
Department for Education,NATIONAL COLLEGE FOR TEACHING AND LEADERSHIP AGENCY,02/06/2016,Grants,Delivery Directorate,STAFFORDSHIRE UNIVERSITY,4000239139,8820.00,Grants to educational establishments or not for profit organisations including other businesses
Department for Education,NATIONAL COLLEGE FOR TEACHING AND LEADERSHIP AGENCY,02/06/2016,Grants,Operations Directorate,LEEDS BECKETT UNIVERSITY,4000239140,734.40,Grants to educational establishments or not for profit organisations including other businesses
Department for Education,NATIONAL COLLEGE FOR TEACHING AND LEADERSHIP AGENCY,02/06/2016,Grants,Operations Directorate,LEEDS BECKETT UNIVERSITY,4000239140,57420.00,Grants to educational establishments or not for profit organisations including other businesses
Department for Education,NATIONAL COLLEGE FOR TEACHING AND LEADERSHIP AGENCY,02/06/2016,Grants,Delivery Directorate,LEEDS BECKETT UNIVERSITY,4000239140,6210.00,Grants to educational establishments or not for profit organisations including other businesses
Department for Education,STANDARDS AND TESTING AGENCY,02/06/2016,Office Solutions,Test Operations Division,PARCELFORCE WORLDWIDE,4000239142,207192.54,Post and courier services
Department for Education,NATIONAL COLLEGE FOR TEACHING AND LEADERSHIP AGENCY,02/06/2016,Grants,Operations Directorate,LIVERPOOL JOHN MOORES UNIVERSITY,4000239145,157590.00,Grants to educational establishments or not for profit organisations including other businesses
Department for Education,NATIONAL COLLEGE FOR TEACHING AND LEADERSHIP AGENCY,02/06/2016,Grants,Operations Directorate,UNIVERSITY OF CAMBRIDGE,4000239146,281340.00,Grants to educational establishments or not for profit organisations including other businesses
Department for Education,NATIONAL COLLEGE FOR TEACHING AND LEADERSHIP AGENCY,02/06/2016,Grants,Operations Directorate,UNIVERSITY OF NEWCASTLE UPON TYNE,4000239147,133470.00,Grants to educational establishments or not for profit organisations including other businesses
Department for Education,NATIONAL COLLEGE FOR TEACHING AND LEADERSHIP AGENCY,02/06/2016,Grants,Delivery Directorate,UNIVERSITY OF WOLVERHAMPTON,4000239148,20628.58,Grants to educational establishments or not for profit organisations including other businesses
Department for Education,NATIONAL COLLEGE FOR TEACHING AND LEADERSHIP AGENCY,02/06/2016,Grants,Operations Directorate,UNIVERSITY OF WOLVERHAMPTON,4000239148,200880.00,Grants to educational establishments or not for profit organisations including other businesses
Department for Education,NATIONAL COLLEGE FOR TEACHING AND LEADERSHIP AGENCY,02/06/2016,Grants,Operations Directorate,UNIVERSITY OF WOLVERHAMPTON,4000239148,8910.00,Grants to educational establishments or not for profit organisations including other businesses
Department for Education,NATIONAL COLLEGE FOR TEACHING AND LEADERSHIP AGENCY,02/06/2016,Grants,Delivery Directorate,UNIVERSITY OF WOLVERHAMPTON,4000239148,20160.00,Grants to educational establishments or not for profit organisations including other businesses
Department for Education,NATIONAL COLLEGE FOR TEACHING AND LEADERSHIP AGENCY,02/06/2016,Grants,Operations Directorate,UNIVERSITY OF DURHAM,4000239149,165060.00,Grants to educational establishments or not for profit organisations including other businesses
Department for Education,NATIONAL COLLEGE FOR TEACHING AND LEADERSHIP AGENCY,02/06/2016,Grants,Operations Directorate,LEEDS TRINITY UNIVERSITY COLLEGE,4000239150,2478.60,Grants to educational establishments or not for profit organisations including other businesses
Department for Education,NATIONAL COLLEGE FOR TEACHING AND LEADERSHIP AGENCY,02/06/2016,Grants,Operations Directorate,LEEDS TRINITY UNIVERSITY COLLEGE,4000239150,204750.00,Grants to educational establishments or not for profit organisations including other businesses
Department for Education,NATIONAL COLLEGE FOR TEACHING AND LEADERSHIP AGENCY,02/06/2016,Grants,Delivery Directorate,LEEDS TRINITY UNIVERSITY COLLEGE,4000239150,11340.00,Grants to educational establishments or not for profit organisations including other businesses
Department for Education,NATIONAL COLLEGE FOR TEACHING AND LEADERSHIP AGENCY,02/06/2016,Grants,Delivery Directorate,UNIVERSITY OF SUNDERLAND,4000239151,12840.00,Grants to educational establishments or not for profit organisations including other businesses
Department for Education,NATIONAL COLLEGE FOR TEACHING AND LEADERSHIP AGENCY,02/06/2016,Grants,Operations Directorate,UNIVERSITY OF SUNDERLAND,4000239151,119250.00,Grants to educational establishments or not for profit organisations including other businesses
Department for Education,NATIONAL COLLEGE FOR TEACHING AND LEADERSHIP AGENCY,02/06/2016,Grants,Operations Directorate,UNIVERSITY OF SUNDERLAND,4000239151,4620.00,Grants to educational establishments or not for profit organisations including other businesses
Department for Education,NATIONAL COLLEGE FOR TEACHING AND LEADERSHIP AGENCY,02/06/2016,Grants,Delivery Directorate,UNIVERSITY OF SUNDERLAND,4000239151,19260.00,Grants to educational establishments or not for profit organisations including other businesses
Department for Education,DEPARTMENT FOR EDUCATION,02/06/2016,Grants,Adoption and Children in Care Division,NEWCASTLE CITY COUNCIL,4000239153,27000.00,Grants to local authorities / other establishments within aggregate external funding or aggregate exchequer grant
Department for Education,DEPARTMENT FOR EDUCATION,02/06/2016,Grants,Adoption and Children in Care Division,KIRKLEES COUNCIL,4000239155,97000.00,Grants to local authorities / other establishments within aggregate external funding or aggregate exchequer grant
Department for Education,DEPARTMENT FOR EDUCATION,02/06/2016,Grants,Adoption and Children in Care Division,LONDON BOROUGH OF REDBRIDGE,4000239156,27000.00,Grants to local authorities / other establishments within aggregate external funding or aggregate exchequer grant
Department for Education,NATIONAL COLLEGE FOR TEACHING AND LEADERSHIP AGENCY,02/06/2016,Grants,Operations Directorate,UNIVERSITY OF HUDDERSFIELD,4000239158,69930.00,Grants to educational establishments or not for profit organisations including other businesses
Department for Education,NATIONAL COLLEGE FOR TEACHING AND LEADERSHIP AGENCY,02/06/2016,Grants,Operations Directorate,UNIVERSITY OF HUDDERSFIELD,4000239158,13915.00,Grants to educational establishments or not for profit organisations including other businesses
Department for Education,NATIONAL COLLEGE FOR TEACHING AND LEADERSHIP AGENCY,02/06/2016,Grants,Delivery Directorate,UNIVERSITY OF HUDDERSFIELD,4000239158,16920.00,Grants to educational establishments or not for profit organisations including other businesses
Department for Education,NATIONAL COLLEGE FOR TEACHING AND LEADERSHIP AGENCY,02/06/2016,Grants,Operations Directorate,SOUTHEND HIGH SCHOOL FOR GIRLS,4000239159,29160.00,Grants to educational establishments or not for profit organisations including other businesses
Department for Education,NATIONAL COLLEGE FOR TEACHING AND LEADERSHIP AGENCY,02/06/2016,Grants,Delivery Directorate,UNIVERSITY OF BIRMINGHAM,4000239160,17600.00,Grants to educational establishments or not for profit organisations including other businesses
Department for Education,NATIONAL COLLEGE FOR TEACHING AND LEADERSHIP AGENCY,02/06/2016,Grants,Operations Directorate,UNIVERSITY OF BIRMINGHAM,4000239160,284130.00,Grants to educational establishments or not for profit organisations including other businesses
Department for Education,NATIONAL COLLEGE FOR TEACHING AND LEADERSHIP AGENCY,02/06/2016,Grants,Operations Directorate,DURHAM SECONDARY APPLIED SCITT,4000239167,56700.00,Grants to educational establishments or not for profit organisations including other businesses
Department for Education,NATIONAL COLLEGE FOR TEACHING AND LEADERSHIP AGENCY,02/06/2016,Grants,Delivery Directorate,EDGE HILL UNIVERSITY,4000239171,39759.97,Grants to educational establishments or not for profit organisations including other businesses
Department for Education,NATIONAL COLLEGE FOR TEACHING AND LEADERSHIP AGENCY,02/06/2016,Grants,Operations Directorate,EDGE HILL UNIVERSITY,4000239171,552600.00,Grants to educational establishments or not for profit organisations including other businesses
Department for Education,NATIONAL COLLEGE FOR TEACHING AND LEADERSHIP AGENCY,02/06/2016,Grants,Operations Directorate,EDGE HILL UNIVERSITY,4000239171,7530.00,Grants to educational establishments or not for profit organisations including other businesses
Department for Education,NATIONAL COLLEGE FOR TEACHING AND LEADERSHIP AGENCY,02/06/2016,Grants,Operations Directorate,EDGE HILL UNIVERSITY,4000239171,33880.00,Grants to educational establishments or not for profit organisations including other businesses
Department for Education,NATIONAL COLLEGE FOR TEACHING AND LEADERSHIP AGENCY,02/06/2016,Grants,Delivery Directorate,EDGE HILL UNIVERSITY,4000239171,85680.00,Grants to educational establishments or not for profit organisations including other businesses
Department for Education,NATIONAL COLLEGE FOR TEACHING AND LEADERSHIP AGENCY,02/06/2016,Grants,Operations Directorate,DONCASTER MBC,4000239173,25290.00,Grants to educational establishments or not for profit organisations including other businesses
Department for Education,DEPARTMENT FOR EDUCATION,02/06/2016,Grants,Adoption and Children in Care Division,CUMBRIA COUNTY COUNCIL,4000239174,218300.00,Grants to local authorities / other establishments within aggregate external funding or aggregate exchequer grant
Department for Education,NATIONAL COLLEGE FOR TEACHING AND LEADERSHIP AGENCY,02/06/2016,Grants,Operations Directorate,ESSEX COUNTY COUNCIL,4000239175,47520.00,Grants to educational establishments or not for profit organisations including other businesses
Department for Education,DEPARTMENT FOR EDUCATION,02/06/2016,Grants,Adoption and Children in Care Division,ESSEX COUNTY COUNCIL,4000239176,67000.00,Grants to local authorities / other establishments within aggregate external funding or aggregate exchequer grant
Department for Education,NATIONAL COLLEGE FOR TEACHING AND LEADERSHIP AGENCY,02/06/2016,Grants,Operations Directorate,DEVON COUNTY COUNCIL,4000239177,24120.00,Grants to educational establishments or not for profit organisations including other businesses
Department for Education,NATIONAL COLLEGE FOR TEACHING AND LEADERSHIP AGENCY,02/06/2016,Travel,Operations Directorate,DEVON COUNTY COUNCIL,4000239177,1300.00,Hosting conferences including programme activity such as conferences for teachers
Department for Education,DEPARTMENT FOR EDUCATION,02/06/2016,Grants,Adoption and Children in Care Division,HAMPSHIRE COUNTY COUNCIL,4000239178,87000.00,Grants to local authorities / other establishments within aggregate external funding or aggregate exchequer grant
Department for Education,NATIONAL COLLEGE FOR TEACHING AND LEADERSHIP AGENCY,02/06/2016,Grants,Delivery Directorate,HIBERNIA COLLEGE UK,4000239183,422866.48,Grants to educational establishments or not for profit organisations including other businesses
Department for Education,NATIONAL COLLEGE FOR TEACHING AND LEADERSHIP AGENCY,02/06/2016,Grants,Operations Directorate,HIBERNIA COLLEGE UK,4000239183,62550.00,Grants to educational establishments or not for profit organisations including other businesses
Department for Education,NATIONAL COLLEGE FOR TEACHING AND LEADERSHIP AGENCY,02/06/2016,Grants,Operations Directorate,HIBERNIA COLLEGE UK,4000239183,735660.00,Grants to educational establishments or not for profit organisations including other businesses
Department for Education,DEPARTMENT FOR EDUCATION,02/06/2016,Grants,Adoption and Children in Care Division,HERTFORDSHIRE COUNTY COUNCIL,4000239189,81000.00,Grants to local authorities / other establishments within aggregate external funding or aggregate exchequer grant
Department for Education,DEPARTMENT FOR EDUCATION,02/06/2016,Personnel Related,Human Resources Group,FIDELITI LTD,4000239190,84746.18,Childcare voucher scheme for staff
Department for Education,DEPARTMENT FOR EDUCATION,02/06/2016,Personnel Related,Human Resources Group,FIDELITI LTD,4000239190,406.78,Childcare voucher scheme for staff - management fee and subsidy costs
Department for Education,NATIONAL COLLEGE FOR TEACHING AND LEADERSHIP AGENCY,02/06/2016,Programme costs,Delivery Directorate,FYLDE COAST TEACHING SCHOOL,4000239193,11000.00,Funding to deliver policies (excluding consultancy) paid to third parties via a service delivery contract
Department for Education,NATIONAL COLLEGE FOR TEACHING AND LEADERSHIP AGENCY,02/06/2016,Grants,Operations Directorate,FYLDE COAST TEACHING SCHOOL,4000239193,18360.00,Grants to educational establishments or not for profit organisations including other businesses
Department for Education,NATIONAL COLLEGE FOR TEACHING AND LEADERSHIP AGENCY,02/06/2016,Grants,Operations Directorate,HAVERING BEACON PARTNERSHIP,4000239196,26640.00,Grants to educational establishments or not for profit organisations including other businesses
Department for Education,NATIONAL COLLEGE FOR TEACHING AND LEADERSHIP AGENCY,02/06/2016,Grants,Delivery Directorate,GRAND UNION TRAINING PARTNERSHIP,4000239197,1760.00,Grants to educational establishments or not for profit organisations including other businesses
Department for Education,NATIONAL COLLEGE FOR TEACHING AND LEADERSHIP AGENCY,02/06/2016,Grants,Operations Directorate,GRAND UNION TRAINING PARTNERSHIP,4000239197,41130.00,Grants to educational establishments or not for profit organisations including other businesses
Department for Education,NATIONAL COLLEGE FOR TEACHING AND LEADERSHIP AGENCY,02/06/2016,Grants,Operations Directorate,GRAND UNION TRAINING PARTNERSHIP,4000239197,1500.00,Grants to educational establishments or not for profit organisations including other businesses
Department for Education,NATIONAL COLLEGE FOR TEACHING AND LEADERSHIP AGENCY,02/06/2016,Grants,Operations Directorate,GOLDSMITH COLLEGE,4000239198,161910.00,Grants to educational establishments or not for profit organisations including other businesses
Department for Education,NATIONAL COLLEGE FOR TEACHING AND LEADERSHIP AGENCY,02/06/2016,Grants,Operations Directorate,GLOUCESTERSHIRE ITE PARTNERSHIP,4000239202,34470.00,Grants to educational establishments or not for profit organisations including other businesses
Department for Education,NATIONAL COLLEGE FOR TEACHING AND LEADERSHIP AGENCY,02/06/2016,Grants,Operations Directorate,EAST LINCOLNSHIRE DRB,4000239204,33300.00,Grants to educational establishments or not for profit organisations including other businesses
Department for Education,NATIONAL COLLEGE FOR TEACHING AND LEADERSHIP AGENCY,02/06/2016,Grants,Operations Directorate,GEORGE SPENCER TRAINING SCHOOL,4000239205,26370.00,Grants to educational establishments or not for profit organisations including other businesses
Department for Education,NATIONAL COLLEGE FOR TEACHING AND LEADERSHIP AGENCY,02/06/2016,Grants,Operations Directorate,E QUALITAS PROFESSIONAL SERVICES LTD,4000239207,26550.00,Grants to educational establishments or not for profit organisations including other businesses
Department for Education,NATIONAL COLLEGE FOR TEACHING AND LEADERSHIP AGENCY,02/06/2016,Travel,Operations Directorate,E QUALITAS PROFESSIONAL SERVICES LTD,4000239207,1352.60,Hosting conferences including programme activity such as conferences for teachers
Department for Education,NATIONAL COLLEGE FOR TEACHING AND LEADERSHIP AGENCY,02/06/2016,Grants,Delivery Directorate,E QUALITAS PROFESSIONAL SERVICES LTD,4000239207,72540.00,Grants to educational establishments or not for profit organisations including other businesses
Department for Education,NATIONAL COLLEGE FOR TEACHING AND LEADERSHIP AGENCY,02/06/2016,Grants,Operations Directorate,EDUCATION MANAGEMENT DIRECT LTD,4000239208,25380.00,Grants to educational establishments or not for profit organisations including other businesses
Department for Education,NATIONAL COLLEGE FOR TEACHING AND LEADERSHIP AGENCY,02/06/2016,Grants,Delivery Directorate,CORNWALL SCITT,4000239211,600.00,Grants to educational establishments or not for profit organisations including other businesses
Department for Education,NATIONAL COLLEGE FOR TEACHING AND LEADERSHIP AGENCY,02/06/2016,Grants,Operations Directorate,CORNWALL SCITT,4000239211,57330.00,Grants to educational establishments or not for profit organisations including other businesses
Department for Education,NATIONAL COLLEGE FOR TEACHING AND LEADERSHIP AGENCY,02/06/2016,Grants,Operations Directorate,HARRIS CITY ACADEMY,4000239212,27630.00,Grants to educational establishments or not for profit organisations including other businesses
Department for Education,NATIONAL COLLEGE FOR TEACHING AND LEADERSHIP AGENCY,02/06/2016,Grants,Operations Directorate,ARK SCHOOLS,4000239221,26190.00,Grants to educational establishments or not for profit organisations including other businesses
Department for Education,NATIONAL COLLEGE FOR TEACHING AND LEADERSHIP AGENCY,02/06/2016,Grants,Delivery Directorate,BIRMINGHAM CITY UNIVERSITY,4000239226,32586.73,Grants to educational establishments or not for profit organisations including other businesses
Department for Education,NATIONAL COLLEGE FOR TEACHING AND LEADERSHIP AGENCY,02/06/2016,Grants,Operations Directorate,BIRMINGHAM CITY UNIVERSITY,4000239226,158220.00,Grants to educational establishments or not for profit organisations including other businesses
Department for Education,NATIONAL COLLEGE FOR TEACHING AND LEADERSHIP AGENCY,02/06/2016,Grants,Operations Directorate,BIRMINGHAM CITY UNIVERSITY,4000239226,3705.00,Grants to educational establishments or not for profit organisations including other businesses
Department for Education,NATIONAL COLLEGE FOR TEACHING AND LEADERSHIP AGENCY,02/06/2016,Grants,Operations Directorate,BIRMINGHAM CITY UNIVERSITY,4000239226,15620.00,Grants to educational establishments or not for profit organisations including other businesses
Department for Education,DEPARTMENT FOR EDUCATION,02/06/2016,Grants,Adoption and Children in Care Division,BARNSLEY MBC,4000239227,103000.00,Grants to local authorities / other establishments within aggregate external funding or aggregate exchequer grant
Department for Education,NATIONAL COLLEGE FOR TEACHING AND LEADERSHIP AGENCY,02/06/2016,Grants,Delivery Directorate,BRADFORD COLLEGE,4000239232,66200.95,Grants to educational establishments or not for profit organisations including other businesses
Department for Education,NATIONAL COLLEGE FOR TEACHING AND LEADERSHIP AGENCY,02/06/2016,Grants,Operations Directorate,BRADFORD COLLEGE,4000239232,99540.00,Grants to educational establishments or not for profit organisations including other businesses
Department for Education,NATIONAL COLLEGE FOR TEACHING AND LEADERSHIP AGENCY,02/06/2016,Grants,Operations Directorate,BRADFORD COLLEGE,4000239232,19655.00,Grants to educational establishments or not for profit organisations including other businesses
Department for Education,NATIONAL COLLEGE FOR TEACHING AND LEADERSHIP AGENCY,02/06/2016,Grants,Operations Directorate,BRADFORD COLLEGE,4000239232,7590.00,Grants to educational establishments or not for profit organisations including other businesses
Department for Education,NATIONAL COLLEGE FOR TEACHING AND LEADERSHIP AGENCY,02/06/2016,Grants,Operations Directorate,BROMLEY SCHOOLS COLLEGIATE,4000239235,36450.00,Grants to educational establishments or not for profit organisations including other businesses
Department for Education,NATIONAL COLLEGE FOR TEACHING AND LEADERSHIP AGENCY,02/06/2016,Grants,Operations Directorate,BOURNEMOUTH POOLE & DORSET EAST SECONDARY,4000239236,32310.00,Grants to educational establishments or not for profit organisations including other businesses
Department for Education,NATIONAL COLLEGE FOR TEACHING AND LEADERSHIP AGENCY,02/06/2016,Grants,Operations Directorate,BISHOP GROSSETESTE COLLEGE,4000239238,124650.00,Grants to educational establishments or not for profit organisations including other businesses
Department for Education,NATIONAL COLLEGE FOR TEACHING AND LEADERSHIP AGENCY,02/06/2016,Grants,Delivery Directorate,BISHOP GROSSETESTE COLLEGE,4000239238,7780.00,Grants to educational establishments or not for profit organisations including other businesses
Department for Education,NATIONAL COLLEGE FOR TEACHING AND LEADERSHIP AGENCY,02/06/2016,Grants,Delivery Directorate,BILLERICAY EDUCATIONAL CONSORTIUM,4000239240,3200.00,Grants to educational establishments or not for profit organisations including other businesses
Department for Education,NATIONAL COLLEGE FOR TEACHING AND LEADERSHIP AGENCY,02/06/2016,Grants,Operations Directorate,BILLERICAY EDUCATIONAL CONSORTIUM,4000239240,45000.00,Grants to educational establishments or not for profit organisations including other businesses
Department for Education,NATIONAL COLLEGE FOR TEACHING AND LEADERSHIP AGENCY,02/06/2016,Grants,Operations Directorate,BILLERICAY EDUCATIONAL CONSORTIUM,4000239240,3705.00,Grants to educational establishments or not for profit organisations including other businesses
Department for Education,NATIONAL COLLEGE FOR TEACHING AND LEADERSHIP AGENCY,02/06/2016,Grants,Delivery Directorate,BATH SPA UNIVERSITY,4000239241,14400.00,Grants to educational establishments or not for profit organisations including other businesses
Department for Education,NATIONAL COLLEGE FOR TEACHING AND LEADERSHIP AGENCY,02/06/2016,Grants,Operations Directorate,BATH SPA UNIVERSITY,4000239241,209250.00,Grants to educational establishments or not for profit organisations including other businesses
Department for Education,NATIONAL COLLEGE FOR TEACHING AND LEADERSHIP AGENCY,02/06/2016,Grants,Delivery Directorate,BATH SPA UNIVERSITY,4000239241,32490.00,Grants to educational establishments or not for profit organisations including other businesses
Department for Education,NATIONAL COLLEGE FOR TEACHING AND LEADERSHIP AGENCY,02/06/2016,Grants,Operations Directorate,CHILTERN TRAINING GROUP,4000239248,35910.00,Grants to educational establishments or not for profit organisations including other businesses
Department for Education,NATIONAL COLLEGE FOR TEACHING AND LEADERSHIP AGENCY,02/06/2016,Grants,Operations Directorate,CARMEL TEACHER TRAINING PARTNERSHIP,4000239249,73530.00,Grants to educational establishments or not for profit organisations including other businesses
Department for Education,NATIONAL COLLEGE FOR TEACHING AND LEADERSHIP AGENCY,02/06/2016,Grants,Operations Directorate,CHEADLE HULME HIGH SCHOOL,4000239250,26370.00,Grants to educational establishments or not for profit organisations including other businesses
Department for Education,DEPARTMENT FOR EDUCATION,02/06/2016,Grants,Adoption and Children in Care Division,CORAM CAMBRIDGESHIRE ADOPTION LTD,4000239252,140000.00,Grants to local authorities / other establishments within aggregate external funding or aggregate exchequer grant
Department for Education,NATIONAL COLLEGE FOR TEACHING AND LEADERSHIP AGENCY,02/06/2016,Communications,Operations Directorate,CARAT,4000239257,48615.85,"Publicity, advertising, media advertising campaigns (excluding recruitment adverts)"
Department for Education,NATIONAL COLLEGE FOR TEACHING AND LEADERSHIP AGENCY,02/06/2016,Communications,Operations Directorate,CARAT,4000239257,29999.50,Marketing services
Department for Education,NATIONAL COLLEGE FOR TEACHING AND LEADERSHIP AGENCY,02/06/2016,Grants,Delivery Directorate,BRUNEL UNIVERSITY,4000239266,2200.00,Grants to educational establishments or not for profit organisations including other businesses
Department for Education,NATIONAL COLLEGE FOR TEACHING AND LEADERSHIP AGENCY,02/06/2016,Grants,Operations Directorate,BRUNEL UNIVERSITY,4000239266,123840.00,Grants to educational establishments or not for profit organisations including other businesses
Department for Education,NATIONAL COLLEGE FOR TEACHING AND LEADERSHIP AGENCY,02/06/2016,Grants,Operations Directorate,CANTERBURY CHRIST CHURCH UNIVERSITY,4000239267,306810.00,Grants to educational establishments or not for profit organisations including other businesses
Department for Education,NATIONAL COLLEGE FOR TEACHING AND LEADERSHIP AGENCY,02/06/2016,Grants,Operations Directorate,CANTERBURY CHRIST CHURCH UNIVERSITY,4000239267,32235.00,Grants to educational establishments or not for profit organisations including other businesses
Department for Education,NATIONAL COLLEGE FOR TEACHING AND LEADERSHIP AGENCY,02/06/2016,Grants,Operations Directorate,CANTERBURY CHRIST CHURCH UNIVERSITY,4000239267,30030.00,Grants to educational establishments or not for profit organisations including other businesses
Department for Education,NATIONAL COLLEGE FOR TEACHING AND LEADERSHIP AGENCY,02/06/2016,Grants,Delivery Directorate,CANTERBURY CHRIST CHURCH UNIVERSITY,4000239267,17100.00,Grants to educational establishments or not for profit organisations including other businesses
Department for Education,NATIONAL COLLEGE FOR TEACHING AND LEADERSHIP AGENCY,02/06/2016,Grants,Delivery Directorate,CANTERBURY CHRIST CHURCH UNIVERSITY,4000239268,147800.10,Grants to educational establishments or not for profit organisations including other businesses
Department for Education,NATIONAL COLLEGE FOR TEACHING AND LEADERSHIP AGENCY,02/06/2016,Grants,Operations Directorate,CANTERBURY CHRIST CHURCH UNIVERSITY,4000239268,150740.00,Grants to educational establishments or not for profit organisations including other businesses
Department for Education,DEPARTMENT FOR EDUCATION,02/06/2016,Professional Services Other,"Assessment, Curriculum and General Qualifications Group",SHEFFIELD HALLAM UNIVERSITY,4000239055,0.00,Research and evaluation activities
Department for Education,NATIONAL COLLEGE FOR TEACHING AND LEADERSHIP AGENCY,03/06/2016,Professional Services Other,Operations Directorate,BROWNE JACOBSON SOLICITORS,4000239309,51467.17,"Fees / expenses of professionals, for example to implement advice or changes"
Department for Education,STANDARDS AND TESTING AGENCY,03/06/2016,Programme costs,Test Development Division,NFER,4000239294,35655.00,Funding to deliver policies (excluding consultancy) paid to third parties via a service delivery contract
Department for Education,DEPARTMENT FOR EDUCATION,03/06/2016,Professional Services Other,Finance and Commercial Group,GALLAGHER BASSETT INTERNATIONAL LTD,4000239298,-15942.00,"Fees / expenses of professionals, for example to implement advice or changes"
Department for Education,DEPARTMENT FOR EDUCATION,03/06/2016,Professional Services Other,Finance and Commercial Group,GALLAGHER BASSETT INTERNATIONAL LTD,4000239298,44238.00,"Fees / expenses of professionals, for example to implement advice or changes"
Department for Education,NATIONAL COLLEGE FOR TEACHING AND LEADERSHIP AGENCY,03/06/2016,Professional Services Other,Operations Directorate,NATIONAL FOUNDATION FOR EDUCATIONAL RESEARCH,4000239299,28194.00,Research and evaluation activities
Department for Education,NATIONAL COLLEGE FOR TEACHING AND LEADERSHIP AGENCY,03/06/2016,Professional Services Other,Delivery Directorate,Teach First Initial Teacher Development,4000239305,116276.36,"Fees / expenses of professionals, for example to implement advice or changes"
Department for Education,STANDARDS AND TESTING AGENCY,06/06/2016,Programme costs,Test Development Division,NFER,4000239395,33033.00,Funding to deliver policies (excluding consultancy) paid to third parties via a service delivery contract
Department for Education,DEPARTMENT FOR EDUCATION,06/06/2016,Programme costs,"Children's Services, Equalities and Communication Safeguarding Group",EARLY INTERVENTION FOUNDATION,4000239396,116666.00,Funding to deliver policies (excluding consultancy) paid to third parties via a service delivery contract
Department for Education,DEPARTMENT FOR EDUCATION,06/06/2016,Professional Services Consultancy and Contingent Labour,Finance and Commercial Group,GOVERNMENT ACTUARYS DEPARTMENT,4000239434,13688.86,"Fees / expenses of professionals such as auditors, accountants, lawyers, etc. engaged to provide advice or opinion on how to affect something"
Department for Education,DEPARTMENT FOR EDUCATION,06/06/2016,Programme costs,Teachers and Teaching Group,GOVERNMENT ACTUARYS DEPARTMENT,4000239434,47375.27,Funding to deliver policies (excluding consultancy) paid to third parties via a service delivery contract
Department for Education,NATIONAL COLLEGE FOR TEACHING AND LEADERSHIP AGENCY,06/06/2016,Professional Services Other,Delivery Directorate,TELEPERFORMANCE LTD,4000239413,72225.00,"Fees / expenses of professionals, for example to implement advice or changes"
Department for Education,DEPARTMENT FOR EDUCATION,06/06/2016,Professional Services Consultancy and Contingent Labour,Information Technology Group,RUSSAM GMS LTD,4000239404,27409.86,Costs related to temporary workers
Department for Education,DEPARTMENT FOR EDUCATION,06/06/2016,Professional Services Consultancy and Contingent Labour,Information Technology Group,RUSSAM GMS LTD,4000239404,0.00,Costs related to temporary workers
Department for Education,DEPARTMENT FOR EDUCATION,06/06/2016,Professional Services Other,Academies Regional Delivery Group,VEREDUS TA CAPITA RESOURCING LTD,4000239368,36436.80,"Fees / expenses of professionals, for example to implement advice or changes"
Department for Education,DEPARTMENT FOR EDUCATION,06/06/2016,Facilities,Property Asset Management Group,METHODS CONSULTING LTD,4000239346,56400.00,Property management
Department for Education,DEPARTMENT FOR EDUCATION,07/06/2016,Professional Services Other,Property Asset Management Group,GVA GRIMLEY LTD,4000239512,9804.00,"Fees / expenses of professionals, for example to implement advice or changes"
Department for Education,DEPARTMENT FOR EDUCATION,07/06/2016,Professional Services Other,Property Asset Management Group,GVA GRIMLEY LTD,4000239512,12900.00,"Fees / expenses of professionals, for example to implement advice or changes"
Department for Education,DEPARTMENT FOR EDUCATION,07/06/2016,Professional Services Other,Property Asset Management Group,GVA GRIMLEY LTD,4000239512,3096.00,"Fees / expenses of professionals, for example to implement advice or changes"
Department for Education,DEPARTMENT FOR EDUCATION,07/06/2016,Grants,Academies Regional Delivery Group,NOTLEY HIGH SCHOOL & BRAINTREE SIXTH FORM,4000239446,25000.00,Grants to educational establishments or not for profit organisations including other businesses
Department for Education,DEPARTMENT FOR EDUCATION,07/06/2016,Grants,Academies Regional Delivery Group,GLEN HILLS PRIMARY SCHOOL,4000239447,75000.00,Grants to educational establishments or not for profit organisations including other businesses
Department for Education,DEPARTMENT FOR EDUCATION,07/06/2016,Grants,Academies Regional Delivery Group,LEE CHAPEL ACADEMY TRUST - TS ACCOUNT,4000239449,45000.00,Grants to educational establishments or not for profit organisations including other businesses
Department for Education,DEPARTMENT FOR EDUCATION,07/06/2016,Grants,Academies Regional Delivery Group,THE KINGFISHER COMMUNITY SPECIAL SCHOOL,4000239450,25000.00,Grants to educational establishments or not for profit organisations including other businesses
Department for Education,DEPARTMENT FOR EDUCATION,07/06/2016,ICT,Information Technology Group,BT GLOBAL SERVICES,4000239453,51204.40,Telecoms facilities and services - telecom rentals
Department for Education,DEPARTMENT FOR EDUCATION,07/06/2016,ICT,Information Technology Group,CAPGEMINI UK PLC,4000239454,93821.16,ICT Services
Department for Education,DEPARTMENT FOR EDUCATION,07/06/2016,Grants,Academies Regional Delivery Group,THE BRIDGE SCHOOL TS ACCOUNT,4000239466,25000.00,Grants to educational establishments or not for profit organisations including other businesses
Department for Education,DEPARTMENT FOR EDUCATION,07/06/2016,Grants,Academies Regional Delivery Group,AUGHTON PRIMARY SCHOOL,4000239481,25000.00,Grants to educational establishments or not for profit organisations including other businesses
Department for Education,DEPARTMENT FOR EDUCATION,07/06/2016,Grants,Academies Regional Delivery Group,MALDON PRIMARY SCHOOL,4000239482,25000.00,Grants to educational establishments or not for profit organisations including other businesses
Department for Education,DEPARTMENT FOR EDUCATION,07/06/2016,Grants,Academies Regional Delivery Group,CONNECT ACADEMY TRUST,4000239483,210000.00,Grants to educational establishments or not for profit organisations including other businesses
Department for Education,DEPARTMENT FOR EDUCATION,07/06/2016,Grants,Academies Regional Delivery Group,ASHBY WILLESLEY PRIMARY SCHOOL,4000239484,25000.00,Grants to educational establishments or not for profit organisations including other businesses
Department for Education,DEPARTMENT FOR EDUCATION,07/06/2016,Grants,Academies Regional Delivery Group,MERRYLANDS PRIMARY SCHOOL,4000239485,25000.00,Grants to educational establishments or not for profit organisations including other businesses
Department for Education,DEPARTMENT FOR EDUCATION,07/06/2016,Grants,Academies Regional Delivery Group,THE WILLOWS PRIMARY SCHOOL,4000239486,25000.00,Grants to educational establishments or not for profit organisations including other businesses
Department for Education,DEPARTMENT FOR EDUCATION,07/06/2016,Grants,Academies Regional Delivery Group,FENNWOOD ACADEMY TRUST,4000239489,45000.00,Grants to educational establishments or not for profit organisations including other businesses
Department for Education,STANDARDS AND TESTING AGENCY,07/06/2016,Programme costs,Test Operations Division,WILLIAMS LEA,4000239500,-36058.50,Funding to deliver policies (excluding consultancy) paid to third parties via a service delivery contract
Department for Education,STANDARDS AND TESTING AGENCY,07/06/2016,Programme costs,Test Operations Division,WILLIAMS LEA,4000239500,258254.60,Funding to deliver policies (excluding consultancy) paid to third parties via a service delivery contract
Department for Education,NATIONAL COLLEGE FOR TEACHING AND LEADERSHIP AGENCY,07/06/2016,Programme costs,Operations Directorate,TEXUNA TECHNOLOGIES,4000239520,27453.52,Funding to deliver policies (excluding consultancy) paid to third parties via a service delivery contract
Department for Education,DEPARTMENT FOR EDUCATION,07/06/2016,Grants,Academies Regional Delivery Group,LEAD MULTI ACADEMY TRUST,4000239523,70000.00,Grants to educational establishments or not for profit organisations including other businesses
Department for Education,DEPARTMENT FOR EDUCATION,07/06/2016,Professional Services Consultancy and Contingent Labour,Information Technology Group,RUSSAM GMS LTD,4000239514,24325.76,Costs related to temporary workers
Department for Education,DEPARTMENT FOR EDUCATION,07/06/2016,Professional Services Consultancy and Contingent Labour,Information Technology Group,RUSSAM GMS LTD,4000239514,12738.65,Costs related to temporary workers
Department for Education,DEPARTMENT FOR EDUCATION,07/06/2016,Professional Services Consultancy and Contingent Labour,Information Technology Group,RUSSAM GMS LTD,4000239514,48818.01,Costs related to temporary workers
Department for Education,DEPARTMENT FOR EDUCATION,08/06/2016,Grants,Academies Regional Delivery Group,ACADEMY TRANSFORMATION TRUST,4000239531,50000.00,Grants to educational establishments or not for profit organisations including other businesses
Department for Education,DEPARTMENT FOR EDUCATION,08/06/2016,Grants,Adoption and Children in Care Division,HERTFORDSHIRE COUNTY COUNCIL,4000239535,60000.00,Grants to local authorities / other establishments within aggregate external funding or aggregate exchequer grant
Department for Education,DEPARTMENT FOR EDUCATION,08/06/2016,Grants,Early Years Group,FAMILY & CHILDCARE TRUST,4000239540,213509.47,Grants to educational establishments or not for profit organisations including other businesses
Department for Education,DEPARTMENT FOR EDUCATION,08/06/2016,Grants,Academies Regional Delivery Group,EVELYN STREET PRIMARY SCHOOL BCAP,4000239544,25000.00,Grants to educational establishments or not for profit organisations including other businesses
Department for Education,STANDARDS AND TESTING AGENCY,08/06/2016,Office Solutions,Test Operations Division,PARCELFORCE WORLDWIDE,4000239549,789593.14,Post and courier services
Department for Education,DEPARTMENT FOR EDUCATION,08/06/2016,Facilities,Property Asset Management Group,DEPARTMENT FOR COMMUNITIES & LOCAL GOVERNMENT,4000239553,38686.33,Rent
Department for Education,DEPARTMENT FOR EDUCATION,08/06/2016,Grants,Academies Regional Delivery Group,GORDANO SCHOOL,4000239554,212000.00,Grants to educational establishments or not for profit organisations including other businesses
Department for Education,DEPARTMENT FOR EDUCATION,08/06/2016,Grants,"Assessment, Curriculum and General Qualifications Group",UNIVERSITY OF CAMBRIDGE,4000239556,249945.23,Grants to educational establishments or not for profit organisations including other businesses
Department for Education,DEPARTMENT FOR EDUCATION,08/06/2016,Grants,Adoption and Children in Care Division,NORTH TYNESIDE,4000239557,36000.00,Grants to local authorities / other establishments within aggregate external funding or aggregate exchequer grant
Department for Education,DEPARTMENT FOR EDUCATION,08/06/2016,Grants,Adoption and Children in Care Division,CITY OF BRADFORD METROPOLITAN DISTRICT COUNCIL,4000239558,27000.00,Grants to local authorities / other establishments within aggregate external funding or aggregate exchequer grant
Department for Education,DEPARTMENT FOR EDUCATION,08/06/2016,Grants,Adoption and Children in Care Division,STOCKPORT MBC,4000239561,111000.00,Grants to local authorities / other establishments within aggregate external funding or aggregate exchequer grant
Department for Education,DEPARTMENT FOR EDUCATION,08/06/2016,Grants,Adoption and Children in Care Division,ROCHDALE MBC,4000239562,60000.00,Grants to local authorities / other establishments within aggregate external funding or aggregate exchequer grant
Department for Education,DEPARTMENT FOR EDUCATION,08/06/2016,Grants,Adoption and Children in Care Division,KNOWSLEY MBC,4000239563,27000.00,Grants to local authorities / other establishments within aggregate external funding or aggregate exchequer grant
Department for Education,DEPARTMENT FOR EDUCATION,08/06/2016,Grants,Adoption and Children in Care Division,DUDLEY MBC,4000239564,54000.00,Grants to local authorities / other establishments within aggregate external funding or aggregate exchequer grant
Department for Education,DEPARTMENT FOR EDUCATION,08/06/2016,Grants,Adoption and Children in Care Division,BIRMINGHAM CITY COUNCIL,4000239565,60000.00,Grants to local authorities / other establishments within aggregate external funding or aggregate exchequer grant
Department for Education,DEPARTMENT FOR EDUCATION,08/06/2016,Grants,Academies Regional Delivery Group,ST MICHAELS CHURCH OF ENGLAND PRIMARY SCHOOL,4000239571,27000.00,Grants to educational establishments or not for profit organisations including other businesses
Department for Education,DEPARTMENT FOR EDUCATION,08/06/2016,Grants,Adoption and Children in Care Division,LONDON BOROUGH OF WALTHAM FOREST COUNCIL,4000239572,54000.00,Grants to local authorities / other establishments within aggregate external funding or aggregate exchequer grant
Department for Education,DEPARTMENT FOR EDUCATION,08/06/2016,Grants,Adoption and Children in Care Division,LONDON BOROUGH OF BROMLEY COUNCIL,4000239573,27000.00,Grants to local authorities / other establishments within aggregate external funding or aggregate exchequer grant
Department for Education,DEPARTMENT FOR EDUCATION,08/06/2016,ICT,Systems and Accountability Group,SCISYS UK LTD,4000239574,39817.10,ICT Services
Department for Education,DEPARTMENT FOR EDUCATION,08/06/2016,Grants,Adoption and Children in Care Division,SUNDERLAND CITY COUNCIL,4000239575,97000.00,Grants to local authorities / other establishments within aggregate external funding or aggregate exchequer grant
Department for Education,DEPARTMENT FOR EDUCATION,08/06/2016,Grants,Adoption and Children in Care Division,DONCASTER MBC,4000239576,27000.00,Grants to local authorities / other establishments within aggregate external funding or aggregate exchequer grant
Department for Education,DEPARTMENT FOR EDUCATION,08/06/2016,Grants,Academies Regional Delivery Group,HOMEWOOD SCHOOL & 6TH FORM CENTRE,4000239577,100000.00,Grants to educational establishments or not for profit organisations including other businesses
Department for Education,DEPARTMENT FOR EDUCATION,08/06/2016,Grants,Academies Regional Delivery Group,TOWN LANE INFANTS SCHOOL,4000239581,25000.00,Grants to educational establishments or not for profit organisations including other businesses
Department for Education,DEPARTMENT FOR EDUCATION,08/06/2016,Grants,Academies Regional Delivery Group,PENINSULA LEARNING TRUST,4000239583,25000.00,Grants to educational establishments or not for profit organisations including other businesses
Department for Education,DEPARTMENT FOR EDUCATION,08/06/2016,Grants,Academies Regional Delivery Group,BARDFIELD PRIMARY & NURSERY SCHOOL,4000239584,25000.00,Grants to educational establishments or not for profit organisations including other businesses
Department for Education,DEPARTMENT FOR EDUCATION,08/06/2016,Grants,Academies Regional Delivery Group,STIRCHLEY PRIMARY SCHOOL,4000239585,25000.00,Grants to educational establishments or not for profit organisations including other businesses
Department for Education,DEPARTMENT FOR EDUCATION,08/06/2016,Grants,Academies Regional Delivery Group,HOOKSTONE CHASE COMMUNITY PRIMARY SCHOOL,4000239586,25000.00,Grants to educational establishments or not for profit organisations including other businesses
Department for Education,DEPARTMENT FOR EDUCATION,08/06/2016,Grants,Academies Regional Delivery Group,RYEDENE COMMUNITY PRIMARY SCHOOL,4000239587,25000.00,Grants to educational establishments or not for profit organisations including other businesses
Department for Education,DEPARTMENT FOR EDUCATION,08/06/2016,Grants,Adoption and Children in Care Division,LONDON BOROUGH OF LEWISHAM,4000239589,27000.00,Grants to local authorities / other establishments within aggregate external funding or aggregate exchequer grant
Department for Education,DEPARTMENT FOR EDUCATION,08/06/2016,Grants,Adoption and Children in Care Division,WALSALL MBC,4000239590,70000.00,Grants to local authorities / other establishments within aggregate external funding or aggregate exchequer grant
Department for Education,DEPARTMENT FOR EDUCATION,08/06/2016,Grants,Adoption and Children in Care Division,LONDON BOROUGH OF GREENWICH,4000239591,97000.00,Grants to local authorities / other establishments within aggregate external funding or aggregate exchequer grant
Department for Education,DEPARTMENT FOR EDUCATION,08/06/2016,Grants,Adoption and Children in Care Division,LONDON BOROUGH OF SOUTHWARK COUNCIL,4000239592,27000.00,Grants to local authorities / other establishments within aggregate external funding or aggregate exchequer grant
Department for Education,DEPARTMENT FOR EDUCATION,08/06/2016,Grants,Academies Regional Delivery Group,SWILLINGTON PRIMARY SCHOOL,4000239593,25000.00,Grants to educational establishments or not for profit organisations including other businesses
Department for Education,DEPARTMENT FOR EDUCATION,08/06/2016,Grants,Academies Regional Delivery Group,BOURNES GREEN INFANT SCHOOL,4000239599,25000.00,Grants to educational establishments or not for profit organisations including other businesses
Department for Education,DEPARTMENT FOR EDUCATION,08/06/2016,Grants,Academies Regional Delivery Group,LANGTON COMMUNITY PRIMARY SCHOOL,4000239600,30000.00,Grants to educational establishments or not for profit organisations including other businesses
Department for Education,DEPARTMENT FOR EDUCATION,08/06/2016,Grants,Academies Regional Delivery Group,PARRS WOOD HIGH SCHOOL,4000239602,25000.00,Grants to educational establishments or not for profit organisations including other businesses
Department for Education,DEPARTMENT FOR EDUCATION,08/06/2016,Grants,Academies Regional Delivery Group,TENTERDEN INFANT SCHOOL,4000239603,27000.00,Grants to educational establishments or not for profit organisations including other businesses
Department for Education,DEPARTMENT FOR EDUCATION,08/06/2016,Grants,Academies Regional Delivery Group,DUSSINDALE PRIMARY SCHOOL,4000239604,25000.00,Grants to educational establishments or not for profit organisations including other businesses
Department for Education,DEPARTMENT FOR EDUCATION,08/06/2016,Grants,Adoption and Children in Care Division,THE ROYAL BOROUGH OF KENSINGTON & CHELSEA COUNCIL,4000239605,27000.00,Grants to local authorities / other establishments within aggregate external funding or aggregate exchequer grant
Department for Education,DEPARTMENT FOR EDUCATION,08/06/2016,Grants,Academies Regional Delivery Group,BRIGSHAW HIGH SCHOOL & LANGUAGE COLLEGE,4000239607,25000.00,Grants to educational establishments or not for profit organisations including other businesses
Department for Education,DEPARTMENT FOR EDUCATION,08/06/2016,Grants,Academies Regional Delivery Group,JAMES MONTGOMERY ACADEMY TRUST,4000239611,182000.00,Grants to educational establishments or not for profit organisations including other businesses
Department for Education,DEPARTMENT FOR EDUCATION,08/06/2016,Grants,Academies Regional Delivery Group,WIDCOMBE INFANT SCHOOL,4000239612,25000.00,Grants to educational establishments or not for profit organisations including other businesses
Department for Education,DEPARTMENT FOR EDUCATION,08/06/2016,Grants,Academies Regional Delivery Group,COMBE DOWN COFE VC PRIMARY SCHOOL,4000239613,25000.00,Grants to educational establishments or not for profit organisations including other businesses
Department for Education,DEPARTMENT FOR EDUCATION,08/06/2016,Grants,"Children's Services, Equalities and Communication Safeguarding Group",UNIVERSITY OF KENT,4000239617,79953.81,Grants to educational establishments or not for profit organisations including other businesses
Department for Education,DEPARTMENT FOR EDUCATION,08/06/2016,Grants,Adoption and Children in Care Division,COVENTRY CITY COUNCIL,4000239618,97000.00,Grants to local authorities / other establishments within aggregate external funding or aggregate exchequer grant
Department for Education,DEPARTMENT FOR EDUCATION,08/06/2016,Grants,Adoption and Children in Care Division,BLACKBURN WITH DARWEN BOROUGH COUNCIL,4000239619,97000.00,Grants to local authorities / other establishments within aggregate external funding or aggregate exchequer grant
Department for Education,DEPARTMENT FOR EDUCATION,08/06/2016,Grants,Academies Regional Delivery Group,PLYM ACADEMY TRUST,4000239621,25000.00,Grants to educational establishments or not for profit organisations including other businesses
Department for Education,DEPARTMENT FOR EDUCATION,08/06/2016,Grants,Academies Regional Delivery Group,THE HOWARD ACADEMY TRUST,4000239624,25000.00,Grants to educational establishments or not for profit organisations including other businesses
Department for Education,DEPARTMENT FOR EDUCATION,08/06/2016,Grants,Adoption and Children in Care Division,LANCASHIRE COUNTY COUNCIL,4000239626,27000.00,Grants to local authorities / other establishments within aggregate external funding or aggregate exchequer grant
Department for Education,DEPARTMENT FOR EDUCATION,08/06/2016,Grants,Adoption and Children in Care Division,THURROCK COUNCIL,4000239627,86000.00,Grants to local authorities / other establishments within aggregate external funding or aggregate exchequer grant
Department for Education,DEPARTMENT FOR EDUCATION,08/06/2016,Grants,Adoption and Children in Care Division,PLYMOUTH CITY COUNCIL,4000239628,27000.00,Grants to local authorities / other establishments within aggregate external funding or aggregate exchequer grant
Department for Education,DEPARTMENT FOR EDUCATION,08/06/2016,Grants,Adoption and Children in Care Division,DEVON COUNTY COUNCIL,4000239629,43000.00,Grants to local authorities / other establishments within aggregate external funding or aggregate exchequer grant
Department for Education,DEPARTMENT FOR EDUCATION,08/06/2016,Grants,Adoption and Children in Care Division,THE ROYAL BOROUGH OF WINDSOR & MAIDENHEAD,4000239630,27000.00,Grants to local authorities / other establishments within aggregate external funding or aggregate exchequer grant
Department for Education,DEPARTMENT FOR EDUCATION,08/06/2016,Grants,Adoption and Children in Care Division,STAFFORDSHIRE COUNCIL,4000239637,27000.00,Grants to local authorities / other establishments within aggregate external funding or aggregate exchequer grant
Department for Education,DEPARTMENT FOR EDUCATION,08/06/2016,Grants,Early Years Group,HOME START UK,4000239638,71435.79,Grants to educational establishments or not for profit organisations including other businesses
Department for Education,DEPARTMENT FOR EDUCATION,08/06/2016,Grants,Adoption and Children in Care Division,CHESHIRE EAST COUNCIL,4000239639,87000.00,Grants to local authorities / other establishments within aggregate external funding or aggregate exchequer grant
Department for Education,DEPARTMENT FOR EDUCATION,08/06/2016,Grants,Adoption and Children in Care Division,SOUTHAMPTON CITY COUNCIL,4000239640,70000.00,Grants to local authorities / other establishments within aggregate external funding or aggregate exchequer grant
Department for Education,DEPARTMENT FOR EDUCATION,08/06/2016,Grants,Adoption and Children in Care Division,BOURNEMOUTH BOROUGH COUNCIL,4000239641,70000.00,Grants to local authorities / other establishments within aggregate external funding or aggregate exchequer grant
Department for Education,DEPARTMENT FOR EDUCATION,08/06/2016,Grants,Adoption and Children in Care Division,DERBY CITY COUNCIL,4000239648,27000.00,Grants to local authorities / other establishments within aggregate external funding or aggregate exchequer grant
Department for Education,DEPARTMENT FOR EDUCATION,08/06/2016,Grants,Adoption and Children in Care Division,BUCKINGHAMSHIRE COUNTY COUNCIL,4000239649,43000.00,Grants to local authorities / other establishments within aggregate external funding or aggregate exchequer grant
Department for Education,DEPARTMENT FOR EDUCATION,08/06/2016,Grants,Adoption and Children in Care Division,NORTH YORKSHIRE COUNTY COUNCIL,4000239650,27000.00,Grants to local authorities / other establishments within aggregate external funding or aggregate exchequer grant
Department for Education,DEPARTMENT FOR EDUCATION,08/06/2016,Grants,Adoption and Children in Care Division,BRISTOL CITY COUNCIL,4000239651,27000.00,Grants to local authorities / other establishments within aggregate external funding or aggregate exchequer grant
Department for Education,DEPARTMENT FOR EDUCATION,08/06/2016,Grants,Adoption and Children in Care Division,ROTHERHAM MBC,4000239657,43000.00,Grants to local authorities / other establishments within aggregate external funding or aggregate exchequer grant
Department for Education,DEPARTMENT FOR EDUCATION,08/06/2016,Grants,Academies Regional Delivery Group,PENKETH PRIMARY SCHOOL,4000239660,25000.00,Grants to educational establishments or not for profit organisations including other businesses
Department for Education,DEPARTMENT FOR EDUCATION,08/06/2016,Grants,Children's Services Special Educational Needs Group,CONTACT A FAMILY,4000239661,46295.55,Grants to educational establishments or not for profit organisations including other businesses
Department for Education,DEPARTMENT FOR EDUCATION,08/06/2016,Programme costs,Children's Services Special Educational Needs Group,CONTACT A FAMILY,4000239661,449884.03,Funding to deliver policies (excluding consultancy) paid to third parties via a service delivery contract
Department for Education,STANDARDS AND TESTING AGENCY,08/06/2016,Programme costs,Test Operations Division,WILLIAMS LEA,4000239665,46473.55,Funding to deliver policies (excluding consultancy) paid to third parties via a service delivery contract
Department for Education,DEPARTMENT FOR EDUCATION,08/06/2016,Grants,Academies Regional Delivery Group,THE RIVERS C OF E ACADEMY TRUST,4000239666,40000.00,Grants to educational establishments or not for profit organisations including other businesses
Department for Education,DEPARTMENT FOR EDUCATION,08/06/2016,Grants,Adoption and Children in Care Division,ADOPTION MATTERS NORTH WEST,4000239674,26436.72,Grants to educational establishments or not for profit organisations including other businesses
Department for Education,DEPARTMENT FOR EDUCATION,08/06/2016,Grants,Academies Regional Delivery Group,WELLSWAY MULTI ACADEMY TRUST,4000239678,25000.00,Grants to educational establishments or not for profit organisations including other businesses
Department for Education,DEPARTMENT FOR EDUCATION,08/06/2016,Grants,Adoption and Children in Care Division,CVAA UK,4000239684,251099.00,Grants to educational establishments or not for profit organisations including other businesses
Department for Education,DEPARTMENT FOR EDUCATION,09/06/2016,Grants,Free School Group,LEEDS UTC LTD,4000239687,30000.00,Grants to educational establishments or not for profit organisations including other businesses
Department for Education,DEPARTMENT FOR EDUCATION,09/06/2016,Grants,Free School Group,SCARBOROUGH UNIVERSITY TECHNICAL COLLEGE,4000239688,30000.00,Grants to educational establishments or not for profit organisations including other businesses
Department for Education,DEPARTMENT FOR EDUCATION,09/06/2016,Grants,Free School Group,UNIVERSITY TECHNICAL COLLEGE WARRINGTON,4000239693,35000.00,Grants to educational establishments or not for profit organisations including other businesses
Department for Education,DEPARTMENT FOR EDUCATION,09/06/2016,Grants,Free School Group,BICESTER TECHNOLOGY STUDIO TRUST,4000239696,30000.00,Grants to educational establishments or not for profit organisations including other businesses
Department for Education,DEPARTMENT FOR EDUCATION,09/06/2016,Grants,Free School Group,EDUCATION FOR THE 21ST CENTURY,4000239700,30000.00,Grants to educational establishments or not for profit organisations including other businesses
Department for Education,DEPARTMENT FOR EDUCATION,09/06/2016,Office Solutions,Information Technology Group,GLOBAL DOCUMENT OUTSOURCING XEROX UK LTD,4000239705,122283.25,Office machines
Department for Education,DEPARTMENT FOR EDUCATION,09/06/2016,Grants,Free School Group,HARRIS FEDERATION,4000239707,30000.00,Grants to educational establishments or not for profit organisations including other businesses
Department for Education,DEPARTMENT FOR EDUCATION,09/06/2016,Grants,Academies Regional Delivery Group,PIMLICO ACADEMY,4000239708,80000.00,Capital grants paid to an educational establishment
Department for Education,DEPARTMENT FOR EDUCATION,09/06/2016,Grants,Academies Regional Delivery Group,KERNOW COLLABORATIVE TRUST,4000239710,80000.00,Grants to educational establishments or not for profit organisations including other businesses
Department for Education,DEPARTMENT FOR EDUCATION,09/06/2016,Programme costs,"Assessment, Curriculum and General Qualifications Group",IOP INSTITUTE OF PHYSICS,4000239714,147866.50,Funding to deliver policies (excluding consultancy) paid to third parties via a service delivery contract
Department for Education,DEPARTMENT FOR EDUCATION,09/06/2016,Grants,Adoption and Children in Care Division,THE FOSTERING NETWORK,4000239715,107201.20,Grants to educational establishments or not for profit organisations including other businesses
Department for Education,DEPARTMENT FOR EDUCATION,09/06/2016,Grants,Free School Group,GREENWICH ACADEMY TRUST,4000239719,25000.00,Grants to educational establishments or not for profit organisations including other businesses
Department for Education,DEPARTMENT FOR EDUCATION,09/06/2016,Grants,Character and Disadvantage Division,NATIONAL SOCIETY C OF E,4000239721,25075.38,Grants to educational establishments or not for profit organisations including other businesses
Department for Education,DEPARTMENT FOR EDUCATION,09/06/2016,Grants,Adoption and Children in Care Division,NOTTINGHAMSHIRE COUNTY COUNCIL,4000239722,86000.00,Grants to local authorities / other establishments within aggregate external funding or aggregate exchequer grant
Department for Education,DEPARTMENT FOR EDUCATION,09/06/2016,Grants,Adoption and Children in Care Division,WORCESTERSHIRE COUNTY COUNCIL,4000239723,27000.00,Grants to local authorities / other establishments within aggregate external funding or aggregate exchequer grant
Department for Education,DEPARTMENT FOR EDUCATION,09/06/2016,Programme costs,"Assessment, Curriculum and General Qualifications Group",TRIBAL EDUCATION LIMITED,4000239724,150616.80,Funding to deliver policies (excluding consultancy) paid to third parties via a service delivery contract
Department for Education,DEPARTMENT FOR EDUCATION,09/06/2016,Grants,Adoption and Children in Care Division,WOLVERHAMPTON CITY COUNCIL,4000239725,43000.00,Grants to local authorities / other establishments within aggregate external funding or aggregate exchequer grant
Department for Education,DEPARTMENT FOR EDUCATION,09/06/2016,Grants,Adoption and Children in Care Division,STOKE ON TRENT CITY COUNCIL,4000239726,81000.00,Grants to local authorities / other establishments within aggregate external funding or aggregate exchequer grant
Department for Education,DEPARTMENT FOR EDUCATION,09/06/2016,Grants,Academies Regional Delivery Group,LEE CHAPEL ACADEMY TRUST - TS ACCOUNT,4000239732,45000.00,Grants to educational establishments or not for profit organisations including other businesses
Department for Education,NATIONAL COLLEGE FOR TEACHING AND LEADERSHIP AGENCY,09/06/2016,Programme costs,Delivery Directorate,FUTURE LEADERS CHARITABLE TRUST SCHOLARSHIPS,4000239742,42417.00,Funding to deliver policies (excluding consultancy) paid to third parties via a service delivery contract
Department for Education,DEPARTMENT FOR EDUCATION,09/06/2016,Grants,Academies Regional Delivery Group,PENCOYS PRIMARY SCHOOL,4000239748,27000.00,Grants to educational establishments or not for profit organisations including other businesses
Department for Education,DEPARTMENT FOR EDUCATION,09/06/2016,Grants,Academies Regional Delivery Group,ROSKEAR SCHOOL,4000239749,25000.00,Grants to educational establishments or not for profit organisations including other businesses
Department for Education,DEPARTMENT FOR EDUCATION,09/06/2016,Grants,Academies Regional Delivery Group,DRB IGNITE MAT,4000239750,50000.00,Grants to educational establishments or not for profit organisations including other businesses
Department for Education,DEPARTMENT FOR EDUCATION,09/06/2016,Programme costs,Early Years Group,MOTT MACDONALD LTD,4000239754,33600.00,Funding to deliver policies (excluding consultancy) paid to third parties via a service delivery contract
Department for Education,DEPARTMENT FOR EDUCATION,09/06/2016,Grants,Office of the Schools Commissioner Group,KING EDWARD VI ASTON SCHOOL,4000239756,33700.00,Grants to educational establishments or not for profit organisations including other businesses
Department for Education,DEPARTMENT FOR EDUCATION,09/06/2016,Grants,Academies Regional Delivery Group,PLYM ACADEMY TRUST,4000239758,110000.00,Grants to educational establishments or not for profit organisations including other businesses
Department for Education,DEPARTMENT FOR EDUCATION,09/06/2016,Grants,Free School Group,TWYFORD CE ACADEMIES TRUST,4000239762,30000.00,Grants to educational establishments or not for profit organisations including other businesses
Department for Education,DEPARTMENT FOR EDUCATION,09/06/2016,Programme costs,Adoption and Children in Care Division,MARTIN NAREY LTD,4000239777,33021.59,Funding to deliver policies (excluding consultancy) paid to third parties via a service delivery contract
Department for Education,DEPARTMENT FOR EDUCATION,09/06/2016,Grants,Academies Regional Delivery Group,ST EDMUNDSBURY & IPSWICH DIOCESAN ACADEMY TRUST,4000239780,70000.00,Grants to educational establishments or not for profit organisations including other businesses
Department for Education,DEPARTMENT FOR EDUCATION,09/06/2016,Grants,"Children's Services, Equalities and Communication Safeguarding Group",ACTION FOR CHILDREN,4000239783,491273.00,Grants to educational establishments or not for profit organisations including other businesses
Department for Education,DEPARTMENT FOR EDUCATION,09/06/2016,Grants,Free School Group,UTC CREWE,4000239792,30000.00,Grants to educational establishments or not for profit organisations including other businesses
Department for Education,DEPARTMENT FOR EDUCATION,09/06/2016,Grants,"Children's Services, Equalities and Communication Safeguarding Group",NORFOLK & SUFFOLK NHS FOUNDATION TRUST,4000239793,290896.18,Grants to educational establishments or not for profit organisations including other businesses
Department for Education,DEPARTMENT FOR EDUCATION,09/06/2016,Grants,Free School Group,South Durham UTC,4000239794,30000.00,Grants to educational establishments or not for profit organisations including other businesses
Department for Education,DEPARTMENT FOR EDUCATION,09/06/2016,Grants,Free School Group,SOUTH BANK ENGINEERING UTC TRUST,4000239796,30000.00,Grants to educational establishments or not for profit organisations including other businesses
Department for Education,DEPARTMENT FOR EDUCATION,09/06/2016,Grants,Free School Group,ONE DEGREE ACADEMY,4000239804,30000.00,Grants to educational establishments or not for profit organisations including other businesses
Department for Education,DEPARTMENT FOR EDUCATION,09/06/2016,Grants,Free School Group,THE SASH 2 SCHOOL,4000239805,30000.00,Grants to educational establishments or not for profit organisations including other businesses
Department for Education,DEPARTMENT FOR EDUCATION,09/06/2016,Grants,Free School Group,THE ATAM ACADEMY,4000239806,30000.00,Grants to educational establishments or not for profit organisations including other businesses
Department for Education,DEPARTMENT FOR EDUCATION,09/06/2016,Grants,Free School Group,THE GLOBAL ACADEMY UTC,4000239807,30000.00,Grants to educational establishments or not for profit organisations including other businesses
Department for Education,DEPARTMENT FOR EDUCATION,09/06/2016,Grants,Free School Group,WOOTTON PARK SCHOOL,4000239809,30000.00,Grants to educational establishments or not for profit organisations including other businesses
Department for Education,DEPARTMENT FOR EDUCATION,09/06/2016,Grants,Free School Group,EDISON PRIMARY SCHOOL (EDISON TRUST LTD),4000239810,32970.00,Grants to educational establishments or not for profit organisations including other businesses
Department for Education,DEPARTMENT FOR EDUCATION,09/06/2016,Grants,Free School Group,WMG ACADEMY FOR YOUNG ENGINEERS SOLIHULL,4000239811,30000.00,Grants to educational establishments or not for profit organisations including other businesses
Department for Education,DEPARTMENT FOR EDUCATION,09/06/2016,Professional Services Consultancy and Contingent Labour,"Assessment, Curriculum and General Qualifications Group",GOVERNMENT LEGAL DEPARTMENT,4000239813,41791.00,"Fees / expenses of professionals such as auditors, accountants, lawyers, etc. engaged to provide advice or opinion on how to affect something"
Department for Education,DEPARTMENT FOR EDUCATION,09/06/2016,Professional Services Other,Strategic Analysis and Research Group,UNIVERSITY OF NOTTINGHAM,4000239790,41899.00,Research and evaluation activities
Department for Education,DEPARTMENT FOR EDUCATION,09/06/2016,Professional Services Consultancy and Contingent Labour,Information Technology Group,RUSSAM GMS LTD,4000239703,29890.32,Costs related to temporary workers
Department for Education,DEPARTMENT FOR EDUCATION,09/06/2016,Facilities,Property Asset Management Group,SODEXO LTD,4000239781,112297.48,"Building maintenance and repair, including repainting, replacing flooring, etc."
Department for Education,DEPARTMENT FOR EDUCATION,09/06/2016,Miscellaneous Expenditure,Finance and Commercial Group,N/A � Risk Protection Arrangement (RPA) member,005921-000935-RB-01,25850.00,Property claim paid out to an academy trust by Gallagher Bassett on behalf of the Department as part of the Department's Risk Protection Arrangement (RPA).
Department for Education,DEPARTMENT FOR EDUCATION,10/06/2016,Facilities,Property Asset Management Group,BABCOCK CIVIL INFRASTRUCTURE LTD,4000239828,31189.17,"Building maintenance and repair, including repainting, replacing flooring, etc."
Department for Education,DEPARTMENT FOR EDUCATION,10/06/2016,Professional Services Other,Property Asset Management Group,GVA GRIMLEY LTD,4000239873,84002.73,"Fees / expenses of professionals, for example to implement advice or changes"
Department for Education,DEPARTMENT FOR EDUCATION,10/06/2016,ICT,Information Technology Group,EDUSERV,4000239820,510547.01,ICT Services
Department for Education,NATIONAL COLLEGE FOR TEACHING AND LEADERSHIP AGENCY,10/06/2016,Programme costs,Delivery Directorate,EDUCATION DEVELOPMENT TRUST,4000239833,240107.50,Funding to deliver policies (excluding consultancy) paid to third parties via a service delivery contract
Department for Education,DEPARTMENT FOR EDUCATION,10/06/2016,Programme costs,Finance and Commercial Group,FUTURE LEADERS LTD,4000239838,330000.00,Funding to deliver policies (excluding consultancy) paid to third parties via a service delivery contract
Department for Education,DEPARTMENT FOR EDUCATION,10/06/2016,Professional Services Consultancy and Contingent Labour,Information Technology Group,PROLOG,4000239842,3315.47,"Advisory services including fees, travel and expenses"
Department for Education,DEPARTMENT FOR EDUCATION,10/06/2016,Professional Services Consultancy and Contingent Labour,Information Technology Group,PROLOG,4000239842,7837.50,"Advisory services including fees, travel and expenses"
Department for Education,DEPARTMENT FOR EDUCATION,10/06/2016,ICT,Portfolio Management Board,PROLOG,4000239842,8800.00,ICT Services
Department for Education,DEPARTMENT FOR EDUCATION,10/06/2016,Communications,Information Technology Group,PROLOG,4000239842,10422.30,Digital media and web production
Department for Education,DEPARTMENT FOR EDUCATION,10/06/2016,Communications,Information Technology Group,PROLOG,4000239842,871.20,Digital media and web production
Department for Education,DEPARTMENT FOR EDUCATION,10/06/2016,ICT,Systems and Accountability Group,PROLOG,4000239842,6788.10,ICT Services
Department for Education,DEPARTMENT FOR EDUCATION,10/06/2016,ICT,Systems and Accountability Group,PROLOG,4000239842,136508.52,ICT Services
Department for Education,DEPARTMENT FOR EDUCATION,10/06/2016,Communications,Communications Group,PROLOG,4000239842,11422.80,Marketing services - printing and publication
Department for Education,DEPARTMENT FOR EDUCATION,10/06/2016,Communications,Information Technology Group,PROLOG,4000239842,34909.86,Digital media and web production
Department for Education,DEPARTMENT FOR EDUCATION,10/06/2016,Communications,Ministerial and Public Communications Group,PROLOG,4000239842,62457.29,Digital media and web production
Department for Education,STANDARDS AND TESTING AGENCY,10/06/2016,Programme costs,Test Development Division,PROLOG,4000239842,4530.00,Funding to deliver policies (excluding consultancy) paid to third parties via a service delivery contract
Department for Education,STANDARDS AND TESTING AGENCY,10/06/2016,Print and Print Management,Test Operations Division,PROLOG,4000239842,69743.00,Printing and binding services
Department for Education,STANDARDS AND TESTING AGENCY,10/06/2016,Print and Print Management,Test Operations Division,PROLOG,4000239842,9202.00,Printing and binding services
Department for Education,NATIONAL COLLEGE FOR TEACHING AND LEADERSHIP AGENCY,10/06/2016,Communications,Operations Directorate,PROLOG,4000239842,1122.00,Digital media and web production
Department for Education,NATIONAL COLLEGE FOR TEACHING AND LEADERSHIP AGENCY,10/06/2016,Communications,Operations Directorate,PROLOG,4000239842,94.55,Promotional material for delivery events
Department for Education,NATIONAL COLLEGE FOR TEACHING AND LEADERSHIP AGENCY,10/06/2016,Office Solutions,Operations Directorate,PROLOG,4000239842,341.66,Document Storage
Department for Education,NATIONAL COLLEGE FOR TEACHING AND LEADERSHIP AGENCY,10/06/2016,Office Solutions,Operations Directorate,PROLOG,4000239842,1357.72,Office Supplies
Department for Education,NATIONAL COLLEGE FOR TEACHING AND LEADERSHIP AGENCY,10/06/2016,Communications,Operations Directorate,PROLOG,4000239842,341.96,Marketing services
Department for Education,NATIONAL COLLEGE FOR TEACHING AND LEADERSHIP AGENCY,10/06/2016,Office Solutions,Operations Directorate,PROLOG,4000239842,76.97,Document Storage
Department for Education,NATIONAL COLLEGE FOR TEACHING AND LEADERSHIP AGENCY,10/06/2016,Office Solutions,Operations Directorate,PROLOG,4000239842,6970.00,Post and courier services
Department for Education,STANDARDS AND TESTING AGENCY,10/06/2016,Programme costs,Test Development Division,LEARN DIRECT,4000239860,77256.89,Funding to deliver policies (excluding consultancy) paid to third parties via a service delivery contract
Department for Education,DEPARTMENT FOR EDUCATION,10/06/2016,ICT,Information Technology Group,EGRESS SOFTWARE TECHNOLOGIES LTD,4000239861,46453.20,ICT Software
Department for Education,DEPARTMENT FOR EDUCATION,10/06/2016,Professional Services Other,Strategic Analysis and Research Group,IFF RESEARCH LTD,4000239852,34874.00,Research and evaluation activities
Department for Education,NATIONAL COLLEGE FOR TEACHING AND LEADERSHIP AGENCY,10/06/2016,Communications,Operations Directorate,INFERNO LTD,4000239875,111941.56,"Publicity, advertising, media advertising campaigns (excluding recruitment adverts)"
Department for Education,NATIONAL COLLEGE FOR TEACHING AND LEADERSHIP AGENCY,10/06/2016,Communications,Operations Directorate,INFERNO LTD,4000239875,1260.00,"Publicity, advertising, media advertising campaigns (excluding recruitment adverts)"
Department for Education,DEPARTMENT FOR EDUCATION,10/06/2016,Programme costs,Teachers and Teaching Group,CAPITA LIFE & PENSIONS SERVICES LTD,4000239882,1328262.24,Contract payment to deliver the administration of the Teachers' Pension Scheme.
Department for Education,DEPARTMENT FOR EDUCATION,10/06/2016,ICT,Information Technology Group,MICROSOFT LTD,4000239893,362582.40,ICT Software
Department for Education,DEPARTMENT FOR EDUCATION,10/06/2016,Professional Services Other,Teachers and Teaching Group,PROLOG,4000239842,69.00,Interpretations and translation services
Department for Education,DEPARTMENT FOR EDUCATION,10/06/2016,Professional Services Consultancy and Contingent Labour,Information Technology Group,MICROSOFT LTD,4000239893,231199.20,Costs related to temporary workers
Department for Education,DEPARTMENT FOR EDUCATION,10/06/2016,Facilities,Property Asset Management Group,INTERSERVE FACILITIES MANAGEMENT LTD,4000239868,420078.24,"Building maintenance and repair, including repainting, replacing flooring, etc."
Department for Education,DEPARTMENT FOR EDUCATION,10/06/2016,Facilities,Property Asset Management Group,INTERSERVE FACILITIES MANAGEMENT LTD,4000239868,245606.89,"Building maintenance and repair, including repainting, replacing flooring, etc."
Department for Education,DEPARTMENT FOR EDUCATION,10/06/2016,Professional Services Other,Academies Regional Delivery Group,VEREDUS TA CAPITA RESOURCING LTD,4000239832,45519.36,"Fees / expenses of professionals, for example to implement advice or changes"
Department for Education,DEPARTMENT FOR EDUCATION,10/06/2016,Facilities,Property Asset Management Group,MACE LTD,4000239867,265813.20,Programme management for construction work
Department for Education,DEPARTMENT FOR EDUCATION,13/06/2016,Grants,System Reform Group,SUFFOLK COUNTY COUNCIL,4000239902,42375.00,Grants to local authorities / other establishments within aggregate external funding or aggregate exchequer grant
Department for Education,DEPARTMENT FOR EDUCATION,13/06/2016,Professional Services Consultancy and Contingent Labour,Information Technology Group,METHODS PROFESSIONAL SERVICES LTD,4000239937,9996.00,Costs related to temporary workers
Department for Education,DEPARTMENT FOR EDUCATION,13/06/2016,Professional Services Consultancy and Contingent Labour,Information Technology Group,METHODS PROFESSIONAL SERVICES LTD,4000239937,16390.67,Costs related to temporary workers
Department for Education,DEPARTMENT FOR EDUCATION,13/06/2016,Grants,System Reform Group,LEICESTERSHIRE COUNTY COUNCIL,4000239948,29592.00,Grants to local authorities / other establishments within aggregate external funding or aggregate exchequer grant
Department for Education,DEPARTMENT FOR EDUCATION,13/06/2016,Grants,System Reform Group,HAMPSHIRE COUNTY COUNCIL,4000239951,33458.00,Grants to local authorities / other establishments within aggregate external funding or aggregate exchequer grant
Department for Education,DEPARTMENT FOR EDUCATION,13/06/2016,Grants,System Reform Group,WEST SUSSEX COUNTY COUNCIL,4000239953,32367.00,Grants to local authorities / other establishments within aggregate external funding or aggregate exchequer grant
Department for Education,DEPARTMENT FOR EDUCATION,13/06/2016,Grants,System Reform Group,DURHAM COUNTY COUNCIL,4000239964,81800.00,Grants to local authorities / other establishments within aggregate external funding or aggregate exchequer grant
Department for Education,DEPARTMENT FOR EDUCATION,13/06/2016,Grants,System Reform Group,DORSET COUNTY COUNCIL,4000239975,31783.00,Grants to local authorities / other establishments within aggregate external funding or aggregate exchequer grant
Department for Education,DEPARTMENT FOR EDUCATION,13/06/2016,Grants,System Reform Group,DERBYSHIRE COUNTY COUNCIL,4000239977,66250.00,Grants to local authorities / other establishments within aggregate external funding or aggregate exchequer grant
Department for Education,DEPARTMENT FOR EDUCATION,13/06/2016,Grants,System Reform Group,NORTH YORKSHIRE COUNTY COUNCIL,4000239993,26233.00,Grants to local authorities / other establishments within aggregate external funding or aggregate exchequer grant
Department for Education,DEPARTMENT FOR EDUCATION,13/06/2016,Grants,System Reform Group,EAST SUSSEX COUNTY COUNCIL,4000240009,40608.00,Grants to local authorities / other establishments within aggregate external funding or aggregate exchequer grant
Department for Education,DEPARTMENT FOR EDUCATION,13/06/2016,Grants,System Reform Group,NORFOLK COUNTY COUNCIL,4000240016,58008.00,Grants to local authorities / other establishments within aggregate external funding or aggregate exchequer grant
Department for Education,DEPARTMENT FOR EDUCATION,13/06/2016,Grants,System Reform Group,SOMERSET COUNTY COUNCIL,4000240018,29842.00,Grants to local authorities / other establishments within aggregate external funding or aggregate exchequer grant
Department for Education,DEPARTMENT FOR EDUCATION,13/06/2016,Grants,System Reform Group,NORTHAMPTONSHIRE COUNTY COUNCIL,4000240032,29933.00,Grants to local authorities / other establishments within aggregate external funding or aggregate exchequer grant
Department for Education,DEPARTMENT FOR EDUCATION,13/06/2016,Grants,System Reform Group,LINCOLNSHIRE COUNTY COUNCIL,4000240033,55150.00,Grants to local authorities / other establishments within aggregate external funding or aggregate exchequer grant
Department for Education,DEPARTMENT FOR EDUCATION,13/06/2016,Grants,System Reform Group,GLOUCESTERSHIRE COUNTY COUNCIL,4000240045,35142.00,Grants to local authorities / other establishments within aggregate external funding or aggregate exchequer grant
Department for Education,DEPARTMENT FOR EDUCATION,13/06/2016,Grants,System Reform Group,CORNWALL COUNCIL,4000240047,42792.00,Grants to local authorities / other establishments within aggregate external funding or aggregate exchequer grant
Department for Education,DEPARTMENT FOR EDUCATION,13/06/2016,Grants,System Reform Group,NOTTINGHAMSHIRE COUNTY COUNCIL,4000240063,32875.00,Grants to local authorities / other establishments within aggregate external funding or aggregate exchequer grant
Department for Education,DEPARTMENT FOR EDUCATION,13/06/2016,Grants,System Reform Group,LANCASHIRE COUNTY COUNCIL,4000240077,50442.00,Grants to local authorities / other establishments within aggregate external funding or aggregate exchequer grant
Department for Education,DEPARTMENT FOR EDUCATION,13/06/2016,Grants,System Reform Group,KENT COUNTY COUNCIL,4000240090,104167.00,Grants to local authorities / other establishments within aggregate external funding or aggregate exchequer grant
Department for Education,DEPARTMENT FOR EDUCATION,13/06/2016,Grants,System Reform Group,WORCESTERSHIRE COUNTY COUNCIL,4000240091,27075.00,Grants to local authorities / other establishments within aggregate external funding or aggregate exchequer grant
Department for Education,NATIONAL COLLEGE FOR TEACHING AND LEADERSHIP AGENCY,13/06/2016,Professional Services Other,Operations Directorate,NABARRO LLP,4000240098,32505.40,"Fees / expenses of professionals, for example to implement advice or changes"
Department for Education,DEPARTMENT FOR EDUCATION,13/06/2016,Grants,System Reform Group,ESSEX COUNTY COUNCIL,4000240104,50025.00,Grants to local authorities / other establishments within aggregate external funding or aggregate exchequer grant
Department for Education,DEPARTMENT FOR EDUCATION,13/06/2016,Grants,System Reform Group,DEVON COUNTY COUNCIL,4000240107,40775.00,Grants to local authorities / other establishments within aggregate external funding or aggregate exchequer grant
Department for Education,DEPARTMENT FOR EDUCATION,13/06/2016,Grants,System Reform Group,CAMBRIDGESHIRE COUNTY COUNCIL,4000240123,38842.00,Grants to local authorities / other establishments within aggregate external funding or aggregate exchequer grant
Department for Education,STANDARDS AND TESTING AGENCY,13/06/2016,ICT,Test Operations Division,THE STATIONERY OFFICE LTD,4000240127,33912.50,ICT Services - hardware maintenance and support
Department for Education,DEPARTMENT FOR EDUCATION,13/06/2016,Professional Services Consultancy and Contingent Labour,Information Technology Group,METHODS PROFESSIONAL SERVICES LTD,4000239937,30504.00,Costs related to temporary workers
Department for Education,DEPARTMENT FOR EDUCATION,13/06/2016,Professional Services Other,Academies Regional Delivery Group,VEREDUS TA CAPITA RESOURCING LTD,4000239940,42854.40,"Fees / expenses of professionals, for example to implement advice or changes"
Department for Education,DEPARTMENT FOR EDUCATION,14/06/2016,Grants,"Children's Services, Equalities and Communication Safeguarding Group",OFFICE OF THE CHILDRENS COMMISSIONER,2100048,238233.29,Current grants paid to organisations including arms length bodies and educational establishments
Department for Education,DEPARTMENT FOR EDUCATION,14/06/2016,Facilities,Property Asset Management Group,BAM CONSTRUCTION LTD,4000240201,1616289.60,Programme management for construction work
Department for Education,DEPARTMENT FOR EDUCATION,14/06/2016,Grants,Academies Regional Delivery Group,TREWIDLAND PRIMARY SCHOOL,4000240144,30000.00,Grants to educational establishments or not for profit organisations including other businesses
Department for Education,DEPARTMENT FOR EDUCATION,14/06/2016,Grants,Academies Regional Delivery Group,LISKEARD SCHOOL & COMMUNITY COLLEGE,4000240145,25000.00,Grants to educational establishments or not for profit organisations including other businesses
Department for Education,DEPARTMENT FOR EDUCATION,14/06/2016,Grants,Academies Regional Delivery Group,THE HEATH FAMILY NORTH WEST,4000240154,25000.00,Grants to educational establishments or not for profit organisations including other businesses
Department for Education,DEPARTMENT FOR EDUCATION,14/06/2016,Grants,Adoption and Children in Care Division,THE CHILDRENS SOCIETY,4000240168,173468.00,Grants to educational establishments or not for profit organisations including other businesses
Department for Education,DEPARTMENT FOR EDUCATION,14/06/2016,Grants,Academies Regional Delivery Group,SALTASH MULTI ACADEMY REGIONAL TRUST,4000240170,40000.00,Grants to educational establishments or not for profit organisations including other businesses
Department for Education,DEPARTMENT FOR EDUCATION,14/06/2016,Grants,Academies Regional Delivery Group,YORKSHIRE COLLABORATIVE ACADEMY TRUST,4000240171,70000.00,Grants to educational establishments or not for profit organisations including other businesses
Department for Education,DEPARTMENT FOR EDUCATION,14/06/2016,Programme costs,"Children's Services, Equalities and Communication Safeguarding Group",MUTUAL VENTURES LTD,4000240172,32400.00,Funding to deliver policies (excluding consultancy) paid to third parties via a service delivery contract
Department for Education,DEPARTMENT FOR EDUCATION,14/06/2016,Grants,Academies Regional Delivery Group,ROSEMELLIN COMMUNITY PRIMARY SCHOOL,4000240174,25000.00,Grants to educational establishments or not for profit organisations including other businesses
Department for Education,DEPARTMENT FOR EDUCATION,14/06/2016,Grants,Academies Regional Delivery Group,DOBWALLS C P SCHOOL,4000240195,27000.00,Grants to educational establishments or not for profit organisations including other businesses
Department for Education,DEPARTMENT FOR EDUCATION,14/06/2016,Grants,Office of the Schools Commissioner Group,SOUTHGATE SCHOOL,4000240198,100000.00,Grants to educational establishments or not for profit organisations including other businesses
Department for Education,DEPARTMENT FOR EDUCATION,14/06/2016,Grants,Adoption and Children in Care Division,THE SHARE FOUNDATION 3RD PARTY TRUST,4000240204,63800.00,Grants to educational establishments or not for profit organisations including other businesses
Department for Education,DEPARTMENT FOR EDUCATION,14/06/2016,Grants,Character and Disadvantage Division,PRINCES TRUST VOLUNTEERS PROGRAMME,4000240206,163655.66,Grants to educational establishments or not for profit organisations including other businesses
Department for Education,DEPARTMENT FOR EDUCATION,14/06/2016,Grants,Academies Regional Delivery Group,THE ACTIVE LEARNING TRUST LTD,4000240207,50000.00,Grants to educational establishments or not for profit organisations including other businesses
Department for Education,DEPARTMENT FOR EDUCATION,14/06/2016,Facilities,Property Asset Management Group,GVA GRIMLEY LTD,4000240208,4165832.21,Rent
Department for Education,STANDARDS AND TESTING AGENCY,14/06/2016,Office Solutions,Test Operations Division,PARCELFORCE WORLDWIDE,4000240209,1036013.28,Post and courier services
Department for Education,DEPARTMENT FOR EDUCATION,14/06/2016,Programme costs,Children's Services Special Educational Needs Group,ACHIEVEMENT FOR ALL 3AS LTD,4000240210,425000.00,Funding to deliver policies (excluding consultancy) paid to third parties via a service delivery contract
Department for Education,DEPARTMENT FOR EDUCATION,14/06/2016,Grants,Academies Regional Delivery Group,KENTS HILL JUNIOR SCHOOL,4000240211,70000.00,Grants to educational establishments or not for profit organisations including other businesses
Department for Education,DEPARTMENT FOR EDUCATION,14/06/2016,Grants,Character and Disadvantage Division,THE SCOUT ASSOCIATION,4000240225,126099.25,Grants to educational establishments or not for profit organisations including other businesses
Department for Education,NATIONAL COLLEGE FOR TEACHING AND LEADERSHIP AGENCY,14/06/2016,Professional Services Other,Delivery Directorate,TELEPERFORMANCE LTD,4000240186,427836.18,"Fees / expenses of professionals, for example to implement advice or changes"
Department for Education,NATIONAL COLLEGE FOR TEACHING AND LEADERSHIP AGENCY,14/06/2016,Professional Services Other,Delivery Directorate,TELEPERFORMANCE LTD,4000240186,16460.80,"Fees / expenses of professionals, for example to implement advice or changes"
Department for Education,DEPARTMENT FOR EDUCATION,14/06/2016,Professional Services Other,"Children's Services, Equalities and Communication Safeguarding Group",UNIVERSITY OF OXFORD,4000240220,54562.00,Research and evaluation activities
Department for Education,DEPARTMENT FOR EDUCATION,14/06/2016,Facilities,Property Asset Management Group,GVA GRIMLEY LTD DCLG,4000240190,5791118.55,"Rent. From 2016/17 financial year DCLG and DECC will use the DfE's finance system, reflecting the shared services arrangement for property asset management that already exists across the three departments. DfE will recharge DCLG and DECC on a quarterly basis."
Department for Education,NATIONAL COLLEGE FOR TEACHING AND LEADERSHIP AGENCY,15/06/2016,Grants,Operations Directorate,DEPARTMENT FOR BUSINESS INNOVATION & SKILLS,2100054,50116.20,Current grant funding to other government departments for DfE's contribution to jointly funded programmes 
Department for Education,DEPARTMENT FOR EDUCATION,15/06/2016,Professional Services Other,Property Asset Management Group,GVA GRIMLEY LTD,4000240268,39069.96,"Fees / expenses of professionals, for example to implement advice or changes"
Department for Education,DEPARTMENT FOR EDUCATION,15/06/2016,Professional Services Other,Property Asset Management Group,GVA GRIMLEY LTD,4000240268,30000.00,"Fees / expenses of professionals, for example to implement advice or changes"
Department for Education,DEPARTMENT FOR EDUCATION,15/06/2016,Professional Services Other,Property Asset Management Group,GVA GRIMLEY LTD,4000240268,46330.34,"Fees / expenses of professionals, for example to implement advice or changes"
Department for Education,DEPARTMENT FOR EDUCATION,15/06/2016,Professional Services Other,Finance and Commercial Group,SHARED SERVICES CONNECTED LTD,4000240270,21323.93,Shared corporate accounting services
Department for Education,DEPARTMENT FOR EDUCATION,15/06/2016,Professional Services Other,Finance and Commercial Group,SHARED SERVICES CONNECTED LTD,4000240270,11976.22,Shared corporate payroll services
Department for Education,DEPARTMENT FOR EDUCATION,15/06/2016,Grants,Character and Disadvantage Division,FLOREAT EDUCATION ACADEMIES TRUST,4000240259,35906.72,Grants to educational establishments or not for profit organisations including other businesses
Department for Education,NATIONAL COLLEGE FOR TEACHING AND LEADERSHIP AGENCY,15/06/2016,Programme costs,Delivery Directorate,EDUCATION DEVELOPMENT TRUST,4000240263,34505.81,Funding to deliver policies (excluding consultancy) paid to third parties via a service delivery contract
Department for Education,DEPARTMENT FOR EDUCATION,15/06/2016,Grants,"Children's Services, Equalities and Communication Safeguarding Group",DONCASTER CHILDRENS TRUST,4000240278,830387.00,Grants to educational establishments or not for profit organisations including other businesses
Department for Education,DEPARTMENT FOR EDUCATION,15/06/2016,Grants,"Children's Services, Equalities and Communication Safeguarding Group",BARNARDOS,4000240285,260248.13,Grants to educational establishments or not for profit organisations including other businesses
Department for Education,DEPARTMENT FOR EDUCATION,15/06/2016,Grants,"Children's Services, Equalities and Communication Safeguarding Group",CORNERSTONE TRAINING & SUPPORT LTD,4000240286,105000.00,Grants to educational establishments or not for profit organisations including other businesses
Department for Education,DEPARTMENT FOR EDUCATION,15/06/2016,Grants,"Children's Services, Equalities and Communication Safeguarding Group",DONCASTER METROPOLITAN BOROUGH COUNCIL,4000240287,48450.54,Grants to local authorities / other establishments within aggregate external funding or aggregate exchequer grant
Department for Education,NATIONAL COLLEGE FOR TEACHING AND LEADERSHIP AGENCY,15/06/2016,Programme costs,Delivery Directorate,EMLC,4000240318,202406.62,Funding to external organisations to deliver policies (excluding consultancy)
Department for Education,DEPARTMENT FOR EDUCATION,15/06/2016,Professional Services Consultancy and Contingent Labour,Information Technology Group,RUSSAM GMS LTD,4000240269,7481.36,Costs related to temporary workers
Department for Education,DEPARTMENT FOR EDUCATION,15/06/2016,Professional Services Consultancy and Contingent Labour,Information Technology Group,RUSSAM GMS LTD,4000240269,22680.00,Costs related to temporary workers
Department for Education,DEPARTMENT FOR EDUCATION,15/06/2016,Professional Services Consultancy and Contingent Labour,Information Technology Group,RUSSAM GMS LTD,4000240269,238.08,Costs related to temporary workers
Department for Education,DEPARTMENT FOR EDUCATION,16/06/2016,Grants,"Children's Services, Equalities and Communication Safeguarding Group",HOME OFFICE,2100055,1144960.24,Current grant funding to other government departments for DfE's contribution to jointly funded programmes 
Department for Education,DEPARTMENT FOR EDUCATION,16/06/2016,Grants,Academies Regional Delivery Group,THE SIR DONALD BAILEY ACADEMY,4000240364,45000.00,Grants to educational establishments or not for profit organisations including other businesses
Department for Education,DEPARTMENT FOR EDUCATION,16/06/2016,Grants,Academies Regional Delivery Group,NORLINGTON SCHOOL,4000240369,25000.00,Grants to educational establishments or not for profit organisations including other businesses
Department for Education,DEPARTMENT FOR EDUCATION,16/06/2016,Programme costs,"Assessment, Curriculum and General Qualifications Group",RUTH MISKIN LITERACY LTD,4000240371,30690.00,Funding to deliver policies (excluding consultancy) paid to third parties via a service delivery contract
Department for Education,DEPARTMENT FOR EDUCATION,16/06/2016,Grants,Academies Regional Delivery Group,NORTHLANDS PRIMARY SCHOOL AND NURSERY,4000240373,25000.00,Grants to educational establishments or not for profit organisations including other businesses
Department for Education,DEPARTMENT FOR EDUCATION,16/06/2016,Grants,Academies Regional Delivery Group,DAVIES LANE PRIMARY SCHOOL,4000240376,25000.00,Grants to educational establishments or not for profit organisations including other businesses
Department for Education,DEPARTMENT FOR EDUCATION,16/06/2016,Grants,Academies Regional Delivery Group,QUEENS MANOR PRIMARY SCHOOL,4000240383,25000.00,Grants to educational establishments or not for profit organisations including other businesses
Department for Education,DEPARTMENT FOR EDUCATION,16/06/2016,Programme costs,"Assessment, Curriculum and General Qualifications Group",HOPSCOTCH CONSULTING LTD,4000240386,27658.24,Funding to deliver policies (excluding consultancy) paid to third parties via a service delivery contract
Department for Education,DEPARTMENT FOR EDUCATION,16/06/2016,Grants,Academies Regional Delivery Group,GIPSY HILL TRUST,4000240396,300000.00,Grants to educational establishments or not for profit organisations including other businesses
Department for Education,DEPARTMENT FOR EDUCATION,16/06/2016,Grants,Adoption and Children in Care Division,THE SHARE FOUNDATION 3RD PARTY TRUST,4000240404,41200.00,Grants to educational establishments or not for profit organisations including other businesses
Department for Education,DEPARTMENT FOR EDUCATION,16/06/2016,Grants,Academies Regional Delivery Group,OAKTHORPE PRIMARY SCHOOL,4000240407,75000.00,Grants to educational establishments or not for profit organisations including other businesses
Department for Education,DEPARTMENT FOR EDUCATION,16/06/2016,Programme costs,"Children's Services, Equalities and Communication Safeguarding Group",EARLY INTERVENTION FOUNDATION,4000240408,66666.00,Funding to deliver policies (excluding consultancy) paid to third parties via a service delivery contract
Department for Education,DEPARTMENT FOR EDUCATION,16/06/2016,Grants,Academies Regional Delivery Group,HORIZONS SPECIALIST ACADEMY,4000240410,90000.00,Grants to educational establishments or not for profit organisations including other businesses
Department for Education,DEPARTMENT FOR EDUCATION,16/06/2016,Grants,Free School Group,BURTON AND SOUTH DERBYSHIRE UTC,4000240422,30337.35,Grants to educational establishments or not for profit organisations including other businesses
Department for Education,DEPARTMENT FOR EDUCATION,16/06/2016,Grants,Academies Regional Delivery Group,NOTTINGHAM RC DIOCESE EDUCATION SERVICE TRUST,4000240426,70000.00,Grants to educational establishments or not for profit organisations including other businesses
Department for Education,DEPARTMENT FOR EDUCATION,16/06/2016,Grants,Academies Regional Delivery Group,EVELYN STREET PRIMARY SCHOOL BCAP,4000240433,77000.00,Grants to educational establishments or not for profit organisations including other businesses
Department for Education,DEPARTMENT FOR EDUCATION,16/06/2016,Professional Services Other,"Children's Services, Equalities and Communication Safeguarding Group",UNIVERSITY OF OXFORD,4000240367,54292.00,Research and evaluation activities
Department for Education,DEPARTMENT FOR EDUCATION,17/06/2016,ICT,Finance and Commercial Group,BRITISH TELECOMMUNICATIONS PLC,1100143,166259.44,Telecoms facilities and services - telecom rentals
Department for Education,NATIONAL COLLEGE FOR TEACHING AND LEADERSHIP AGENCY,17/06/2016,Grants,Operations Directorate,HIGHER EDUCATION FUNDING COUNCIL,2100056,73603.97,Grants to educational establishments or not for profit organisations including other businesses
Department for Education,NATIONAL COLLEGE FOR TEACHING AND LEADERSHIP AGENCY,17/06/2016,Professional Services Other,Operations Directorate,KINGSLEY NAPLEY LLP,4000240475,34978.44,"Fees / expenses of professionals, for example to implement advice or changes"
Department for Education,DEPARTMENT FOR EDUCATION,17/06/2016,Professional Services Other,Finance and Commercial Group,SHARED SERVICES CONNECTED LTD,4000240462,219157.65,Shared corporate accounting services
Department for Education,DEPARTMENT FOR EDUCATION,17/06/2016,Professional Services Consultancy and Contingent Labour,Information Technology Group,METHODS PROFESSIONAL SERVICES LTD,4000240445,36567.41,Costs related to temporary workers
Department for Education,DEPARTMENT FOR EDUCATION,17/06/2016,Professional Services Consultancy and Contingent Labour,Information Technology Group,METHODS PROFESSIONAL SERVICES LTD,4000240445,32443.20,Costs related to temporary workers
Department for Education,DEPARTMENT FOR EDUCATION,17/06/2016,Professional Services Consultancy and Contingent Labour,Children in Care Division,MILLS & REEVE LLP,4000240444,30521.80,"Fees / expenses of professionals such as auditors, accountants, lawyers, etc. engaged to provide advice or opinion on how to affect something"
Department for Education,DEPARTMENT FOR EDUCATION,17/06/2016,Grants,"Assessment, Curriculum and General Qualifications Group",STEM LEARNING LTD,4000240448,80246.85,Grants to educational establishments or not for profit organisations including other businesses
Department for Education,DEPARTMENT FOR EDUCATION,17/06/2016,Grants,Adoption and Children in Care Division,THE SHARE FOUNDATION 3RD PARTY TRUST,4000240453,36600.00,Grants to educational establishments or not for profit organisations including other businesses
Department for Education,STANDARDS AND TESTING AGENCY,17/06/2016,Programme costs,Test Development Division,WILLIAMS LEA,4000240458,89276.39,Funding to deliver policies (excluding consultancy) paid to third parties via a service delivery contract
Department for Education,STANDARDS AND TESTING AGENCY,17/06/2016,Programme costs,Test Operations Division,WILLIAMS LEA,4000240458,68524.78,Funding to deliver policies (excluding consultancy) paid to third parties via a service delivery contract
Department for Education,STANDARDS AND TESTING AGENCY,17/06/2016,Programme costs,Test Operations Division,WILLIAMS LEA,4000240458,-68524.78,Funding to deliver policies (excluding consultancy) paid to third parties via a service delivery contract
Department for Education,STANDARDS AND TESTING AGENCY,17/06/2016,Office Solutions,Test Operations Division,PARCELFORCE WORLDWIDE,4000240466,22373.22,Post and courier services
Department for Education,DEPARTMENT FOR EDUCATION,17/06/2016,Personnel Related,Strategic Analysis and Research Group,HMRC,4000240476,1722.00,Staff subscriptions including publications and organisation subscription charges
Department for Education,DEPARTMENT FOR EDUCATION,17/06/2016,Personnel Related,Systems and Accountability Group,HMRC,4000240476,7749.00,Staff subscriptions including publications and organisation subscription charges
Department for Education,DEPARTMENT FOR EDUCATION,17/06/2016,Personnel Related,International Education Group,HMRC,4000240476,861.00,Staff subscriptions including publications and organisation subscription charges
Department for Education,DEPARTMENT FOR EDUCATION,17/06/2016,Personnel Related,Education Funding Group,HMRC,4000240476,16359.00,Staff subscriptions including publications and organisation subscription charges
Department for Education,NATIONAL COLLEGE FOR TEACHING AND LEADERSHIP AGENCY,17/06/2016,Personnel Related,Delivery Directorate,HMRC,4000240476,861.00,Staff subscriptions including publications and organisation subscription charges
Department for Education,DEPARTMENT FOR EDUCATION,20/06/2016,Professional Services Other,Property Asset Management Group,GVA GRIMLEY LTD,4000240497,35021.59,"Fees / expenses of professionals, for example to implement advice or changes"
Department for Education,DEPARTMENT FOR EDUCATION,20/06/2016,Professional Services Other,Property Asset Management Group,GVA GRIMLEY LTD,4000240497,10710.00,"Fees / expenses of professionals, for example to implement advice or changes"
Department for Education,DEPARTMENT FOR EDUCATION,20/06/2016,Grants,Academies Regional Delivery Group,THE REDSTART LEARNING PARTNERSHIP,4000240487,70000.00,Grants to educational establishments or not for profit organisations including other businesses
Department for Education,DEPARTMENT FOR EDUCATION,20/06/2016,Grants,Academies Regional Delivery Group,ST PAULS WAY TRUST SCHOOL,4000240493,25000.00,Grants to educational establishments or not for profit organisations including other businesses
Department for Education,DEPARTMENT FOR EDUCATION,20/06/2016,Grants,Academies Regional Delivery Group,WEST NORFOLK ACADEMY TRUST,4000240503,25000.00,Grants to educational establishments or not for profit organisations including other businesses
Department for Education,DEPARTMENT FOR EDUCATION,20/06/2016,Grants,Academies Regional Delivery Group,PIMLICO ACADEMY,4000240509,150000.00,Grants to educational establishments or not for profit organisations including other businesses
Department for Education,DEPARTMENT FOR EDUCATION,20/06/2016,Grants,Free School Group,TWO MILE ASH SCHOOL TS,4000240517,25000.00,Grants to educational establishments or not for profit organisations including other businesses
Department for Education,DEPARTMENT FOR EDUCATION,20/06/2016,ICT,Information Technology Group,INSIGHT DIRECT UK LIMITED,4000240521,481687.73,ICT Software
Department for Education,DEPARTMENT FOR EDUCATION,20/06/2016,ICT,Information Technology Group,INSIGHT DIRECT UK LIMITED,4000240521,5624.24,Partial payment for IT hardware / consumables
Department for Education,DEPARTMENT FOR EDUCATION,20/06/2016,Communications,Communications Group,CABINET OFFICE,4000240528,48000.00,Marketing services
Department for Education,DEPARTMENT FOR EDUCATION,20/06/2016,Grants,Academies Regional Delivery Group,CREATIVE EDUCATION TRUST,4000240554,70000.00,Grants to educational establishments or not for profit organisations including other businesses
Department for Education,DEPARTMENT FOR EDUCATION,20/06/2016,Grants,Academies Regional Delivery Group,CREATIVE EDUCATION TRUST,4000240554,25000.00,Grants to educational establishments or not for profit organisations including other businesses
Department for Education,DEPARTMENT FOR EDUCATION,20/06/2016,Grants,Academies Regional Delivery Group,SOUTH MARSTON CHURCH OF ENGLAND PRIMARY SCHOOL,4000240555,27000.00,Grants to educational establishments or not for profit organisations including other businesses
Department for Education,DEPARTMENT FOR EDUCATION,20/06/2016,Grants,Office of the Schools Commissioner Group,WEST MIDLANDS ACADEMY TRUST,4000240556,51000.00,Grants to educational establishments or not for profit organisations including other businesses
Department for Education,DEPARTMENT FOR EDUCATION,20/06/2016,Grants,Academies Regional Delivery Group,ZETLAND PRIMARY SCHOOL,4000240557,25000.00,Grants to educational establishments or not for profit organisations including other businesses
Department for Education,DEPARTMENT FOR EDUCATION,20/06/2016,Grants,Academies Regional Delivery Group,PLYM ACADEMY TRUST,4000240567,80000.00,Grants to educational establishments or not for profit organisations including other businesses
Department for Education,DEPARTMENT FOR EDUCATION,20/06/2016,Grants,Academies Regional Delivery Group,ST CHADS CATHOLIC PRIMARY SCHOOL,4000240568,25000.00,Grants to educational establishments or not for profit organisations including other businesses
Department for Education,DEPARTMENT FOR EDUCATION,20/06/2016,Grants,Academies Regional Delivery Group,ATLANTIC CENTRE OF EXCELLENCE MAT,4000240574,25000.00,Grants to educational establishments or not for profit organisations including other businesses
Department for Education,DEPARTMENT FOR EDUCATION,20/06/2016,Programme costs,"Assessment, Curriculum and General Qualifications Group",EDUCATION DEVELOPMENT TRUST,4000240578,259457.42,Funding to deliver policies (excluding consultancy) paid to third parties via a service delivery contract
Department for Education,DEPARTMENT FOR EDUCATION,20/06/2016,Programme costs,Adoption and Children in Care Division,CORAM,4000240587,97157.50,Funding to deliver policies (excluding consultancy) paid to third parties via a service delivery contract
Department for Education,STANDARDS AND TESTING AGENCY,20/06/2016,ICT,Test Operations Division,ECHO MANAGED SERVICES LTD,4000240588,65571.94,Telecoms facilities and services - telecom rentals
Department for Education,DEPARTMENT FOR EDUCATION,20/06/2016,Grants,Academies Regional Delivery Group,EGGLESCLIFFE SCHOOL,4000240590,75000.00,Grants to educational establishments or not for profit organisations including other businesses
Department for Education,DEPARTMENT FOR EDUCATION,20/06/2016,Professional Services Consultancy and Contingent Labour,Information Technology Group,RUSSAM GMS LTD,4000240501,46291.76,Costs related to temporary workers
Department for Education,DEPARTMENT FOR EDUCATION,21/06/2016,Professional Services Consultancy and Contingent Labour,Information Technology Group,FDM GROUP LTD,4000240620,25163.04,Costs related to temporary workers
Department for Education,DEPARTMENT FOR EDUCATION,21/06/2016,Programme costs,Finance and Commercial Group,FUTURE LEADERS LTD,4000240591,330000.00,Funding to deliver policies (excluding consultancy) paid to third parties via a service delivery contract
Department for Education,DEPARTMENT FOR EDUCATION,21/06/2016,Grants,Adoption and Children in Care Division,THE SHARE FOUNDATION 3RD PARTY TRUST,4000240622,48200.00,Grants to educational establishments or not for profit organisations including other businesses
Department for Education,DEPARTMENT FOR EDUCATION,21/06/2016,ICT,Information Technology Group,SOFTCAT LTD,4000240638,98848.80,ICT Services
Department for Education,DEPARTMENT FOR EDUCATION,21/06/2016,Programme costs,Post 16 and Disadvantage Group,ATKINS LTD,4000240641,100351.50,Funding to deliver policies (excluding consultancy) paid to third parties via a service delivery contract
Department for Education,DEPARTMENT FOR EDUCATION,22/06/2016,Grants,"Assessment, Curriculum and General Qualifications Group",DEPARTMENT FOR CULTURE MEDIA & SPORT,2100057,19158560.25,Current grant funding to other government departments for DfE's contribution to jointly funded programmes 
Department for Education,DEPARTMENT FOR EDUCATION,22/06/2016,Grants,"Assessment, Curriculum and General Qualifications Group",DEPARTMENT FOR CULTURE MEDIA & SPORT,2100057,826319.25,Current grant funding to other government departments for DfE's contribution to jointly funded programmes 
Department for Education,DEPARTMENT FOR EDUCATION,22/06/2016,Grants,"Children's Services, Equalities and Communication Safeguarding Group",YORKSHIRE MESMAC,4000240668,43841.91,Grants to educational establishments or not for profit organisations including other businesses
Department for Education,DEPARTMENT FOR EDUCATION,22/06/2016,Grants,"Children's Services, Equalities and Communication Safeguarding Group",ACHIEVING FOR CHILDREN,4000240670,351943.00,Grants to educational establishments or not for profit organisations including other businesses
Department for Education,DEPARTMENT FOR EDUCATION,22/06/2016,Grants,Adoption and Children in Care Division,ADOPTION UK,4000240671,26000.00,Grants to educational establishments or not for profit organisations including other businesses
Department for Education,DEPARTMENT FOR EDUCATION,22/06/2016,Grants,Free School Group,NEW COLLEGE EDUCATIONAL TRUST,4000240672,50000.00,Grants to educational establishments or not for profit organisations including other businesses
Department for Education,DEPARTMENT FOR EDUCATION,22/06/2016,Grants,Children's Services Strategy Group,CORAM CLC,4000240675,25504.08,Grants to educational establishments or not for profit organisations including other businesses
Department for Education,DEPARTMENT FOR EDUCATION,22/06/2016,Grants,Academies Regional Delivery Group,VICTORIA ACADEMIES TRUST,4000240681,70000.00,Grants to educational establishments or not for profit organisations including other businesses
Department for Education,DEPARTMENT FOR EDUCATION,22/06/2016,Personnel Related,"Children's Services, Equalities and Communication Safeguarding Group",DELOITTE LLP,4000240682,132383.00,"Personnel costs including staff recruitment, staff restaurant subsidies, family care expenses"
Department for Education,DEPARTMENT FOR EDUCATION,22/06/2016,Grants,Academies Regional Delivery Group,THE WHITE HORSE FEDERATION,4000240685,25000.00,Grants to educational establishments or not for profit organisations including other businesses
Department for Education,DEPARTMENT FOR EDUCATION,22/06/2016,Grants,"Assessment, Curriculum and General Qualifications Group",UNIVERSITY OF CAMBRIDGE,4000240693,270375.60,Grants to educational establishments or not for profit organisations including other businesses
Department for Education,DEPARTMENT FOR EDUCATION,22/06/2016,Grants,Adoption and Children in Care Division,CAMBRIDGE EDUCATION,4000240694,2500000.00,Grants to educational establishments or not for profit organisations including other businesses
Department for Education,DEPARTMENT FOR EDUCATION,22/06/2016,Grants,Academies Regional Delivery Group,Q3 ACADEMY,4000240696,25000.00,Grants to educational establishments or not for profit organisations including other businesses
Department for Education,DEPARTMENT FOR EDUCATION,22/06/2016,Grants,Early Years Group,PEN GREEN RESEARCH,4000240699,160294.09,Grants to educational establishments or not for profit organisations including other businesses
Department for Education,DEPARTMENT FOR EDUCATION,22/06/2016,Grants,Academies Regional Delivery Group,ARTHUR BUGLER PRIMARY SCHOOL,4000240702,25000.00,Grants to educational establishments or not for profit organisations including other businesses
Department for Education,DEPARTMENT FOR EDUCATION,22/06/2016,Grants,Academies Regional Delivery Group,WELLSPRING ACADEMY TRUST,4000240707,85000.00,Grants to educational establishments or not for profit organisations including other businesses
Department for Education,DEPARTMENT FOR EDUCATION,22/06/2016,Grants,"Assessment, Curriculum and General Qualifications Group",UNIVERSITY OF GLOUCESTERSHIRE,4000240715,91173.38,Grants to educational establishments or not for profit organisations including other businesses
Department for Education,DEPARTMENT FOR EDUCATION,22/06/2016,Programme costs,International Education Group,TRIBAL EDUCATION,4000240726,25850.00,Funding to deliver policies (excluding consultancy) paid to third parties via a service delivery contract
Department for Education,DEPARTMENT FOR EDUCATION,22/06/2016,Grants,Academies Regional Delivery Group,KIRKBY WOODHOUSE SCHOOL,4000240746,25000.00,Grants to educational establishments or not for profit organisations including other businesses
Department for Education,DEPARTMENT FOR EDUCATION,22/06/2016,Grants,Academies Regional Delivery Group,BRUCHE COMMUNITY PRIMARY SCHOOL,4000240754,27000.00,Grants to educational establishments or not for profit organisations including other businesses
Department for Education,DEPARTMENT FOR EDUCATION,22/06/2016,Grants,Academies Regional Delivery Group,PARKLANDS COMMUNITY PRIMARY SCHOOL,4000240756,27000.00,Grants to educational establishments or not for profit organisations including other businesses
Department for Education,DEPARTMENT FOR EDUCATION,22/06/2016,Programme costs,"Assessment, Curriculum and General Qualifications Group",EDUCATION DEVELOPMENT TRUST,4000240765,197598.00,Funding to deliver policies (excluding consultancy) paid to third parties via a service delivery contract
Department for Education,DEPARTMENT FOR EDUCATION,22/06/2016,Grants,Academies Regional Delivery Group,EGGLESCLIFFE SCHOOL,4000240770,77000.00,Grants to educational establishments or not for profit organisations including other businesses
Department for Education,DEPARTMENT FOR EDUCATION,22/06/2016,Facilities,Property Asset Management Group,INTERSERVE FACILITIES MANAGEMENT LTD,4000240680,212226.88,Property management
Department for Education,DEPARTMENT FOR EDUCATION,22/06/2016,Facilities,Property Asset Management Group,INTERSERVE FACILITIES MANAGEMENT LTD,4000240680,39352.34,"Building maintenance and repair, including repainting, replacing flooring, etc."
Department for Education,DEPARTMENT FOR EDUCATION,22/06/2016,Facilities,Property Asset Management Group,INTERSERVE FACILITIES MANAGEMENT LTD,4000240680,65162.74,Property management
Department for Education,DEPARTMENT FOR EDUCATION,22/06/2016,Facilities,Property Asset Management Group,INTERSERVE FACILITIES MANAGEMENT LTD,4000240680,69740.11,"Building maintenance and repair, including repainting, replacing flooring, etc."
Department for Education,DEPARTMENT FOR EDUCATION,22/06/2016,Miscellaneous Expenditure,Finance and Commercial Group,N/A � Risk Protection Arrangement (RPA) member,005921-000598-RB-01,64852.10,Property claim paid out to an academy trust by Gallagher Bassett on behalf of the Department as part of the Department's Risk Protection Arrangement (RPA).
Department for Education,NATIONAL COLLEGE FOR TEACHING AND LEADERSHIP AGENCY,23/06/2016,Professional Services Other,Operations Directorate,BROWNE JACOBSON SOLICITORS,4000240823,41240.46,"Fees / expenses of professionals, for example to implement advice or changes"
Department for Education,DEPARTMENT FOR EDUCATION,23/06/2016,Professional Services Other,Property Asset Management Group,GOVERNMENT LEGAL DEPARTMENT,4000240841,4106.76,"Fees / expenses of professionals, for example to implement advice or changes"
Department for Education,DEPARTMENT FOR EDUCATION,23/06/2016,Professional Services Other,"Independent Education, Safeguarding in Schools and Counter Extremism Group",GOVERNMENT LEGAL DEPARTMENT,4000240841,24298.86,"Fees / expenses of professionals, for example to implement advice or changes"
Department for Education,DEPARTMENT FOR EDUCATION,23/06/2016,Facilities,Property Asset Management Group,GVA GRIMLEY LTD,4000240824,592487.00,Business rates
Department for Education,DEPARTMENT FOR EDUCATION,23/06/2016,Facilities,Property Asset Management Group,GVA GRIMLEY LTD DCLG,4000240799,383378.00,"Business rates. From 2016/17 financial year DCLG and DECC will use the DfE's finance system, reflecting the shared services arrangement for property asset management that already exists across the three departments. DfE will recharge DCLG and DECC on a quarterly basis."
Department for Education,DEPARTMENT FOR EDUCATION,23/06/2016,Grants,Academies Regional Delivery Group,OSSETT SCHOOL & SIXTH FORM COLLEGE,4000240777,50000.00,Grants to educational establishments or not for profit organisations including other businesses
Department for Education,DEPARTMENT FOR EDUCATION,23/06/2016,Grants,Academies Regional Delivery Group,ROCKLIFFE MANOR PRIMARY SCHOOL,4000240790,25000.00,Grants to educational establishments or not for profit organisations including other businesses
Department for Education,DEPARTMENT FOR EDUCATION,23/06/2016,Grants,Academies Regional Delivery Group,NIGHTINGALE PRIMARY SCHOOL,4000240791,25000.00,Grants to educational establishments or not for profit organisations including other businesses
Department for Education,DEPARTMENT FOR EDUCATION,23/06/2016,Grants,Academies Regional Delivery Group,FOXFIELD PRIMARY SCHOOL,4000240792,25000.00,Grants to educational establishments or not for profit organisations including other businesses
Department for Education,DEPARTMENT FOR EDUCATION,23/06/2016,Grants,Academies Regional Delivery Group,MARUS BRIDGE PRIMARY SCHOOL,4000240793,25000.00,Grants to educational establishments or not for profit organisations including other businesses
Department for Education,DEPARTMENT FOR EDUCATION,23/06/2016,Grants,Academies Regional Delivery Group,LOSELEY FIELDS PRIMARY SCHOOL,4000240794,25000.00,Grants to educational establishments or not for profit organisations including other businesses
Department for Education,DEPARTMENT FOR EDUCATION,23/06/2016,Grants,Academies Regional Delivery Group,ILLOGAN PRIMARY SCHOOL,4000240795,25000.00,Grants to educational establishments or not for profit organisations including other businesses
Department for Education,DEPARTMENT FOR EDUCATION,23/06/2016,Grants,Academies Regional Delivery Group,WEETH COMMUNITY PRIMARY SCHOOL,4000240796,27000.00,Grants to educational establishments or not for profit organisations including other businesses
Department for Education,DEPARTMENT FOR EDUCATION,23/06/2016,ICT,Information Technology Group,6 POINT 6 LTD,4000240804,255619.20,ICT Services
Department for Education,DEPARTMENT FOR EDUCATION,23/06/2016,Grants,Academies Regional Delivery Group,ST EDMUNDSBURY & IPSWICH DIOCESAN ACADEMY TRUST,4000240805,70000.00,Grants to educational establishments or not for profit organisations including other businesses
Department for Education,DEPARTMENT FOR EDUCATION,23/06/2016,Programme costs,"Children's Services, Equalities and Communication Safeguarding Group",ESSEX COUNTY COUNCIL,4000240809,29988.00,Funding to deliver policies (excluding consultancy) paid to third parties via a service delivery contract
Department for Education,STANDARDS AND TESTING AGENCY,23/06/2016,Programme costs,Test Development Division,NFER,4000240810,323511.81,Funding to deliver policies (excluding consultancy) paid to third parties via a service delivery contract
Department for Education,DEPARTMENT FOR EDUCATION,23/06/2016,Grants,"Children's Services, Equalities and Communication Safeguarding Group",DAYBREAK FAMILY GROUP CONFERENCES,4000240811,98711.02,Grants to educational establishments or not for profit organisations including other businesses
Department for Education,DEPARTMENT FOR EDUCATION,23/06/2016,Grants,Academies Regional Delivery Group,LINCOLN ANGLICAN ACADEMY TRUST,4000240818,125000.00,Grants to educational establishments or not for profit organisations including other businesses
Department for Education,DEPARTMENT FOR EDUCATION,23/06/2016,Grants,Academies Regional Delivery Group,ST CHADS ACADEMIES TRUST,4000240820,25000.00,Grants to educational establishments or not for profit organisations including other businesses
Department for Education,STANDARDS AND TESTING AGENCY,23/06/2016,Programme costs,Test Operations Division,EDEXCEL,4000240822,3013657.20,Funding to deliver policies (excluding consultancy) paid to third parties via a service delivery contract
Department for Education,DEPARTMENT FOR EDUCATION,23/06/2016,Grants,Academies Regional Delivery Group,ASH GREEN PRIMARY SCHOOL,4000240826,25000.00,Grants to educational establishments or not for profit organisations including other businesses
Department for Education,DEPARTMENT FOR EDUCATION,23/06/2016,Grants,Academies Regional Delivery Group,STANLEY PARK HIGH SCHOOL,4000240829,25000.00,Grants to educational establishments or not for profit organisations including other businesses
Department for Education,DEPARTMENT FOR EDUCATION,23/06/2016,Facilities,Property Asset Management Group,INTERSERVE FACILITIES MANAGEMENT LTD,4000240816,276222.06,"Building maintenance and repair, including repainting, replacing flooring, etc."
Department for Education,DEPARTMENT FOR EDUCATION,24/06/2016,Energy and Fuels,Property Asset Management Group,EDF ENERGY LTD,4000240858,55181.26,Electricity supply
Department for Education,DEPARTMENT FOR EDUCATION,24/06/2016,Programme costs,"Children's Services, Equalities and Communication Safeguarding Group",ACHIEVING FOR CHILDREN,4000240869,36386.60,Funding to deliver policies (excluding consultancy) paid to third parties via a service delivery contract
Department for Education,DEPARTMENT FOR EDUCATION,24/06/2016,Grants,Children's Services Strategy Group,FAMILY LIVES,4000240878,36795.50,Grants to educational establishments or not for profit organisations including other businesses
Department for Education,DEPARTMENT FOR EDUCATION,24/06/2016,Facilities,Property Asset Management Group,INTERSERVE FACILITIES MANAGEMENT LTD,4000240891,397787.52,"Building maintenance and repair, including repainting, replacing flooring, etc."
Department for Education,STANDARDS AND TESTING AGENCY,24/06/2016,Office Solutions,Test Operations Division,PARCELFORCE WORLDWIDE,4000240907,834558.76,Post and courier services
Department for Education,DEPARTMENT FOR EDUCATION,24/06/2016,Grants,"Children's Services, Equalities and Communication Safeguarding Group",NORTH TYNESIDE,4000240910,42116.73,Grants to local authorities / other establishments within aggregate external funding or aggregate exchequer grant
Department for Education,DEPARTMENT FOR EDUCATION,24/06/2016,Grants,"Children's Services, Equalities and Communication Safeguarding Group",SALFORD CITY COUNCIL,4000240911,50983.41,Grants to local authorities / other establishments within aggregate external funding or aggregate exchequer grant
Department for Education,DEPARTMENT FOR EDUCATION,24/06/2016,Grants,"Children's Services, Equalities and Communication Safeguarding Group",LONDON BOROUGH OF BROMLEY COUNCIL,4000240912,64283.43,Grants to local authorities / other establishments within aggregate external funding or aggregate exchequer grant
Department for Education,DEPARTMENT FOR EDUCATION,24/06/2016,Grants,"Children's Services, Equalities and Communication Safeguarding Group",SHEFFIELD CITY COUNCIL,4000240914,113050.17,Grants to local authorities / other establishments within aggregate external funding or aggregate exchequer grant
Department for Education,DEPARTMENT FOR EDUCATION,24/06/2016,Grants,"Children's Services, Equalities and Communication Safeguarding Group",METROPOLITAN BOROUGH OF WIRRAL,4000240915,55416.75,Grants to local authorities / other establishments within aggregate external funding or aggregate exchequer grant
Department for Education,DEPARTMENT FOR EDUCATION,24/06/2016,Grants,"Children's Services, Equalities and Communication Safeguarding Group",LONDON BOROUGH OF HAMMERSMITH & FULHAM COUNCIL,4000240917,73150.11,Grants to local authorities / other establishments within aggregate external funding or aggregate exchequer grant
Department for Education,DEPARTMENT FOR EDUCATION,24/06/2016,Grants,"Assessment, Curriculum and General Qualifications Group",RUSHEY MEAD SCHOOL,4000240925,68844.46,Grants to educational establishments or not for profit organisations including other businesses
Department for Education,DEPARTMENT FOR EDUCATION,24/06/2016,Grants,Children's Services Special Educational Needs Group,THE ANNA FREUD CENTRE,4000240926,209746.24,Grants to educational establishments or not for profit organisations including other businesses
Department for Education,DEPARTMENT FOR EDUCATION,24/06/2016,Grants,"Children's Services, Equalities and Communication Safeguarding Group",SOMERSET COUNTY COUNCIL,4000240927,62066.76,Grants to local authorities / other establishments within aggregate external funding or aggregate exchequer grant
Department for Education,DEPARTMENT FOR EDUCATION,24/06/2016,Grants,"Children's Services, Equalities and Communication Safeguarding Group",HERTFORDSHIRE,4000240928,46550.07,Grants to local authorities / other establishments within aggregate external funding or aggregate exchequer grant
Department for Education,DEPARTMENT FOR EDUCATION,24/06/2016,Grants,"Children's Services, Equalities and Communication Safeguarding Group",CAMBRIDGESHIRE COUNTY COUNCIL,4000240931,55416.75,Grants to local authorities / other establishments within aggregate external funding or aggregate exchequer grant
Department for Education,DEPARTMENT FOR EDUCATION,24/06/2016,Grants,"Children's Services, Equalities and Communication Safeguarding Group",BRACKNELL FOREST BOROUGH COUNCIL,4000240932,28816.71,Grants to local authorities / other establishments within aggregate external funding or aggregate exchequer grant
Department for Education,DEPARTMENT FOR EDUCATION,24/06/2016,Grants,"Children's Services, Equalities and Communication Safeguarding Group",STOKE ON TRENT CITY COUNCIL,4000240933,84233.46,Grants to local authorities / other establishments within aggregate external funding or aggregate exchequer grant
Department for Education,DEPARTMENT FOR EDUCATION,24/06/2016,Grants,"Children's Services, Equalities and Communication Safeguarding Group",DARLINGTON BOROUGH COUNCIL,4000240934,42116.73,Grants to local authorities / other establishments within aggregate external funding or aggregate exchequer grant
Department for Education,DEPARTMENT FOR EDUCATION,24/06/2016,Grants,"Children's Services, Equalities and Communication Safeguarding Group",DORSET COUNTY COUNCIL,4000240935,44333.40,Grants to local authorities / other establishments within aggregate external funding or aggregate exchequer grant
Department for Education,DEPARTMENT FOR EDUCATION,24/06/2016,Grants,"Children's Services, Equalities and Communication Safeguarding Group",DERBY CITY COUNCIL,4000240936,77583.45,Grants to local authorities / other establishments within aggregate external funding or aggregate exchequer grant
Department for Education,DEPARTMENT FOR EDUCATION,24/06/2016,Grants,"Children's Services, Equalities and Communication Safeguarding Group",BUCKINGHAMSHIRE COUNTY COUNCIL,4000240937,42116.73,Grants to local authorities / other establishments within aggregate external funding or aggregate exchequer grant
Department for Education,DEPARTMENT FOR EDUCATION,24/06/2016,Grants,"Children's Services, Equalities and Communication Safeguarding Group",HAMPSHIRE C C,4000240938,50983.41,Grants to local authorities / other establishments within aggregate external funding or aggregate exchequer grant
Department for Education,DEPARTMENT FOR EDUCATION,24/06/2016,Programme costs,Post 16 and Disadvantage Group,RURAL PAYMENTS AGENCY,4000240946,40017.13,Funding to deliver policies (excluding consultancy) paid to third parties via a service delivery contract
Department for Education,DEPARTMENT FOR EDUCATION,24/06/2016,ICT,Systems and Accountability Group,CAPGEMINI UK PLC,4000240951,129109.10,ICT Services
Department for Education,DEPARTMENT FOR EDUCATION,24/06/2016,Facilities,Property Asset Management Group,INTERSERVE FACILITIES MANAGEMENT LTD,4000240891,189864.86,"Building maintenance and repair, including repainting, replacing flooring, etc."
Department for Education,NATIONAL COLLEGE FOR TEACHING AND LEADERSHIP AGENCY,27/06/2016,Professional Services Other,Operations Directorate,CARAT,4000240956,-46.61,Research and evaluation activities
Department for Education,DEPARTMENT FOR EDUCATION,27/06/2016,Communications,"Children's Services, Equalities and Communication Safeguarding Group",CARAT,4000240956,-27.55,Marketing services
Department for Education,NATIONAL COLLEGE FOR TEACHING AND LEADERSHIP AGENCY,27/06/2016,Communications,Operations Directorate,CARAT,4000240956,4737.20,"Publicity, advertising, media advertising campaigns (excluding recruitment adverts)"
Department for Education,NATIONAL COLLEGE FOR TEACHING AND LEADERSHIP AGENCY,27/06/2016,Communications,Operations Directorate,CARAT,4000240956,215827.97,Marketing services
Department for Education,NATIONAL COLLEGE FOR TEACHING AND LEADERSHIP AGENCY,27/06/2016,Communications,Operations Directorate,CARAT,4000240956,-0.54,Marketing services
Department for Education,NATIONAL COLLEGE FOR TEACHING AND LEADERSHIP AGENCY,27/06/2016,Communications,Delivery Directorate,CARAT,4000240956,-7391.63,Marketing services
Department for Education,DEPARTMENT FOR EDUCATION,27/06/2016,Grants,Academies Regional Delivery Group,MASEFIELD C P SCHOOL,4000240961,25000.00,Grants to educational establishments or not for profit organisations including other businesses
Department for Education,DEPARTMENT FOR EDUCATION,27/06/2016,Grants,Academies Regional Delivery Group,EBOR ACADEMY TRUST,4000240963,90000.00,Grants to educational establishments or not for profit organisations including other businesses
Department for Education,DEPARTMENT FOR EDUCATION,27/06/2016,Grants,Academies Regional Delivery Group,ST CHRISTOPHERS COFE MULTI ACADEMY TRUST,4000240966,25000.00,Grants to educational establishments or not for profit organisations including other businesses
Department for Education,DEPARTMENT FOR EDUCATION,27/06/2016,Learning and Development,Finance and Commercial Group,CIVIL SERVICE LEARNING,4000240967,427.85,Staff training and development including materials and courses
Department for Education,DEPARTMENT FOR EDUCATION,27/06/2016,Learning and Development,Human Resources Group,CIVIL SERVICE LEARNING,4000240967,105000.00,Staff training and development including materials and courses
Department for Education,DEPARTMENT FOR EDUCATION,27/06/2016,Grants,Academies Regional Delivery Group,ENQUIRE LEARNING TRUST,4000240970,25000.00,Grants to educational establishments or not for profit organisations including other businesses
Department for Education,DEPARTMENT FOR EDUCATION,27/06/2016,Grants,Academies Regional Delivery Group,KENT CATHOLIC SCHOOLS PARTNERSHIP,4000240971,150000.00,Grants to educational establishments or not for profit organisations including other businesses
Department for Education,DEPARTMENT FOR EDUCATION,27/06/2016,Grants,Academies Regional Delivery Group,THE DIOCESE OF GLOUCESTER ACADEMIES TRUST,4000240972,25000.00,Grants to educational establishments or not for profit organisations including other businesses
Department for Education,DEPARTMENT FOR EDUCATION,27/06/2016,Grants,Academies Regional Delivery Group,BRADFORD DIOCESAN ACADEMIES TRUST,4000240973,40000.00,Grants to educational establishments or not for profit organisations including other businesses
Department for Education,DEPARTMENT FOR EDUCATION,27/06/2016,Grants,Academies Regional Delivery Group,TOLLGATE PRIMARY SCHOOL,4000240976,25000.00,Grants to educational establishments or not for profit organisations including other businesses
Department for Education,DEPARTMENT FOR EDUCATION,27/06/2016,Grants,Academies Regional Delivery Group,OAK LODGE SCHOOL,4000240977,25000.00,Grants to educational establishments or not for profit organisations including other businesses
Department for Education,DEPARTMENT FOR EDUCATION,27/06/2016,Grants,Academies Regional Delivery Group,RED LANE PRIMARY SCHOOL,4000240978,25000.00,Grants to educational establishments or not for profit organisations including other businesses
Department for Education,DEPARTMENT FOR EDUCATION,27/06/2016,Grants,Academies Regional Delivery Group,HEATON PRIMARY SCHOOL,4000240990,25000.00,Grants to educational establishments or not for profit organisations including other businesses
Department for Education,DEPARTMENT FOR EDUCATION,27/06/2016,Grants,Academies Regional Delivery Group,BALSALL COMMON PRIMARY SCHOOL,4000240993,90000.00,Grants to educational establishments or not for profit organisations including other businesses
Department for Education,DEPARTMENT FOR EDUCATION,27/06/2016,Grants,Academies Regional Delivery Group,BALSALL COMMON PRIMARY SCHOOL,4000240993,40000.00,Capital grants paid to an educational establishment
Department for Education,DEPARTMENT FOR EDUCATION,27/06/2016,Grants,Academies Regional Delivery Group,BECKFOOT SCHOOL,4000240999,160000.00,Grants to educational establishments or not for profit organisations including other businesses
Department for Education,DEPARTMENT FOR EDUCATION,27/06/2016,ICT,Information Technology Group,REDWEB,4000241007,172734.00,ICT Services
Department for Education,DEPARTMENT FOR EDUCATION,27/06/2016,Grants,Academies Regional Delivery Group,WINDRUSH PRIMARY SCHOOL,4000241010,25000.00,Grants to educational establishments or not for profit organisations including other businesses
Department for Education,DEPARTMENT FOR EDUCATION,27/06/2016,Grants,Academies Regional Delivery Group,STAMFORD BRIDGE PRIMARY SCHOOL,4000241014,25000.00,Grants to educational establishments or not for profit organisations including other businesses
Department for Education,DEPARTMENT FOR EDUCATION,27/06/2016,Grants,Academies Regional Delivery Group,POCKLINGTON COMMUNITY JUNIOR SCHOOL,4000241015,25000.00,Grants to educational establishments or not for profit organisations including other businesses
Department for Education,DEPARTMENT FOR EDUCATION,27/06/2016,Grants,Academies Regional Delivery Group,WESSEX LEARNING TRUST,4000241016,180000.00,Grants to educational establishments or not for profit organisations including other businesses
Department for Education,DEPARTMENT FOR EDUCATION,27/06/2016,Grants,Academies Regional Delivery Group,FIVE RIVERS MULTI ACADEMY TRUST,4000241017,70000.00,Grants to educational establishments or not for profit organisations including other businesses
Department for Education,DEPARTMENT FOR EDUCATION,27/06/2016,Grants,Academies Regional Delivery Group,KIPPAX ASH TREE PRIMARY SCHOOL,4000241019,25000.00,Grants to educational establishments or not for profit organisations including other businesses
Department for Education,DEPARTMENT FOR EDUCATION,27/06/2016,Grants,Free School Group,GLOUCESTERSHIRE LEARNING ALLIANCE ACADEMIES TRUST,4000241020,25000.00,Grants to educational establishments or not for profit organisations including other businesses
Department for Education,DEPARTMENT FOR EDUCATION,27/06/2016,Grants,Academies Regional Delivery Group,GADDESBY PRIMARY SCHOOL,4000241021,75000.00,Grants to educational establishments or not for profit organisations including other businesses
Department for Education,DEPARTMENT FOR EDUCATION,27/06/2016,Grants,Academies Regional Delivery Group,TRELOWETH COMMUNITY PRIMARY SCHOOL,4000241022,25000.00,Grants to educational establishments or not for profit organisations including other businesses
Department for Education,DEPARTMENT FOR EDUCATION,27/06/2016,Grants,Academies Regional Delivery Group,PORTREATH COMMUNITY PRIMARY SCHOOL,4000241023,100000.00,Grants to educational establishments or not for profit organisations including other businesses
Department for Education,DEPARTMENT FOR EDUCATION,27/06/2016,Grants,Academies Regional Delivery Group,DRB IGNITE MAT,4000241025,25000.00,Grants to educational establishments or not for profit organisations including other businesses
Department for Education,DEPARTMENT FOR EDUCATION,27/06/2016,Grants,Academies Regional Delivery Group,FEVERSHAM EDUCATION TRUST,4000241027,70000.00,Grants to educational establishments or not for profit organisations including other businesses
Department for Education,DEPARTMENT FOR EDUCATION,27/06/2016,Programme costs,"Children's Services, Equalities and Communication Safeguarding Group",LEEDS CITY COUNCIL,4000241028,71280.00,Funding to deliver policies (excluding consultancy) paid to third parties via a service delivery contract
Department for Education,DEPARTMENT FOR EDUCATION,27/06/2016,Professional Services Consultancy and Contingent Labour,Information Technology Group,RUSSAM GMS LTD,4000240964,23964.00,Costs related to temporary workers
Department for Education,DEPARTMENT FOR EDUCATION,27/06/2016,Professional Services Consultancy and Contingent Labour,Information Technology Group,RUSSAM GMS LTD,4000240964,27971.52,Costs related to temporary workers
Department for Education,DEPARTMENT FOR EDUCATION,27/06/2016,Professional Services Consultancy and Contingent Labour,Information Technology Group,RUSSAM GMS LTD,4000240964,11250.48,Costs related to temporary workers
Department for Education,DEPARTMENT FOR EDUCATION,28/06/2016,Professional Services Other,Property Asset Management Group,ARCADIS LLP,4000241053,95401.00,"Fees / expenses of professionals, for example to implement advice or changes"
Department for Education,DEPARTMENT FOR EDUCATION,28/06/2016,Professional Services Consultancy and Contingent Labour,Information Technology Group,METHODS CONSULTING LTD,4000241078,14040.00,Costs related to temporary workers
Department for Education,DEPARTMENT FOR EDUCATION,28/06/2016,Professional Services Consultancy and Contingent Labour,Information Technology Group,METHODS CONSULTING LTD,4000241078,15600.00,Costs related to temporary workers
Department for Education,DEPARTMENT FOR EDUCATION,28/06/2016,Professional Services Consultancy and Contingent Labour,Information Technology Group,METHODS CONSULTING LTD,4000241078,249.47,Costs related to temporary workers
Department for Education,DEPARTMENT FOR EDUCATION,28/06/2016,Grants,Academies Regional Delivery Group,NEW BRIDGE SCHOOL,4000241046,25000.00,Grants to educational establishments or not for profit organisations including other businesses
Department for Education,DEPARTMENT FOR EDUCATION,28/06/2016,Grants,Academies Regional Delivery Group,GRIFFIN SCHOOLS TRUST,4000241064,50000.00,Grants to educational establishments or not for profit organisations including other businesses
Department for Education,DEPARTMENT FOR EDUCATION,28/06/2016,Grants,Academies Regional Delivery Group,SEAGRAVE VILLAGE PRIMARY SCHOOL,4000241077,30000.00,Grants to educational establishments or not for profit organisations including other businesses
Department for Education,DEPARTMENT FOR EDUCATION,28/06/2016,Facilities,Property Asset Management Group,INTERSERVE FACILITIES MANAGEMENT LTD,4000241141,19477.50,"Building maintenance and repair, including repainting, replacing flooring, etc."
Department for Education,DEPARTMENT FOR EDUCATION,28/06/2016,Grants,Academies Regional Delivery Group,WILLIAM HOWARD SCHOOL,4000241079,70000.00,Grants to educational establishments or not for profit organisations including other businesses
Department for Education,DEPARTMENT FOR EDUCATION,28/06/2016,Grants,Academies Regional Delivery Group,THE LIMES COLLEGE,4000241093,25000.00,Grants to educational establishments or not for profit organisations including other businesses
Department for Education,DEPARTMENT FOR EDUCATION,28/06/2016,Grants,Academies Regional Delivery Group,CLEVES PRIMARY SCHOOL,4000241115,25000.00,Grants to educational establishments or not for profit organisations including other businesses
Department for Education,DEPARTMENT FOR EDUCATION,28/06/2016,Grants,Academies Regional Delivery Group,THE LEARNING ACADEMY TRUST,4000241121,100000.00,Grants to educational establishments or not for profit organisations including other businesses
Department for Education,DEPARTMENT FOR EDUCATION,28/06/2016,Grants,Academies Regional Delivery Group,THE PRIORY SCHOOL TRUST,4000241123,80000.00,Grants to educational establishments or not for profit organisations including other businesses
Department for Education,DEPARTMENT FOR EDUCATION,28/06/2016,Grants,Academies Regional Delivery Group,SELWYN PRIMARY SCHOOL,4000241124,25000.00,Grants to educational establishments or not for profit organisations including other businesses
Department for Education,DEPARTMENT FOR EDUCATION,28/06/2016,Grants,Academies Regional Delivery Group,HEXTHORPE PRIMARY SCHOOL,4000241126,25000.00,Grants to educational establishments or not for profit organisations including other businesses
Department for Education,DEPARTMENT FOR EDUCATION,28/06/2016,Programme costs,"Assessment, Curriculum and General Qualifications Group",STEM LEARNING LTD,4000241130,217464.63,Funding to deliver policies (excluding consultancy) paid to third parties via a service delivery contract
Department for Education,NATIONAL COLLEGE FOR TEACHING AND LEADERSHIP AGENCY,28/06/2016,Travel,Delivery Directorate,STEM LEARNING LTD,4000241130,2952.00,"Conferences, exhibitions and events"
Department for Education,NATIONAL COLLEGE FOR TEACHING AND LEADERSHIP AGENCY,28/06/2016,Grants,Delivery Directorate,STEM LEARNING LTD,4000241130,288.00,Grants to educational establishments or not for profit organisations including other businesses
Department for Education,DEPARTMENT FOR EDUCATION,28/06/2016,ICT,Information Technology Group,ZAIZI LTD,4000241137,78375.00,ICT Services
Department for Education,NATIONAL COLLEGE FOR TEACHING AND LEADERSHIP AGENCY,28/06/2016,Communications,Operations Directorate,CARAT,4000241139,6084.26,"Publicity, advertising, media advertising campaigns (excluding recruitment adverts)"
Department for Education,NATIONAL COLLEGE FOR TEACHING AND LEADERSHIP AGENCY,28/06/2016,Communications,Operations Directorate,CARAT,4000241139,219490.26,Marketing services
Department for Education,DEPARTMENT FOR EDUCATION,28/06/2016,Facilities,Property Asset Management Group,INTERSERVE FACILITIES MANAGEMENT LTD,4000241141,190242.34,"Building maintenance and repair, including repainting, replacing flooring, etc."
Department for Education,DEPARTMENT FOR EDUCATION,28/06/2016,Facilities,Property Asset Management Group,METHODS CONSULTING LTD,4000241078,63157.90,Property management
Department for Education,DEPARTMENT FOR EDUCATION,28/06/2016,Miscellaneous Expenditure,Finance and Commercial Group,N/A � Risk Protection Arrangement (RPA) member,005921-000620-RB-01,50000.00,Property claim paid out to an academy trust by Gallagher Bassett on behalf of the Department as part of the Department's Risk Protection Arrangement (RPA).
Department for Education,DEPARTMENT FOR EDUCATION,28/06/2016,Miscellaneous Expenditure,Finance and Commercial Group,N/A � Risk Protection Arrangement (RPA) member,005921-000620-RC-01,50000.00,Property claim paid out to an academy trust by Gallagher Bassett on behalf of the Department as part of the Department's Risk Protection Arrangement (RPA).
Department for Education,DEPARTMENT FOR EDUCATION,29/06/2016,Professional Services Consultancy and Contingent Labour,Information Technology Group,6 POINT 6 LIMITED,4000241169,37800.00,Costs related to temporary workers
Department for Education,DEPARTMENT FOR EDUCATION,29/06/2016,Professional Services Consultancy and Contingent Labour,Information Technology Group,6 POINT 6 LIMITED,4000241169,0.00,Costs related to temporary workers
Department for Education,DEPARTMENT FOR EDUCATION,29/06/2016,Energy and Fuels,Property Asset Management Group,EDF ENERGY,4000241177,38904.65,Electricity supply
Department for Education,DEPARTMENT FOR EDUCATION,29/06/2016,Energy and Fuels,Property Asset Management Group,EDF ENERGY LTD,4000241156,101471.97,Electricity supply
Department for Education,DEPARTMENT FOR EDUCATION,29/06/2016,Professional Services Consultancy and Contingent Labour,Information Technology Group,PRO CEDURE LTD,4000241180,27360.00,Costs related to temporary workers
Department for Education,DEPARTMENT FOR EDUCATION,29/06/2016,Travel,Finance and Commercial Group,REDFERN TRAVEL LTD,4000241165,342940.29,"Staff business travel including air, coach, ferry, rail, taxi and car hire"
Department for Education,DEPARTMENT FOR EDUCATION,29/06/2016,Miscellaneous Expenditure,Children's Services Special Educational Needs Group,HMCTS HM COURTS & TRIBUNALS SERVICE,4000241179,128923.00,Tribunals and trials service fees
Department for Education,DEPARTMENT FOR EDUCATION,29/06/2016,Grants,Adoption and Children in Care Division,THE SHARE FOUNDATION 3RD PARTY TRUST,4000241188,40600.00,Grants to educational establishments or not for profit organisations including other businesses
Department for Education,STANDARDS AND TESTING AGENCY,29/06/2016,Programme costs,Test Development Division,NFER,4000241192,35655.00,Funding to deliver policies (excluding consultancy) paid to third parties via a service delivery contract
Department for Education,STANDARDS AND TESTING AGENCY,29/06/2016,Programme costs,Test Operations Division,WILLIAMS LEA,4000241200,118693.88,Funding to deliver policies (excluding consultancy) paid to third parties via a service delivery contract
Department for Education,NATIONAL COLLEGE FOR TEACHING AND LEADERSHIP AGENCY,29/06/2016,Communications,Operations Directorate,CARAT,4000241202,21550.97,"Publicity, advertising, media advertising campaigns (excluding recruitment adverts)"
Department for Education,NATIONAL COLLEGE FOR TEACHING AND LEADERSHIP AGENCY,29/06/2016,Communications,Operations Directorate,CARAT,4000241202,27768.50,Marketing services
Department for Education,DEPARTMENT FOR EDUCATION,29/06/2016,Grants,Children's Services Special Educational Needs Group,OFSTED,4000241209,349087.00,Grants to educational establishments or not for profit organisations including other businesses
Department for Education,DEPARTMENT FOR EDUCATION,29/06/2016,Grants,Education Funding Group,LOCAL PARTNERSHIPS LLP,4000241213,96405.15,Grants to educational establishments or not for profit organisations including other businesses
Department for Education,DEPARTMENT FOR EDUCATION,29/06/2016,Programme costs,Teachers and Teaching Group,GOVERNMENT ACTUARYS DEPARTMENT,4000241252,34134.85,Funding to deliver policies (excluding consultancy) paid to third parties via a service delivery contract
Department for Education,DEPARTMENT FOR EDUCATION,29/06/2016,Grants,Adoption and Children in Care Division,HARTLEPOOL BOROUGH COUNCIL,4000241256,28419.00,Grants to local authorities / other establishments within aggregate external funding or aggregate exchequer grant
Department for Education,DEPARTMENT FOR EDUCATION,29/06/2016,ICT,Children in Care Division,VODAFONE CORPORATE,4000241261,1026.56,Telecoms facilities and services - mobiles and pagers
Department for Education,DEPARTMENT FOR EDUCATION,29/06/2016,ICT,Strategic Analysis and Research and Policy Impact Group,VODAFONE CORPORATE,4000241261,60.00,Telecoms facilities and services - mobiles and pagers
Department for Education,DEPARTMENT FOR EDUCATION,29/06/2016,ICT,Government Equalities Office,VODAFONE CORPORATE,4000241261,216.12,Telecoms facilities and services - mobiles and pagers
Department for Education,DEPARTMENT FOR EDUCATION,29/06/2016,ICT,Children's Services Special Educational Needs Group,VODAFONE CORPORATE,4000241261,27.06,Telecoms facilities and services - mobiles and pagers
Department for Education,DEPARTMENT FOR EDUCATION,29/06/2016,ICT,Strategic Analysis and Research and Policy Impact Group,VODAFONE CORPORATE,4000241261,60.65,Telecoms facilities and services - mobiles and pagers
Department for Education,DEPARTMENT FOR EDUCATION,29/06/2016,ICT,Children's Services Special Educational Needs Group,VODAFONE CORPORATE,4000241261,283.58,Telecoms facilities and services - mobiles and pagers
Department for Education,DEPARTMENT FOR EDUCATION,29/06/2016,ICT,Children's Services Special Educational Needs Group,VODAFONE CORPORATE,4000241261,14.40,Telecoms facilities and services - mobiles and pagers
Department for Education,DEPARTMENT FOR EDUCATION,29/06/2016,ICT,"Children's Services, Equalities and Communication Directorate Support",VODAFONE CORPORATE,4000241261,12.00,Telecoms facilities and services - mobiles and pagers
Department for Education,DEPARTMENT FOR EDUCATION,29/06/2016,ICT,Information Technology Group,VODAFONE CORPORATE,4000241261,24.00,Telecoms facilities and services - mobiles and pagers
Department for Education,DEPARTMENT FOR EDUCATION,29/06/2016,ICT,Information Technology Group,VODAFONE CORPORATE,4000241261,236.42,Telecoms facilities and services - mobiles and pagers
Department for Education,DEPARTMENT FOR EDUCATION,29/06/2016,ICT,Information Technology Group,VODAFONE CORPORATE,4000241261,261.60,Telecoms facilities and services - mobiles and pagers
Department for Education,DEPARTMENT FOR EDUCATION,29/06/2016,ICT,Information Technology Group,VODAFONE CORPORATE,4000241261,2626.11,Telecoms facilities and services - mobiles and pagers
Department for Education,DEPARTMENT FOR EDUCATION,29/06/2016,ICT,Portfolio Management Board,VODAFONE CORPORATE,4000241261,12.00,Telecoms facilities and services - mobiles and pagers
Department for Education,DEPARTMENT FOR EDUCATION,29/06/2016,ICT,Finance and Commercial Group,VODAFONE CORPORATE,4000241261,385.60,Telecoms facilities and services - mobiles and pagers
Department for Education,DEPARTMENT FOR EDUCATION,29/06/2016,ICT,Property Asset Management Group,VODAFONE CORPORATE,4000241261,539.46,Telecoms facilities and services - mobiles and pagers
Department for Education,DEPARTMENT FOR EDUCATION,29/06/2016,ICT,Strategic Analysis and Research Group,VODAFONE CORPORATE,4000241261,201.45,Telecoms facilities and services - mobiles and pagers
Department for Education,DEPARTMENT FOR EDUCATION,29/06/2016,ICT,"Strategy, Performance and Implementation Group",VODAFONE CORPORATE,4000241261,193.80,Telecoms facilities and services - mobiles and pagers
Department for Education,DEPARTMENT FOR EDUCATION,29/06/2016,ICT,Finance and Commercial Group,VODAFONE CORPORATE,4000241261,12.00,Telecoms facilities and services - mobiles and pagers
Department for Education,DEPARTMENT FOR EDUCATION,29/06/2016,ICT,Finance and Commercial Group,VODAFONE CORPORATE,4000241261,686.71,Telecoms facilities and services - mobiles and pagers
Department for Education,DEPARTMENT FOR EDUCATION,29/06/2016,ICT,Human Resources Group,VODAFONE CORPORATE,4000241261,322.22,Telecoms facilities and services - mobiles and pagers
Department for Education,DEPARTMENT FOR EDUCATION,29/06/2016,ICT,Strategic Analysis and Research Group,VODAFONE CORPORATE,4000241261,12.00,Telecoms facilities and services - mobiles and pagers
Department for Education,DEPARTMENT FOR EDUCATION,29/06/2016,ICT,Information Technology Group,VODAFONE CORPORATE,4000241261,12.00,Telecoms facilities and services - mobiles and pagers
Department for Education,DEPARTMENT FOR EDUCATION,29/06/2016,ICT,Information Technology Group,VODAFONE CORPORATE,4000241261,97.20,Telecoms facilities and services - mobiles and pagers
Department for Education,DEPARTMENT FOR EDUCATION,29/06/2016,ICT,Information Technology Group,VODAFONE CORPORATE,4000241261,814.20,Telecoms facilities and services - mobiles and pagers
Department for Education,DEPARTMENT FOR EDUCATION,29/06/2016,ICT,Property Asset Management Group,VODAFONE CORPORATE,4000241261,14.40,Telecoms facilities and services - mobiles and pagers
Department for Education,DEPARTMENT FOR EDUCATION,29/06/2016,ICT,Property Asset Management Group,VODAFONE CORPORATE,4000241261,12.00,Telecoms facilities and services - mobiles and pagers
Department for Education,DEPARTMENT FOR EDUCATION,29/06/2016,ICT,Change Team,VODAFONE CORPORATE,4000241261,254.78,Telecoms facilities and services - mobiles and pagers
Department for Education,DEPARTMENT FOR EDUCATION,29/06/2016,ICT,Free School Group,VODAFONE CORPORATE,4000241261,659.92,Telecoms facilities and services - mobiles and pagers
Department for Education,DEPARTMENT FOR EDUCATION,29/06/2016,ICT,Education Standards Directorate,VODAFONE CORPORATE,4000241261,61.80,Telecoms facilities and services - mobiles and pagers
Department for Education,DEPARTMENT FOR EDUCATION,29/06/2016,ICT,System Reform Group,VODAFONE CORPORATE,4000241261,423.83,Telecoms facilities and services - mobiles and pagers
